Body name,Service Area,Dept,Capital/Revenue,Expenses Type,Detailed Expenses Type,Transaction number,Expense Code,Date,Amount,Supplier Name,Supplier ID
WANDSWORTH COUNCIL,CS,,Revenue,"REPAIRS, ALTERATIONS & MTCE","REPS, ALTS & MTCE-BUILDINGS",1075752,100410000,27-Oct-16,"1,029.97",BATTERSEA ARTS CENTRE TRUST LTD,SP0003082
WANDSWORTH COUNCIL,CS,,Revenue,"REPAIRS, ALTERATIONS & MTCE","REPS, ALTS & MTCE-BUILDINGS",1068738,100510000,18-Oct-16,"3,262.53",ADVANTIS CREDIT LIMITED,SP0011326
WANDSWORTH COUNCIL,CS,,Revenue,SERVICES,CONSULTANTS FEES,1060573,100534200,13-Oct-16,"10,555.00",JONES LANG LASALLE,SP0008111
WANDSWORTH COUNCIL,CS,,Revenue,SERVICES,CONSULTANTS FEES,1055913,10053420K0002P,06-Oct-16,"7,556.25",TIBBALDS,SP0010872
WANDSWORTH COUNCIL,CS,,Revenue,OTHER AGENCIES,HEALTHWATCH CONTRACT,1053235,102043830,04-Oct-16,"35,911.00",WANDSWORTH CARE ALLIANCE,SP0008176
WANDSWORTH COUNCIL,CS,,Revenue,PRINTING STAT & GEN OFFICE EXP,PRINTING REGISTRATION A FORM,1063434,103033440,12-Oct-16,504.62,BANNER MANAGED COMMUNICATION,SP0003555
WANDSWORTH COUNCIL,CS,,Revenue,PRINTING STAT & GEN OFFICE EXP,PRINTING REGISTRATION A FORM,1074748,103033440,27-Oct-16,676.01,BANNER MANAGED COMMUNICATION,SP0003555
WANDSWORTH COUNCIL,CS,,Revenue,COMMUNICATIONS & COMP,COMMUNICATIONS - POSTAGE,1064015,103036000,12-Oct-16,"1,135.28",ROYAL MAIL,SP0001067
WANDSWORTH COUNCIL,CS,,Revenue,COMMUNICATIONS & COMP,COMMUNICATIONS - POSTAGE,1077787,103036000,28-Oct-16,"1,475.87",ROYAL MAIL,SP0001067
WANDSWORTH COUNCIL,CS,,Revenue,"EQUIPMENT, FURNITURE & MATS",FLOWERS,1065788,103130170,18-Oct-16,646.00,PATRICIA WONG,SP0002085
WANDSWORTH COUNCIL,PH,,Revenue,HEALTH,GP LCS CONTRACTS,1076715,105041520,28-Oct-16,"1,149.00",BRIDGE LANE GROUP PRACTICE,SP0000516
WANDSWORTH COUNCIL,PH,,Revenue,HEALTH,GP LCS CONTRACTS,1076636,105041520,28-Oct-16,"5,028.00",BALHAM PARK SURGERY,SP0000925
WANDSWORTH COUNCIL,PH,,Revenue,HEALTH,GP LCS CONTRACTS,1077758,105041520,31-Oct-16,"3,103.00",MAYFIELD SURGERY,SP0002209
WANDSWORTH COUNCIL,PH,,Revenue,HEALTH,GP LCS CONTRACTS,1076619,105041520,28-Oct-16,"1,890.00",CHATFIELD HEALTH CARE,SP0002903
WANDSWORTH COUNCIL,PH,,Revenue,HEALTH,GP LCS CONTRACTS,1076710,105041520,27-Oct-16,"2,532.00",THURLEIGH ROAD PRACTICE H85114,SP0003310
WANDSWORTH COUNCIL,PH,,Revenue,HEALTH,GP LCS CONTRACTS,1076637,105041520,27-Oct-16,"1,328.00",QUEENSTOWN ROAD MEDICAL PRACTICE H85003,SP0003591
WANDSWORTH COUNCIL,PH,,Revenue,HEALTH,GP LCS CONTRACTS,1076632,105041520,27-Oct-16,865.00,THE GREYSWOOD PRACTICE,SP0006936
WANDSWORTH COUNCIL,PH,,Revenue,HEALTH,GP LCS CONTRACTS,1076635,105041520,28-Oct-16,"3,873.00",PUTNEYMEAD GROUP MEDICAL PRACTICE H85012,SP0006951
WANDSWORTH COUNCIL,PH,,Revenue,HEALTH,GP LCS CONTRACTS,1076629,105041520,27-Oct-16,"4,591.00",WANDSWORTH MEDICAL CENTRE,SP0007088
WANDSWORTH COUNCIL,PH,,Revenue,HEALTH,GP LCS CONTRACTS,1077759,105041520,28-Oct-16,"1,006.00",BATTERSEA RISE GROUP PRACTICE H85049,SP0007572
WANDSWORTH COUNCIL,PH,,Revenue,HEALTH,GP LCS CONTRACTS,1077115,105041520,27-Oct-16,261.00,DR K BEGG H85659,SP0007574
WANDSWORTH COUNCIL,PH,,Revenue,HEALTH,GP LCS CONTRACTS,1077761,105041520,31-Oct-16,"1,162.00",EARLSFIELD PRACTICE,SP0007581
WANDSWORTH COUNCIL,PH,,Revenue,HEALTH,GP LCS CONTRACTS,1076633,105041520,27-Oct-16,383.00,THE FALCON ROAD MEDICAL CENTRE H85002,SP0007953
WANDSWORTH COUNCIL,PH,,Revenue,HEALTH,GP LCS CONTRACTS,1076714,105041520,28-Oct-16,"2,907.00",BROCKLEBANK GROUP PRACTICE,SP0007967
WANDSWORTH COUNCIL,PH,,Revenue,HEALTH,GP LCS CONTRACTS,1076622,105041520,27-Oct-16,"1,223.00",ELBOROUGH STREET SURGERY H85057,SP0007971
WANDSWORTH COUNCIL,PH,,Revenue,HEALTH,GP LCS CONTRACTS,1076711,105041520,27-Oct-16,"1,301.00",ST PAULS COTTAGE PRACTICE,SP0007978
WANDSWORTH COUNCIL,PH,,Revenue,HEALTH,GP LCS CONTRACTS,1076620,105041520,27-Oct-16,80.00,CLAPHAM JUNCTION MEDICAL PRACTICE,SP0008135
WANDSWORTH COUNCIL,PH,,Revenue,HEALTH,GP LCS CONTRACTS,1076630,105041520,28-Oct-16,"2,631.00",HEATHBRIDGE PRACTICE,SP0008179
WANDSWORTH COUNCIL,PH,,Revenue,HEALTH,GP LCS CONTRACTS,1076627,105041520,28-Oct-16,"1,046.00",TUDOR LODGE HEALTH CENTRE H85682,SP0008309
WANDSWORTH COUNCIL,PH,,Revenue,HEALTH,GP LCS CONTRACTS,1076717,105041520,27-Oct-16,"1,945.00",CHARTFIELD SURGERY Y01132,SP0008380
WANDSWORTH COUNCIL,PH,,Revenue,HEALTH,GP LCS CONTRACTS,1076617,105041520,27-Oct-16,341.00,GRAFTON MEDICAL PARTNERS Y02423,SP0008442
WANDSWORTH COUNCIL,PH,,Revenue,HEALTH,GP CHLAMYDIA SCREENING LCS,1076715,105141540,28-Oct-16,60.00,BRIDGE LANE GROUP PRACTICE,SP0000516
WANDSWORTH COUNCIL,PH,,Revenue,HEALTH,GP CHLAMYDIA SCREENING LCS,1076636,105141540,28-Oct-16,180.00,BALHAM PARK SURGERY,SP0000925
WANDSWORTH COUNCIL,PH,,Revenue,HEALTH,GP CHLAMYDIA SCREENING LCS,1077758,105141540,31-Oct-16,20.00,MAYFIELD SURGERY,SP0002209
WANDSWORTH COUNCIL,PH,,Revenue,HEALTH,GP CHLAMYDIA SCREENING LCS,1076713,105141540,27-Oct-16,190.00,BEDFORD HILL FAMILY PRACTICE H85009,SP0002543
WANDSWORTH COUNCIL,PH,,Revenue,HEALTH,GP CHLAMYDIA SCREENING LCS,1076619,105141540,28-Oct-16,90.00,CHATFIELD HEALTH CARE,SP0002903
WANDSWORTH COUNCIL,PH,,Revenue,HEALTH,GP CHLAMYDIA SCREENING LCS,1076710,105141540,27-Oct-16,70.00,THURLEIGH ROAD PRACTICE H85114,SP0003310
WANDSWORTH COUNCIL,PH,,Revenue,HEALTH,GP CHLAMYDIA SCREENING LCS,1076637,105141540,27-Oct-16,190.00,QUEENSTOWN ROAD MEDICAL PRACTICE H85003,SP0003591
WANDSWORTH COUNCIL,PH,,Revenue,HEALTH,GP CHLAMYDIA SCREENING LCS,1076626,105141540,27-Oct-16,10.00,TRINITY MEDICAL CENTRE,SP0003735
WANDSWORTH COUNCIL,PH,,Revenue,HEALTH,GP CHLAMYDIA SCREENING LCS,1076634,105141540,27-Oct-16,80.00,THE PRACTICE FURZEDOWN,SP0005025
WANDSWORTH COUNCIL,PH,,Revenue,HEALTH,GP CHLAMYDIA SCREENING LCS,1076632,105141540,27-Oct-16,30.00,THE GREYSWOOD PRACTICE,SP0006936
WANDSWORTH COUNCIL,PH,,Revenue,HEALTH,GP CHLAMYDIA SCREENING LCS,1076635,105141540,28-Oct-16,590.00,PUTNEYMEAD GROUP MEDICAL PRACTICE H85012,SP0006951
WANDSWORTH COUNCIL,PH,,Revenue,HEALTH,GP CHLAMYDIA SCREENING LCS,1076629,105141540,27-Oct-16,170.00,WANDSWORTH MEDICAL CENTRE,SP0007088
WANDSWORTH COUNCIL,PH,,Revenue,HEALTH,GP CHLAMYDIA SCREENING LCS,1077759,105141540,28-Oct-16,60.00,BATTERSEA RISE GROUP PRACTICE H85049,SP0007572
WANDSWORTH COUNCIL,PH,,Revenue,HEALTH,GP CHLAMYDIA SCREENING LCS,1077115,105141540,27-Oct-16,20.00,DR K BEGG H85659,SP0007574
WANDSWORTH COUNCIL,PH,,Revenue,HEALTH,GP CHLAMYDIA SCREENING LCS,1077761,105141540,31-Oct-16,90.00,EARLSFIELD PRACTICE,SP0007581
WANDSWORTH COUNCIL,PH,,Revenue,HEALTH,GP CHLAMYDIA SCREENING LCS,1076628,105141540,27-Oct-16,80.00,SOUTHFIELDS GROUP PRACTICE H85007,SP0007583
WANDSWORTH COUNCIL,PH,,Revenue,HEALTH,GP CHLAMYDIA SCREENING LCS,1076633,105141540,27-Oct-16,250.00,THE FALCON ROAD MEDICAL CENTRE H85002,SP0007953
WANDSWORTH COUNCIL,PH,,Revenue,HEALTH,GP CHLAMYDIA SCREENING LCS,1076625,105141540,27-Oct-16,150.00,TOOTING SOUTH MEDICAL CENTRE,SP0007962
WANDSWORTH COUNCIL,PH,,Revenue,HEALTH,GP CHLAMYDIA SCREENING LCS,1076714,105141540,28-Oct-16,120.00,BROCKLEBANK GROUP PRACTICE,SP0007967
WANDSWORTH COUNCIL,PH,,Revenue,HEALTH,GP CHLAMYDIA SCREENING LCS,1076622,105141540,27-Oct-16,100.00,ELBOROUGH STREET SURGERY H85057,SP0007971
WANDSWORTH COUNCIL,PH,,Revenue,HEALTH,GP CHLAMYDIA SCREENING LCS,1076711,105141540,27-Oct-16,30.00,ST PAULS COTTAGE PRACTICE,SP0007978
WANDSWORTH COUNCIL,PH,,Revenue,HEALTH,GP CHLAMYDIA SCREENING LCS,1076712,105141540,27-Oct-16,20.00,TRIANGLE SURGERY,SP0008056
WANDSWORTH COUNCIL,PH,,Revenue,HEALTH,GP CHLAMYDIA SCREENING LCS,1076620,105141540,27-Oct-16,150.00,CLAPHAM JUNCTION MEDICAL PRACTICE,SP0008135
WANDSWORTH COUNCIL,PH,,Revenue,HEALTH,GP CHLAMYDIA SCREENING LCS,1076630,105141540,28-Oct-16,120.00,HEATHBRIDGE PRACTICE,SP0008179
WANDSWORTH COUNCIL,PH,,Revenue,HEALTH,GP CHLAMYDIA SCREENING LCS,1076623,105141540,27-Oct-16,570.00,THE OPEN DOOR SURGERY H85087,SP0008280
WANDSWORTH COUNCIL,PH,,Revenue,HEALTH,GP CHLAMYDIA SCREENING LCS,1076631,105141540,27-Oct-16,60.00,THE HAIDER PRACTICE H85075,SP0008283
WANDSWORTH COUNCIL,PH,,Revenue,HEALTH,GP CHLAMYDIA SCREENING LCS,1076624,105141540,27-Oct-16,490.00,TOOTING BEC SURGERY,SP0008284
WANDSWORTH COUNCIL,PH,,Revenue,HEALTH,GP CHLAMYDIA SCREENING LCS,1076716,105141540,27-Oct-16,20.00,P AND A KUMAR PRACTICE,SP0008285
WANDSWORTH COUNCIL,PH,,Revenue,HEALTH,GP CHLAMYDIA SCREENING LCS,1076627,105141540,28-Oct-16,50.00,TUDOR LODGE HEALTH CENTRE H85682,SP0008309
WANDSWORTH COUNCIL,PH,,Revenue,HEALTH,GP CHLAMYDIA SCREENING LCS,1076617,105141540,27-Oct-16,90.00,GRAFTON MEDICAL PARTNERS Y02423,SP0008442
WANDSWORTH COUNCIL,PH,,Revenue,HEALTH,HIV RAPID TESTING PILOT,1076713,105141710,27-Oct-16,480.00,BEDFORD HILL FAMILY PRACTICE H85009,SP0002543
WANDSWORTH COUNCIL,PH,,Revenue,HEALTH,HIV RAPID TESTING PILOT,1076619,105141710,28-Oct-16,10.00,CHATFIELD HEALTH CARE,SP0002903
WANDSWORTH COUNCIL,PH,,Revenue,HEALTH,HIV RAPID TESTING PILOT,1076637,105141710,27-Oct-16,60.00,QUEENSTOWN ROAD MEDICAL PRACTICE H85003,SP0003591
WANDSWORTH COUNCIL,PH,,Revenue,HEALTH,HIV RAPID TESTING PILOT,1076635,105141710,28-Oct-16,10.00,PUTNEYMEAD GROUP MEDICAL PRACTICE H85012,SP0006951
WANDSWORTH COUNCIL,PH,,Revenue,HEALTH,HIV RAPID TESTING PILOT,1077759,105141710,28-Oct-16,150.00,BATTERSEA RISE GROUP PRACTICE H85049,SP0007572
WANDSWORTH COUNCIL,PH,,Revenue,HEALTH,HIV RAPID TESTING PILOT,1077115,105141710,27-Oct-16,335.00,DR K BEGG H85659,SP0007574
WANDSWORTH COUNCIL,PH,,Revenue,HEALTH,HIV RAPID TESTING PILOT,1076628,105141710,27-Oct-16,185.00,SOUTHFIELDS GROUP PRACTICE H85007,SP0007583
WANDSWORTH COUNCIL,PH,,Revenue,HEALTH,HIV RAPID TESTING PILOT,1076711,105141710,27-Oct-16,10.00,ST PAULS COTTAGE PRACTICE,SP0007978
WANDSWORTH COUNCIL,PH,,Revenue,HEALTH,HIV RAPID TESTING PILOT,1076623,105141710,27-Oct-16,465.00,THE OPEN DOOR SURGERY H85087,SP0008280
WANDSWORTH COUNCIL,PH,,Revenue,HEALTH,LOCALLY ENHANCED SERVICES,1076715,105341380,28-Oct-16,"3,782.50",BRIDGE LANE GROUP PRACTICE,SP0000516
WANDSWORTH COUNCIL,PH,,Revenue,HEALTH,LOCALLY ENHANCED SERVICES,1076636,105341380,28-Oct-16,"1,301.18",BALHAM PARK SURGERY,SP0000925
WANDSWORTH COUNCIL,PH,,Revenue,HEALTH,LOCALLY ENHANCED SERVICES,1076621,105341380,28-Oct-16,211.82,DR P ILVES T/A DANEBURY SURGERY H85067,SP0002029
WANDSWORTH COUNCIL,PH,,Revenue,HEALTH,LOCALLY ENHANCED SERVICES,1077758,105341380,31-Oct-16,998.58,MAYFIELD SURGERY,SP0002209
WANDSWORTH COUNCIL,PH,,Revenue,HEALTH,LOCALLY ENHANCED SERVICES,1077758,105341380,31-Oct-16,10.19,MAYFIELD SURGERY,SP0002209
WANDSWORTH COUNCIL,PH,,Revenue,HEALTH,LOCALLY ENHANCED SERVICES,1076713,105341380,27-Oct-16,"2,420.00",BEDFORD HILL FAMILY PRACTICE H85009,SP0002543
WANDSWORTH COUNCIL,PH,,Revenue,HEALTH,LOCALLY ENHANCED SERVICES,1076619,105341380,28-Oct-16,"1,270.92",CHATFIELD HEALTH CARE,SP0002903
WANDSWORTH COUNCIL,PH,,Revenue,HEALTH,LOCALLY ENHANCED SERVICES,1076710,105341380,27-Oct-16,"2,965.48",THURLEIGH ROAD PRACTICE H85114,SP0003310
WANDSWORTH COUNCIL,PH,,Revenue,HEALTH,LOCALLY ENHANCED SERVICES,1076637,105341380,27-Oct-16,363.12,QUEENSTOWN ROAD MEDICAL PRACTICE H85003,SP0003591
WANDSWORTH COUNCIL,PH,,Revenue,HEALTH,LOCALLY ENHANCED SERVICES,1076626,105341380,27-Oct-16,"5,991.48",TRINITY MEDICAL CENTRE,SP0003735
WANDSWORTH COUNCIL,PH,,Revenue,HEALTH,LOCALLY ENHANCED SERVICES,1076634,105341380,27-Oct-16,"1,694.56",THE PRACTICE FURZEDOWN,SP0005025
WANDSWORTH COUNCIL,PH,,Revenue,HEALTH,LOCALLY ENHANCED SERVICES,1076632,105341380,27-Oct-16,907.80,THE GREYSWOOD PRACTICE,SP0006936
WANDSWORTH COUNCIL,PH,,Revenue,HEALTH,LOCALLY ENHANCED SERVICES,1076635,105341380,28-Oct-16,"3,994.32",PUTNEYMEAD GROUP MEDICAL PRACTICE H85012,SP0006951
WANDSWORTH COUNCIL,PH,,Revenue,HEALTH,LOCALLY ENHANCED SERVICES,1076635,105341380,28-Oct-16,"1,314.51",PUTNEYMEAD GROUP MEDICAL PRACTICE H85012,SP0006951
WANDSWORTH COUNCIL,PH,,Revenue,HEALTH,LOCALLY ENHANCED SERVICES,1076629,105341380,27-Oct-16,"2,420.80",WANDSWORTH MEDICAL CENTRE,SP0007088
WANDSWORTH COUNCIL,PH,,Revenue,HEALTH,LOCALLY ENHANCED SERVICES,1077759,105341380,28-Oct-16,605.20,BATTERSEA RISE GROUP PRACTICE H85049,SP0007572
WANDSWORTH COUNCIL,PH,,Revenue,HEALTH,LOCALLY ENHANCED SERVICES,1077115,105341380,27-Oct-16,272.34,DR K BEGG H85659,SP0007574
WANDSWORTH COUNCIL,PH,,Revenue,HEALTH,LOCALLY ENHANCED SERVICES,1077761,105341380,31-Oct-16,"2,602.36",EARLSFIELD PRACTICE,SP0007581
WANDSWORTH COUNCIL,PH,,Revenue,HEALTH,LOCALLY ENHANCED SERVICES,1076628,105341380,27-Oct-16,"1,513.00",SOUTHFIELDS GROUP PRACTICE H85007,SP0007583
WANDSWORTH COUNCIL,PH,,Revenue,HEALTH,LOCALLY ENHANCED SERVICES,1076633,105341380,27-Oct-16,"1,059.10",THE FALCON ROAD MEDICAL CENTRE H85002,SP0007953
WANDSWORTH COUNCIL,PH,,Revenue,HEALTH,LOCALLY ENHANCED SERVICES,1076625,105341380,27-Oct-16,877.54,TOOTING SOUTH MEDICAL CENTRE,SP0007962
WANDSWORTH COUNCIL,PH,,Revenue,HEALTH,LOCALLY ENHANCED SERVICES,1076714,105341380,28-Oct-16,"3,903.54",BROCKLEBANK GROUP PRACTICE,SP0007967
WANDSWORTH COUNCIL,PH,,Revenue,HEALTH,LOCALLY ENHANCED SERVICES,1076622,105341380,27-Oct-16,"1,210.00",ELBOROUGH STREET SURGERY H85057,SP0007971
WANDSWORTH COUNCIL,PH,,Revenue,HEALTH,LOCALLY ENHANCED SERVICES,1076711,105341380,27-Oct-16,"1,210.40",ST PAULS COTTAGE PRACTICE,SP0007978
WANDSWORTH COUNCIL,PH,,Revenue,HEALTH,LOCALLY ENHANCED SERVICES,1076712,105341380,27-Oct-16,544.68,TRIANGLE SURGERY,SP0008056
WANDSWORTH COUNCIL,PH,,Revenue,HEALTH,LOCALLY ENHANCED SERVICES,1076620,105341380,27-Oct-16,"1,240.66",CLAPHAM JUNCTION MEDICAL PRACTICE,SP0008135
WANDSWORTH COUNCIL,PH,,Revenue,HEALTH,LOCALLY ENHANCED SERVICES,1077760,105341380,28-Oct-16,692.92,THE ROEHAMPTON SURGERY,SP0008174
WANDSWORTH COUNCIL,PH,,Revenue,HEALTH,LOCALLY ENHANCED SERVICES,1077760,105341380,28-Oct-16,"2,330.02",THE ROEHAMPTON SURGERY,SP0008174
WANDSWORTH COUNCIL,PH,,Revenue,HEALTH,LOCALLY ENHANCED SERVICES,1076630,105341380,28-Oct-16,"3,116.78",HEATHBRIDGE PRACTICE,SP0008179
WANDSWORTH COUNCIL,PH,,Revenue,HEALTH,LOCALLY ENHANCED SERVICES,1076623,105341380,27-Oct-16,"1,755.08",THE OPEN DOOR SURGERY H85087,SP0008280
WANDSWORTH COUNCIL,PH,,Revenue,HEALTH,LOCALLY ENHANCED SERVICES,1076631,105341380,27-Oct-16,635.46,THE HAIDER PRACTICE H85075,SP0008283
WANDSWORTH COUNCIL,PH,,Revenue,HEALTH,LOCALLY ENHANCED SERVICES,1076624,105341380,27-Oct-16,574.94,TOOTING BEC SURGERY,SP0008284
WANDSWORTH COUNCIL,PH,,Revenue,HEALTH,LOCALLY ENHANCED SERVICES,1076716,105341380,27-Oct-16,484.16,P AND A KUMAR PRACTICE,SP0008285
WANDSWORTH COUNCIL,PH,,Revenue,HEALTH,LOCALLY ENHANCED SERVICES,1076627,105341380,28-Oct-16,695.98,TUDOR LODGE HEALTH CENTRE H85682,SP0008309
WANDSWORTH COUNCIL,PH,,Revenue,HEALTH,LOCALLY ENHANCED SERVICES,1076717,105341380,27-Oct-16,"6,233.56",CHARTFIELD SURGERY Y01132,SP0008380
WANDSWORTH COUNCIL,PH,,Revenue,HEALTH,LOCALLY ENHANCED SERVICES,1076617,105341380,27-Oct-16,"3,782.50",GRAFTON MEDICAL PARTNERS Y02423,SP0008442
WANDSWORTH COUNCIL,PH,,Revenue,HEALTH,LOCALLY ENHANCED SERVICES,1076618,105341380,27-Oct-16,907.80,STREATHAM PARK SURGERY H85052,SP0008443
WANDSWORTH COUNCIL,PH,,Revenue,HEALTH,EY OBESITY PREVENT/TREATMENT,1058764,105741220,10-Oct-16,"1,000.00",THE NATIONAL CHILDBIRTH TRUST,SP0007728
WANDSWORTH COUNCIL,PH,,Revenue,HEALTH,PRESCRIBING SERVICES,1073242,106340550,24-Oct-16,54.00,SALASJI LTD FG443 T/A DUMLERS PHARMACY,SP0005003
WANDSWORTH COUNCIL,PH,,Revenue,HEALTH,PRESCRIBING SERVICES,1073242,106340550,24-Oct-16,725.91,SALASJI LTD FG443 T/A DUMLERS PHARMACY,SP0005003
WANDSWORTH COUNCIL,PH,,Revenue,HEALTH,PRESCRIBING SERVICES,1073066,106340550,24-Oct-16,576.86,NSK LTD,SP0007000
WANDSWORTH COUNCIL,PH,,Revenue,HEALTH,PRESCRIBING SERVICES,1073066,106340550,24-Oct-16,34.00,NSK LTD,SP0007000
WANDSWORTH COUNCIL,PH,,Revenue,HEALTH,PRESCRIBING SERVICES,1059041,106340550,05-Oct-16,792.72,PATEL JG & KG LLP T/A AURA PHARMAC FV302,SP0007457
WANDSWORTH COUNCIL,PH,,Revenue,HEALTH,PRESCRIBING SERVICES,1059041,106340550,05-Oct-16,70.00,PATEL JG & KG LLP T/A AURA PHARMAC FV302,SP0007457
WANDSWORTH COUNCIL,PH,,Revenue,HEALTH,PRESCRIBING SERVICES,1059066,106340550,05-Oct-16,752.93,PEARL CHEMIST LTD FDV93 T/A LORDS PHARMA,SP0008419
WANDSWORTH COUNCIL,PH,,Revenue,HEALTH,PRESCRIBING SERVICES,1059066,106340550,05-Oct-16,56.00,PEARL CHEMIST LTD FDV93 T/A LORDS PHARMA,SP0008419
WANDSWORTH COUNCIL,PH,,Revenue,HEALTH,PRESCRIBING SERVICES,1073249,106340550,24-Oct-16,748.52,PEARL CHEMIST LTD FDV93 T/A LORDS PHARMA,SP0008419
WANDSWORTH COUNCIL,PH,,Revenue,HEALTH,PRESCRIBING SERVICES,1073249,106340550,24-Oct-16,56.00,PEARL CHEMIST LTD FDV93 T/A LORDS PHARMA,SP0008419
WANDSWORTH COUNCIL,PH,,Revenue,HEALTH,GP LCS CONTRACTS,1076715,106341520,28-Oct-16,560.00,BRIDGE LANE GROUP PRACTICE,SP0000516
WANDSWORTH COUNCIL,PH,,Revenue,HEALTH,GP LCS CONTRACTS,1076636,106341520,28-Oct-16,70.00,BALHAM PARK SURGERY,SP0000925
WANDSWORTH COUNCIL,PH,,Revenue,HEALTH,GP LCS CONTRACTS,1076713,106341520,27-Oct-16,630.00,BEDFORD HILL FAMILY PRACTICE H85009,SP0002543
WANDSWORTH COUNCIL,PH,,Revenue,HEALTH,GP LCS CONTRACTS,1076619,106341520,28-Oct-16,350.00,CHATFIELD HEALTH CARE,SP0002903
WANDSWORTH COUNCIL,PH,,Revenue,HEALTH,GP LCS CONTRACTS,1076637,106341520,27-Oct-16,350.00,QUEENSTOWN ROAD MEDICAL PRACTICE H85003,SP0003591
WANDSWORTH COUNCIL,PH,,Revenue,HEALTH,GP LCS CONTRACTS,1076634,106341520,27-Oct-16,70.00,THE PRACTICE FURZEDOWN,SP0005025
WANDSWORTH COUNCIL,PH,,Revenue,HEALTH,GP LCS CONTRACTS,1076635,106341520,28-Oct-16,490.00,PUTNEYMEAD GROUP MEDICAL PRACTICE H85012,SP0006951
WANDSWORTH COUNCIL,PH,,Revenue,HEALTH,GP LCS CONTRACTS,1076629,106341520,27-Oct-16,350.00,WANDSWORTH MEDICAL CENTRE,SP0007088
WANDSWORTH COUNCIL,PH,,Revenue,HEALTH,GP LCS CONTRACTS,1077115,106341520,27-Oct-16,140.00,DR K BEGG H85659,SP0007574
WANDSWORTH COUNCIL,PH,,Revenue,HEALTH,GP LCS CONTRACTS,1077761,106341520,31-Oct-16,700.00,EARLSFIELD PRACTICE,SP0007581
WANDSWORTH COUNCIL,PH,,Revenue,HEALTH,GP LCS CONTRACTS,1076628,106341520,27-Oct-16,70.00,SOUTHFIELDS GROUP PRACTICE H85007,SP0007583
WANDSWORTH COUNCIL,PH,,Revenue,HEALTH,GP LCS CONTRACTS,1076633,106341520,27-Oct-16,770.00,THE FALCON ROAD MEDICAL CENTRE H85002,SP0007953
WANDSWORTH COUNCIL,PH,,Revenue,HEALTH,GP LCS CONTRACTS,1076625,106341520,27-Oct-16,420.00,TOOTING SOUTH MEDICAL CENTRE,SP0007962
WANDSWORTH COUNCIL,PH,,Revenue,HEALTH,GP LCS CONTRACTS,1077760,106341520,28-Oct-16,70.00,THE ROEHAMPTON SURGERY,SP0008174
WANDSWORTH COUNCIL,PH,,Revenue,HEALTH,GP LCS CONTRACTS,1076630,106341520,28-Oct-16,350.00,HEATHBRIDGE PRACTICE,SP0008179
WANDSWORTH COUNCIL,PH,,Revenue,HEALTH,GP LCS CONTRACTS,1076631,106341520,27-Oct-16,140.00,THE HAIDER PRACTICE H85075,SP0008283
WANDSWORTH COUNCIL,PH,,Revenue,HEALTH,GP LCS CONTRACTS,1076627,106341520,28-Oct-16,280.00,TUDOR LODGE HEALTH CENTRE H85682,SP0008309
WANDSWORTH COUNCIL,PH,,Revenue,HEALTH,GP LCS CONTRACTS,1076717,106341520,27-Oct-16,70.00,CHARTFIELD SURGERY Y01132,SP0008380
WANDSWORTH COUNCIL,PH,,Revenue,HEALTH,GP LCS CONTRACTS,1076618,106341520,27-Oct-16,70.00,STREATHAM PARK SURGERY H85052,SP0008443
WANDSWORTH COUNCIL,PH,,Revenue,HEALTH,CVD PREVENTION,1036729,106341940,10-Oct-16,"11,500.00",SOUTH WEST LONDON & ST GEORGES MENTAL HE,SP0000358
WANDSWORTH COUNCIL,PH,,Revenue,VOL ASS,THIRD PARTY PYMT - VOL ASS,1059174,107648090,19-Oct-16,"6,200.00",THINKING WORKS,SP0011280
WANDSWORTH COUNCIL,PH,,Revenue,SERVICES,PROJECT WORK,1061632,108034800,19-Oct-16,"9,585.00",STORM FAMILY CENTRE LTD,SP0002613
WANDSWORTH COUNCIL,PH,,Revenue,SERVICES,PROJECT WORK,1055119,108034800,04-Oct-16,"3,806.65",REGENERATE.COM,SP0002638
WANDSWORTH COUNCIL,PH,,Revenue,VOL ASS,WANDSWORTH VICTIM SUPPORT,1059030,108148050,05-Oct-16,"10,000.00",VICTIM SUPPORT,SP0002027
WANDSWORTH COUNCIL,NGF HS,,Revenue,SERVICES,HIPS,1068767,110034460,18-Oct-16,600.00,GORDON BROWN,SP0002176
WANDSWORTH COUNCIL,NGF CS,,Revenue,PRIVATE,REFUSE COLLECTN & PEST CONTROL,1061392,111045500,07-Oct-16,"1,202.69",SITA UK LTD,SP0000507
WANDSWORTH COUNCIL,NGF CS,,Revenue,PRIVATE,REFUSE COLLECTN & PEST CONTROL,1061398,111045500,07-Oct-16,534.79,SITA UK LTD,SP0000507
WANDSWORTH COUNCIL,NGF CS,,Revenue,PRIVATE,REFUSE COLLECTN & PEST CONTROL,1064473,112145500,17-Oct-16,275.77,SITA UK LTD,SP0000507
WANDSWORTH COUNCIL,NGF CS,,Revenue,PRIVATE,REFUSE COLLECTN & PEST CONTROL,1064473,112245500,17-Oct-16,415.15,SITA UK LTD,SP0000507
WANDSWORTH COUNCIL,NGF CS,,Revenue,PRIVATE,REFUSE COLLECTN & PEST CONTROL,1075793,112345500,27-Oct-16,534.79,SITA UK LTD,SP0000507
WANDSWORTH COUNCIL,NGF CS,,Revenue,PRIVATE,REFUSE COLLECTN & PEST CONTROL,1064472,112945500,17-Oct-16,690.83,SITA UK LTD,SP0000507
WANDSWORTH COUNCIL,NGF CS,,Revenue,CLEANING & DOMESTIC SUPPLIES,CLEANING & DOMESTIC SUPPLIES,1057776,113813010,03-Oct-16,"2,105.35",WESSEX PRODUCTS (LEASING) LTD,SP0002972
WANDSWORTH COUNCIL,NGF CS,,Revenue,CLEANING & DOMESTIC SUPPLIES,CLEANING CONTRACT,1073279,113813020,24-Oct-16,"47,296.72",KINGDOM SECURITY LTD,SP0011210
WANDSWORTH COUNCIL,NGF CS,,Revenue,CLEANING & DOMESTIC SUPPLIES,WINDOW CLEANING,1077724,113813060,28-Oct-16,"5,433.25",PARKERS CLEANING CONTRACTORS LTD,SP0002677
WANDSWORTH COUNCIL,NGF CS,,Revenue,"EQUIPMENT, FURNITURE & MATS","EQUIPMENT, FURNITURE & MATS",1059640,114030000,06-Oct-16,638.16,DH CROFTS LTD,SP0000076
WANDSWORTH COUNCIL,NGF CS,,Revenue,"EQUIPMENT, FURNITURE & MATS","EQUIPMENT, FURNITURE & MATS",1033888,114030000,20-Oct-16,"7,476.00",SOUND ADVICE P.A. INSTALLATION LTD,SP0002231
WANDSWORTH COUNCIL,NGF CS,,Revenue,"EQUIPMENT, FURNITURE & MATS","EQUIPMENT, FURNITURE & MATS",1033904,114030000,20-Oct-16,"2,269.00",SOUND ADVICE P.A. INSTALLATION LTD,SP0002231
WANDSWORTH COUNCIL,NGF CS,,Revenue,CATERING,CATERING,1069910,114031000,20-Oct-16,150.18,OASIS PRODUCTS VENDING SERVICES LIMITED,SP0002441
WANDSWORTH COUNCIL,NGF CS,,Revenue,CATERING,CATERING,1069910,114031000,20-Oct-16,416.12,OASIS PRODUCTS VENDING SERVICES LIMITED,SP0002441
WANDSWORTH COUNCIL,NGF CS,FINANCE,Revenue,DIRECT2,CAP COST-PENSION FUND BENEFITS,1072633,114100590,20-Oct-16,543.24,WANDSWORTH COUNCIL PENSION FUND,SP0007975
WANDSWORTH COUNCIL,NGF CS,,Revenue,INDIRECT,TRAINING - APPROVED QUALS,1073326,114100760,24-Oct-16,750.00,CIPFA,SP0006498
WANDSWORTH COUNCIL,NGF CS,,Revenue,MISC,MISCELLANEOUS EXPENSES,1058828,114138500,04-Oct-16,"7,756.00",DOWNS FLOORING LTD,SP0000833
WANDSWORTH COUNCIL,NGF CS,,Revenue,MISC,MISCELLANEOUS EXPENSES,1058828,114138500,04-Oct-16,"1,000.00",DOWNS FLOORING LTD,SP0000833
WANDSWORTH COUNCIL,NGF CS,,Revenue,PRIVATE,GENERAL CONTRACT WORK,1077312,114145370,27-Oct-16,578.92,DH CROFTS LTD,SP0000076
WANDSWORTH COUNCIL,NGF CS,,Revenue,GROUNDS MAINTENANCE,"REPS, ALTS & MTCE-GROUNDS",1058920,114912210,04-Oct-16,658.12,T BROWN GROUP LTD,SP0001050
WANDSWORTH COUNCIL,NGF CS,,Revenue,"REPAIRS, ALTERATIONS & MTCE","REPS, ALTS & MTCE-BUILDINGS",1059599,115610000,06-Oct-16,579.39,DH CROFTS LTD,SP0000076
WANDSWORTH COUNCIL,NGF CS,,Revenue,"REPAIRS, ALTERATIONS & MTCE","REPS, ALTS & MTCE-BUILDINGS",1072557,115610000,20-Oct-16,194.03,DEBA UK LTD,SP0005811
WANDSWORTH COUNCIL,NGF CS,FINANCE,Revenue,DIRECT2,CAP COST-PENSION FUND BENEFITS,1065187,120100590,14-Oct-16,"12,215.39",WANDSWORTH COUNCIL PENSION FUND,SP0007975
WANDSWORTH COUNCIL,NGF CS,,Revenue,INDIRECT,TRAINING - APPROVED QUALS,1065382,120100760,18-Oct-16,731.25,SOCIAL HOUSING LAW ASSOCIATION,SP0003777
WANDSWORTH COUNCIL,NGF CS,,Revenue,INDIRECT,TRAINING - EXTERNAL COURSES,1068662,120100770,20-Oct-16,900.00,ASSOCIATION OF LAWYERS FOR CHILDREN,SP0007821
WANDSWORTH COUNCIL,NGF CS,,Revenue,SERVICES,PRACTICE CERTIFICATES,1068771,120134780,20-Oct-16,644.00,THE LAW SOCIETY,SP0003358
WANDSWORTH COUNCIL,NGF CS,,Revenue,COMMUNICATIONS & COMP,I.T. EQUIPMENT & MAINTENANCE,1076588,120136210,27-Oct-16,853.42,FATHOM,SP0004973
WANDSWORTH COUNCIL,NGF CS,,Revenue,OTHER AGENCIES,DISBURSEMENTS,1069913,120643250,19-Oct-16,"2,652.00",ASHFORDS,SP0002634
WANDSWORTH COUNCIL,NGF CS,,Revenue,OTHER AGENCIES,DISBURSEMENTS,1069913,120643250,19-Oct-16,"4,054.80",ASHFORDS,SP0002634
WANDSWORTH COUNCIL,NGF CS,,Revenue,OTHER AGENCIES,DISBURSEMENTS,1070322,120643250,21-Oct-16,"1,000.00",A S B LAW,SP0003196
WANDSWORTH COUNCIL,NGF CS,,Revenue,OTHER AGENCIES,DISBURSEMENTS,1076606,120643250,27-Oct-16,425.10,BEVERLEY F NUNNERY & CO,SP0003376
WANDSWORTH COUNCIL,NGF CS,,Revenue,OTHER AGENCIES,DISBURSEMENTS,1061390,120643250,07-Oct-16,960.00,SHARPE PRITCHARD LLP,SP0003677
WANDSWORTH COUNCIL,NGF CS,,Revenue,OTHER AGENCIES,DISBURSEMENTS,1061390,120643250,07-Oct-16,"22,400.00",SHARPE PRITCHARD LLP,SP0003677
WANDSWORTH COUNCIL,NGF CS,,Revenue,OTHER AGENCIES,DISBURSEMENTS,1061391,120643250,07-Oct-16,"1,345.00",SHARPE PRITCHARD LLP,SP0003677
WANDSWORTH COUNCIL,NGF CS,,Revenue,OTHER AGENCIES,DISBURSEMENTS,1061391,120643250,07-Oct-16,"4,390.00",SHARPE PRITCHARD LLP,SP0003677
WANDSWORTH COUNCIL,NGF CS,,Revenue,OTHER AGENCIES,DISBURSEMENTS,1077520,120643250,28-Oct-16,"1,190.00",SHARPE PRITCHARD LLP,SP0003677
WANDSWORTH COUNCIL,NGF CS,,Revenue,OTHER AGENCIES,DISBURSEMENTS,1064018,120643250,12-Oct-16,"2,500.00",CORNERSTONE BACS,SP0004477
WANDSWORTH COUNCIL,NGF CS,,Revenue,OTHER AGENCIES,DISBURSEMENTS,1064019,120643250,12-Oct-16,600.00,CORNERSTONE BACS,SP0004477
WANDSWORTH COUNCIL,NGF CS,,Revenue,OTHER AGENCIES,DISBURSEMENTS,1059036,120643250,05-Oct-16,650.00,4 BRICK COURT MANAGEMENT LIMITED,SP0007380
WANDSWORTH COUNCIL,NGF CS,,Revenue,OTHER AGENCIES,DISBURSEMENTS,1059038,120643250,05-Oct-16,"4,100.00",4 BRICK COURT MANAGEMENT LIMITED,SP0007380
WANDSWORTH COUNCIL,NGF CS,,Revenue,OTHER AGENCIES,DISBURSEMENTS,1059039,120643250,05-Oct-16,"1,175.00",4 BRICK COURT MANAGEMENT LIMITED,SP0007380
WANDSWORTH COUNCIL,NGF CS,,Revenue,OTHER AGENCIES,DISBURSEMENTS,1064226,120643250,13-Oct-16,550.00,4 BRICK COURT MANAGEMENT LIMITED,SP0007380
WANDSWORTH COUNCIL,NGF CS,,Revenue,OTHER AGENCIES,DISBURSEMENTS,1064227,120643250,13-Oct-16,500.00,4 BRICK COURT MANAGEMENT LIMITED,SP0007380
WANDSWORTH COUNCIL,NGF CS,,Revenue,OTHER AGENCIES,DISBURSEMENTS,1064228,120643250,13-Oct-16,800.00,4 BRICK COURT MANAGEMENT LIMITED,SP0007380
WANDSWORTH COUNCIL,NGF CS,,Revenue,OTHER AGENCIES,DISBURSEMENTS,1064229,120643250,13-Oct-16,700.00,4 BRICK COURT MANAGEMENT LIMITED,SP0007380
WANDSWORTH COUNCIL,NGF CS,,Revenue,OTHER AGENCIES,DISBURSEMENTS,1070266,120643250,20-Oct-16,"1,125.00",4 BRICK COURT MANAGEMENT LIMITED,SP0007380
WANDSWORTH COUNCIL,NGF CS,,Revenue,OTHER AGENCIES,DISBURSEMENTS,1070268,120643250,20-Oct-16,425.00,4 BRICK COURT MANAGEMENT LIMITED,SP0007380
WANDSWORTH COUNCIL,NGF CS,,Revenue,OTHER AGENCIES,DISBURSEMENTS,1070270,120643250,20-Oct-16,"3,625.00",4 BRICK COURT MANAGEMENT LIMITED,SP0007380
WANDSWORTH COUNCIL,NGF CS,,Revenue,OTHER AGENCIES,DISBURSEMENTS,1070314,120643250,20-Oct-16,800.00,4 BRICK COURT MANAGEMENT LIMITED,SP0007380
WANDSWORTH COUNCIL,NGF CS,,Revenue,OTHER AGENCIES,DISBURSEMENTS,1073075,120643250,21-Oct-16,"1,300.00",4 BRICK COURT MANAGEMENT LIMITED,SP0007380
WANDSWORTH COUNCIL,NGF CS,,Revenue,OTHER AGENCIES,DISBURSEMENTS,1073076,120643250,21-Oct-16,500.00,4 BRICK COURT MANAGEMENT LIMITED,SP0007380
WANDSWORTH COUNCIL,NGF CS,,Revenue,OTHER AGENCIES,DISBURSEMENTS,1076602,120643250,27-Oct-16,550.00,4 BRICK COURT MANAGEMENT LIMITED,SP0007380
WANDSWORTH COUNCIL,NGF CS,,Revenue,OTHER AGENCIES,DISBURSEMENTS,1076603,120643250,27-Oct-16,"1,300.00",4 BRICK COURT MANAGEMENT LIMITED,SP0007380
WANDSWORTH COUNCIL,NGF CS,,Revenue,OTHER AGENCIES,DISBURSEMENTS,1076604,120643250,27-Oct-16,"2,125.00",4 BRICK COURT MANAGEMENT LIMITED,SP0007380
WANDSWORTH COUNCIL,NGF CS,,Revenue,OTHER AGENCIES,DISBURSEMENTS,1061383,120643250,10-Oct-16,194.81,JORDANS PROPERTY SERVICES,SP0008948
WANDSWORTH COUNCIL,NGF CS,,Revenue,OTHER AGENCIES,DISBURSEMENTS,1061383,120643250,10-Oct-16,470.00,JORDANS PROPERTY SERVICES,SP0008948
WANDSWORTH COUNCIL,NGF CS,,Revenue,OTHER AGENCIES,DISBURSEMENTS,1059032,120643250,05-Oct-16,762.50,FIELD COURT CHAMBERS,SP0009008
WANDSWORTH COUNCIL,NGF CS,,Revenue,OTHER AGENCIES,DISBURSEMENTS,1073084,120643250,21-Oct-16,500.00,FIELD COURT CHAMBERS,SP0009008
WANDSWORTH COUNCIL,NGF CS,,Revenue,OTHER AGENCIES,DISBURSEMENTS,1063988,120643250,12-Oct-16,490.50,LEXTOX,SP0009034
WANDSWORTH COUNCIL,NGF CS,,Revenue,OTHER AGENCIES,DISBURSEMENTS,1063989,120643250,12-Oct-16,472.00,LEXTOX,SP0009034
WANDSWORTH COUNCIL,NGF CS,,Revenue,OTHER AGENCIES,DISBURSEMENTS,1059031,120643250,05-Oct-16,"1,600.00",1 GARDEN COURT CHAMBERS,SP0009291
WANDSWORTH COUNCIL,NGF CS,,Revenue,OTHER AGENCIES,DISBURSEMENTS,1070302,120643250,20-Oct-16,750.00,1 GARDEN COURT CHAMBERS,SP0009291
WANDSWORTH COUNCIL,NGF CS,,Revenue,OTHER AGENCIES,DISBURSEMENTS,1073074,120643250,21-Oct-16,877.10,1 GARDEN COURT CHAMBERS,SP0009291
WANDSWORTH COUNCIL,NGF CS,,Revenue,OTHER AGENCIES,DISBURSEMENTS,1075725,120643250,27-Oct-16,850.00,42 BEDFORD ROW CHAMBERS,SP0009440
WANDSWORTH COUNCIL,NGF CS,,Revenue,OTHER AGENCIES,DISBURSEMENTS,1064236,120643250,13-Oct-16,514.80,PARSONS MARSHALL PSYCHOLOGY LTD,SP0009444
WANDSWORTH COUNCIL,NGF CS,,Revenue,OTHER AGENCIES,DISBURSEMENTS,1076600,120643250,27-Oct-16,780.00,PARSONS MARSHALL PSYCHOLOGY LTD,SP0009444
WANDSWORTH COUNCIL,NGF CS,,Revenue,OTHER AGENCIES,DISBURSEMENTS,1057818,120643250,03-Oct-16,"2,000.00",FOURTEEN,SP0009555
WANDSWORTH COUNCIL,NGF CS,,Revenue,OTHER AGENCIES,DISBURSEMENTS,1059034,120643250,05-Oct-16,720.00,FOURTEEN,SP0009555
WANDSWORTH COUNCIL,NGF CS,,Revenue,OTHER AGENCIES,DISBURSEMENTS,1063992,120643250,12-Oct-16,425.00,FOURTEEN,SP0009555
WANDSWORTH COUNCIL,NGF CS,,Revenue,OTHER AGENCIES,DISBURSEMENTS,1063993,120643250,12-Oct-16,500.00,FOURTEEN,SP0009555
WANDSWORTH COUNCIL,NGF CS,,Revenue,OTHER AGENCIES,DISBURSEMENTS,1064014,120643250,12-Oct-16,750.00,FOURTEEN,SP0009555
WANDSWORTH COUNCIL,NGF CS,,Revenue,OTHER AGENCIES,DISBURSEMENTS,1064086,120643250,13-Oct-16,750.00,FOURTEEN,SP0009555
WANDSWORTH COUNCIL,NGF CS,,Revenue,OTHER AGENCIES,DISBURSEMENTS,1065400,120643250,18-Oct-16,500.00,FOURTEEN,SP0009555
WANDSWORTH COUNCIL,NGF CS,,Revenue,OTHER AGENCIES,DISBURSEMENTS,1070263,120643250,20-Oct-16,"3,400.00",FOURTEEN,SP0009555
WANDSWORTH COUNCIL,NGF CS,,Revenue,OTHER AGENCIES,DISBURSEMENTS,1070264,120643250,20-Oct-16,515.00,FOURTEEN,SP0009555
WANDSWORTH COUNCIL,NGF CS,,Revenue,OTHER AGENCIES,DISBURSEMENTS,1070309,120643250,20-Oct-16,500.00,FOURTEEN,SP0009555
WANDSWORTH COUNCIL,NGF CS,,Revenue,OTHER AGENCIES,DISBURSEMENTS,1070310,120643250,20-Oct-16,650.00,FOURTEEN,SP0009555
WANDSWORTH COUNCIL,NGF CS,,Revenue,OTHER AGENCIES,DISBURSEMENTS,1070311,120643250,20-Oct-16,600.00,FOURTEEN,SP0009555
WANDSWORTH COUNCIL,NGF CS,,Revenue,OTHER AGENCIES,DISBURSEMENTS,1070312,120643250,20-Oct-16,815.00,FOURTEEN,SP0009555
WANDSWORTH COUNCIL,NGF CS,,Revenue,OTHER AGENCIES,DISBURSEMENTS,1073072,120643250,21-Oct-16,"1,000.00",FOURTEEN,SP0009555
WANDSWORTH COUNCIL,NGF CS,,Revenue,OTHER AGENCIES,DISBURSEMENTS,1070308,120643250,20-Oct-16,675.00,DR RODGER KENNEDY,SP0009927
WANDSWORTH COUNCIL,NGF CS,,Revenue,OTHER AGENCIES,DISBURSEMENTS,1057821,120643250,03-Oct-16,500.00,FIVE ST ANDREWS HILL,SP0010537
WANDSWORTH COUNCIL,NGF CS,,Revenue,OTHER AGENCIES,DISBURSEMENTS,1073071,120643250,21-Oct-16,"1,175.00",1 KING'S BENCH WALK,SP0011279
WANDSWORTH COUNCIL,NGF CS,,Revenue,OTHER AGENCIES,DISBURSEMENTS,1068649,120643250,18-Oct-16,"4,775.00",DRYSTONE CHAMBERS,SP0011287
WANDSWORTH COUNCIL,NGF CS,,Revenue,OTHER AGENCIES,DISBURSEMENTS,1068650,120643250,18-Oct-16,611.24,DRYSTONE CHAMBERS,SP0011287
WANDSWORTH COUNCIL,NGF CS,,Revenue,PRIVATE,CONTRACT 4- LITIGATION,1062543,120646160,28-Oct-16,"2,205.54",ASHFORDS,SP0002634
WANDSWORTH COUNCIL,NGF CS,,Revenue,PRIVATE,CONTRACT 4- LITIGATION,1062544,120646160,10-Oct-16,"7,058.51",ASHFORDS,SP0002634
WANDSWORTH COUNCIL,NGF CS,,Revenue,PRIVATE,CONTRACT 4- LITIGATION,1059301,120646160,06-Oct-16,"6,321.76",SHARPE PRITCHARD LLP,SP0003677
WANDSWORTH COUNCIL,NGF CS,,Revenue,PRIVATE,CONTRACT 4- LITIGATION,1077716,120646160,28-Oct-16,"21,198.46",SHARPE PRITCHARD LLP,SP0003677
WANDSWORTH COUNCIL,NGF CS,,Revenue,PRIVATE,"CONTRACT 6- HWYS, PLAN ETC",1068705,120646170,19-Oct-16,"8,474.98",ASHFORDS,SP0002634
WANDSWORTH COUNCIL,NGF CS,,Revenue,PRIVATE,"CONTRACT 6- HWYS, PLAN ETC",1061628,120646170,10-Oct-16,687.50,A S B LAW,SP0003196
WANDSWORTH COUNCIL,NGF CS,,Revenue,PRIVATE,LOT 2 - GEN VALUATIONS,1055107,120746250,28-Oct-16,"1,240.00",LAMBERT SMITH HAMPTON,SP0002515
WANDSWORTH COUNCIL,NGF CS,,Revenue,PRIVATE,LOT 4 - STAT VALS & PROP ADVIC,1070316,120746260,20-Oct-16,"1,984.00",LAMBERT SMITH HAMPTON,SP0002515
WANDSWORTH COUNCIL,NGF CS,,Revenue,PRIVATE,LOT 4 - STAT VALS & PROP ADVIC,1058712,120746260,19-Oct-16,"2,340.00",G L HEARN LTD,SP0009602
WANDSWORTH COUNCIL,NGF CS,,Revenue,PRIVATE,LOT 4 - STAT VALS & PROP ADVIC,1061661,120746260,19-Oct-16,"12,475.50",G L HEARN LTD,SP0009602
WANDSWORTH COUNCIL,NGF CS,,Revenue,INDIRECT,TRAINING - EXTERNAL COURSES,1077725,120800770,31-Oct-16,550.00,CAST MEDIA GROUP LTD,SP0011346
WANDSWORTH COUNCIL,NGF CS,,Revenue,PRINTING STAT & GEN OFFICE EXP,OUTWORK - LITHO,1074219,121333590,24-Oct-16,924.30,KALL KWIK,SP0003093
WANDSWORTH COUNCIL,NGF CS,,Revenue,PRINTING STAT & GEN OFFICE EXP,OUTWORK - LITHO,1074223,121333590,24-Oct-16,515.85,SLS PRINT,SP0006470
WANDSWORTH COUNCIL,NGF CS,,Revenue,PRINTING STAT & GEN OFFICE EXP,URGENT PRINT CONTRACT,1074220,121333620,24-Oct-16,"1,454.23",KALL KWIK,SP0003093
WANDSWORTH COUNCIL,NGF CS,,Revenue,MISC,MISCELLANEOUS EXPENSES,1074221,121338500,24-Oct-16,"3,725.00",LONDON LETTERBOX MARKETING,SP0000546
WANDSWORTH COUNCIL,NGF CS,,Revenue,MISC,MISCELLANEOUS EXPENSES,1074229,121338500,24-Oct-16,"1,200.00",SUSTRANS,SP0005855
WANDSWORTH COUNCIL,NGF CS,,Revenue,PRINTING STAT & GEN OFFICE EXP,PAPER - QUICKPRINT,1065407,121433370,19-Oct-16,684.42,CANON (UK) LTD,SP0000262
WANDSWORTH COUNCIL,NGF CDC,,Revenue,PRINTING STAT & GEN OFFICE EXP,PUBLIC RELATIONS,1073267,122033460,24-Oct-16,780.00,TONI MARSHALL,SP0003984
WANDSWORTH COUNCIL,NGF CDC,,Revenue,PRINTING STAT & GEN OFFICE EXP,PUBLIC RELATIONS,1064073,12203346K9018A,13-Oct-16,"8,195.00",LONDON LETTERBOX MARKETING,SP0000546
WANDSWORTH COUNCIL,NGF CDC,,Revenue,PRINTING STAT & GEN OFFICE EXP,PUBLICITY,1061635,122033470,12-Oct-16,649.00,DOTMAILER LTD,SP0006264
WANDSWORTH COUNCIL,NGF CS,,Revenue,"EQUIPMENT, FURNITURE & MATS",EQUIP.FURN & MATS-REPS & MTCE,1064121,122130010,13-Oct-16,"1,558.46",NEOPOST LTD,SP0003054
WANDSWORTH COUNCIL,NGF CS,,Revenue,INDIRECT,IN-SERVICE TRAINING-SLA,1059166,123000740,05-Oct-16,450.00,TATTERSALL TRAINING,SP0002713
WANDSWORTH COUNCIL,NGF CS,,Revenue,INDIRECT,IN-SERVICE TRAINING-SLA,1077101,123000740,27-Oct-16,"1,320.00",VERITY BARTON,SP0003778
WANDSWORTH COUNCIL,NGF CS,,Revenue,INDIRECT,IN-SERVICE TRAINING-SLA,1069908,123000740,25-Oct-16,"7,184.00",THE KNOWLEDGE ACADEMY LIMITED,SP0005118
WANDSWORTH COUNCIL,NGF CS,,Revenue,INDIRECT,IN-SERVICE TRAINING-SLA,1059052,123000740,05-Oct-16,650.00,FIRST RESPONSE TRAINING,SP0005439
WANDSWORTH COUNCIL,NGF CS,,Revenue,INDIRECT,IN-SERVICE TRAINING-SLA,1057817,123000740,03-Oct-16,"1,200.00",TRAINING OUTSOURCE LIMITED,SP0008861
WANDSWORTH COUNCIL,NGF CS,,Revenue,INDIRECT,CHILDCARE VOUCHERS,1063870,123200650,12-Oct-16,654.98,COMPUTERSHARE VOUCHER SERVICES,SP0003037
WANDSWORTH COUNCIL,NGF CS,,Revenue,INDIRECT,CHILDCARE VOUCHERS,1076590,123200650,27-Oct-16,94.11,COMPUTERSHARE VOUCHER SERVICES,SP0003037
WANDSWORTH COUNCIL,NGF CS,,Revenue,CATERING,FOOD & CONSUMABLES,1058667,123231040,28-Oct-16,995.00,SHARE COMMUNITY,SP0000329
WANDSWORTH COUNCIL,NGF CS,,Revenue,PRINTING STAT & GEN OFFICE EXP,PRINTING AND STATIONERY,1058680,123233420,04-Oct-16,615.00,DANWOOD GROUP LTD,SP0002739
WANDSWORTH COUNCIL,NGF CS,,Revenue,PRINTING STAT & GEN OFFICE EXP,PRINTING AND STATIONERY,1058682,123233420,06-Oct-16,461.25,DANWOOD GROUP LTD,SP0002739
WANDSWORTH COUNCIL,NGF CS,,Revenue,SERVICES,OHS SESSIONAL DOCTOR,1064005,123234690,12-Oct-16,"4,083.12",HJM ASSOCIATES,SP0003667
WANDSWORTH COUNCIL,NGF CS,,Revenue,MISC,MISCELLANEOUS EXPENSES,1064190,123238500,13-Oct-16,"1,379.75",EDENRED UK GROUP LTD,SP0000238
WANDSWORTH COUNCIL,NGF CDC,,Revenue,COMMUNICATIONS & COMP,COMMUNICATIONS - POSTAGE,1077787,124136000,28-Oct-16,"2,307.99",ROYAL MAIL,SP0001067
WANDSWORTH COUNCIL,NGF CDC,,Revenue,COMMUNICATIONS & COMP,I.T. EQUIPMENT & MAINTENANCE,1033903,124236210,20-Oct-16,"1,390.00",SOUND ADVICE P.A. INSTALLATION LTD,SP0002231
WANDSWORTH COUNCIL,NGF CS,,Revenue,PRINTING STAT & GEN OFFICE EXP,PRINTING AND STATIONERY,1060448,124733420,07-Oct-16,"1,040.00",OASIS PRODUCTS VENDING SERVICES LIMITED,SP0002441
WANDSWORTH COUNCIL,NGF CS,,Revenue,PRINTING STAT & GEN OFFICE EXP,PRINTING AND STATIONERY,1060448,124733420,07-Oct-16,26.45,OASIS PRODUCTS VENDING SERVICES LIMITED,SP0002441
WANDSWORTH COUNCIL,NGF CS,,Revenue,PRINTING STAT & GEN OFFICE EXP,PRINTING AND STATIONERY,1060448,124733420,07-Oct-16,26.45,OASIS PRODUCTS VENDING SERVICES LIMITED,SP0002441
WANDSWORTH COUNCIL,NGF CS,,Revenue,DIRECT,SALARIES - MONTHLY,1038884,126000010,13-Oct-16,"5,500.00",QA LTD,SP0008675
WANDSWORTH COUNCIL,NGF CS,,Revenue,DIRECT,SALARIES - MONTHLY,1038884,126000010,13-Oct-16,"5,500.00",QA LTD,SP0008675
WANDSWORTH COUNCIL,NGF CS,,Revenue,COMMUNICATIONS & COMP,I.T. EQUIPMENT & MAINTENANCE,1073059,126036210,21-Oct-16,"1,616.25",XMA LIMITED,SP0000625
WANDSWORTH COUNCIL,NGF CS,,Revenue,COMMUNICATIONS & COMP,I.T. EQUIPMENT & MAINTENANCE,1070328,126036210,21-Oct-16,785.00,KINGSFIELD COMPUTER PRODUCTS LTD,SP0001948
WANDSWORTH COUNCIL,NGF CS,,Revenue,COMMUNICATIONS & COMP,I.T. EQUIPMENT & MAINTENANCE,1063443,126036210,26-Oct-16,95.00,DANWOOD GROUP LTD,SP0002739
WANDSWORTH COUNCIL,NGF CS,,Revenue,COMMUNICATIONS & COMP,I.T. EQUIPMENT & MAINTENANCE,1063443,126036210,26-Oct-16,75.00,DANWOOD GROUP LTD,SP0002739
WANDSWORTH COUNCIL,NGF CS,,Revenue,COMMUNICATIONS & COMP,I.T. EQUIPMENT & MAINTENANCE,1063443,126036210,26-Oct-16,"6,320.00",DANWOOD GROUP LTD,SP0002739
WANDSWORTH COUNCIL,NGF CS,,Revenue,COMMUNICATIONS & COMP,I.T. SOFTWARE,1064195,126036240,13-Oct-16,"12,632.20",LANDESK UK LIMITED,SP0008498
WANDSWORTH COUNCIL,NGF CS,,Revenue,COMMUNICATIONS & COMP,I.T. SOFTWARE,1075616,126036240,26-Oct-16,"12,632.20",LANDESK UK LIMITED,SP0008498
WANDSWORTH COUNCIL,NGF CS,,Revenue,"EQUIPMENT, FURNITURE & MATS",ADAPTATIONS - COUNCIL,1064076,126130020,14-Oct-16,"4,190.20",SUNA COMMUNICATION LTD,SP0000491
WANDSWORTH COUNCIL,NGF CS,,Revenue,"EQUIPMENT, FURNITURE & MATS",CCTV FIBRE RENTALS,1075546,126130040,25-Oct-16,"4,245.00",VODAFONE CORPORATE,SP0001107
WANDSWORTH COUNCIL,NGF CS,,Revenue,"EQUIPMENT, FURNITURE & MATS",CONSUMABLES,1075121,126130080,25-Oct-16,"6,348.00",BT PAYMENT SERVICES LTD,SP0001093
WANDSWORTH COUNCIL,NGF CS,,Revenue,"EQUIPMENT, FURNITURE & MATS",CONSUMABLES,1075122,126130080,25-Oct-16,"2,144.28",BT PAYMENT SERVICES LTD,SP0001093
WANDSWORTH COUNCIL,NGF CS,,Revenue,"EQUIPMENT, FURNITURE & MATS",CONSUMABLES,1075542,126130080,25-Oct-16,"13,680.25",BT PAYMENT SERVICES LTD,SP0001093
WANDSWORTH COUNCIL,NGF CS,,Revenue,"EQUIPMENT, FURNITURE & MATS",CONSUMABLES,1075543,126130080,25-Oct-16,"5,441.00",BT PAYMENT SERVICES LTD,SP0001093
WANDSWORTH COUNCIL,NGF CS,,Revenue,"EQUIPMENT, FURNITURE & MATS","EQUIPMENT, FURNITURE & MATS",1050093,126530000,21-Oct-16,"9,419.85",DELL CORPORATION LTD,SP0003352
WANDSWORTH COUNCIL,NGF CS,,Revenue,"EQUIPMENT, FURNITURE & MATS","EQUIPMENT, FURNITURE & MATS",1073783,126530000,26-Oct-16,"2,483.88",DELL CORPORATION LTD,SP0003352
WANDSWORTH COUNCIL,NGF CS,,Revenue,"EQUIPMENT, FURNITURE & MATS","EQUIPMENT, FURNITURE & MATS",1055993,126530000,11-Oct-16,"1,000.00",BLUESOURCE INFORMATION LTD,SP0007862
WANDSWORTH COUNCIL,NGF CS,,Revenue,"EQUIPMENT, FURNITURE & MATS","EQUIPMENT, FURNITURE & MATS",1057830,126530000,06-Oct-16,"8,714.00",BLUESOURCE INFORMATION LTD,SP0007862
WANDSWORTH COUNCIL,NGF CS,,Revenue,"EQUIPMENT, FURNITURE & MATS","EQUIPMENT, FURNITURE & MATS",1057830,126530000,06-Oct-16,"4,956.00",BLUESOURCE INFORMATION LTD,SP0007862
WANDSWORTH COUNCIL,NGF CS,,Revenue,"EQUIPMENT, FURNITURE & MATS","EQUIPMENT, FURNITURE & MATS",1057810,126530000,06-Oct-16,"4,501.71",METALOGIX INTERNATIONAL GMBH,SP0009025
WANDSWORTH COUNCIL,NGF CS,,Revenue,"EQUIPMENT, FURNITURE & MATS","EQUIPMENT, FURNITURE & MATS",1064039,126530000,13-Oct-16,"9,800.00",BEST PRACTICE GROUP PLC.,SP0011264
WANDSWORTH COUNCIL,NGF CS,,Revenue,"EQUIPMENT, FURNITURE & MATS","EQUIPMENT, FURNITURE & MATS",1075790,126530000,27-Oct-16,"2,000.00",NCC GROUP SECURITY SERVICES LTD,SP0011364
WANDSWORTH COUNCIL,NGF CS,,Revenue,"EQUIPMENT, FURNITURE & MATS","EQUIPMENT, FURNITURE & MATS",1047808,126630000,05-Oct-16,"15,000.00",EBASE TECHNOLOGY LTD,SP0006389
WANDSWORTH COUNCIL,NGF CS,,Revenue,COMMUNICATIONS & COMP,I.T. SOFTWARE,1070285,126736240,21-Oct-16,954.30,CIVICA UK LTD,SP0000394
WANDSWORTH COUNCIL,NGF CS,,Revenue,COMMUNICATIONS & COMP,I.T. SOFTWARE,1073774,126736240,25-Oct-16,"3,225.38",CIVICA UK LTD,SP0000394
WANDSWORTH COUNCIL,NGF CS,,Revenue,COMMUNICATIONS & COMP,I.T. SOFTWARE,1073782,126736240,25-Oct-16,"23,930.20",CIVICA UK LTD,SP0000394
WANDSWORTH COUNCIL,NGF CS,,Revenue,COMMUNICATIONS & COMP,I.T. SLA RECHARGE,1077734,126836230,31-Oct-16,"7,732.00",QMATIC UK LTD,SP0000660
WANDSWORTH COUNCIL,NGF CS,,Revenue,COMMUNICATIONS & COMP,I.T. SLA RECHARGE,1069851,126836230,19-Oct-16,940.00,NCC SERVICES LTD,SP0000702
WANDSWORTH COUNCIL,NGF CS,,Revenue,COMMUNICATIONS & COMP,I.T. - SYSTEMS DEVELOPMENT,1064259,126836270,19-Oct-16,856.80,CIVICA UK LTD,SP0000394
WANDSWORTH COUNCIL,NGF CS,,Revenue,COMMUNICATIONS & COMP,I.T. EQUIPMENT & MAINTENANCE,1059517,126936210,20-Oct-16,"1,293.00",XMA LIMITED,SP0000625
WANDSWORTH COUNCIL,NGF CS,,Revenue,COMMUNICATIONS & COMP,I.T. EQUIPMENT & MAINTENANCE,1075743,126936210,26-Oct-16,"1,658.20",XMA LIMITED,SP0000625
WANDSWORTH COUNCIL,NGF CS,,Revenue,COMMUNICATIONS & COMP,I.T. EQUIPMENT & MAINTENANCE,1064109,126936210,13-Oct-16,"1,518.66",DANWOOD GROUP LTD,SP0002739
WANDSWORTH COUNCIL,NGF CS,,Revenue,COMMUNICATIONS & COMP,I.T. EQUIPMENT & MAINTENANCE,1065402,126936210,18-Oct-16,314.49,DANWOOD GROUP LTD,SP0002739
WANDSWORTH COUNCIL,NGF CS,,Revenue,COMMUNICATIONS & COMP,I.T. EQUIPMENT & MAINTENANCE,1065402,126936210,18-Oct-16,314.49,DANWOOD GROUP LTD,SP0002739
WANDSWORTH COUNCIL,NGF CS,,Revenue,COMMUNICATIONS & COMP,I.T. EQUIPMENT & MAINTENANCE,1065402,126936210,18-Oct-16,314.49,DANWOOD GROUP LTD,SP0002739
WANDSWORTH COUNCIL,NGF CS,,Revenue,COMMUNICATIONS & COMP,I.T. EQUIPMENT & MAINTENANCE,1065402,126936210,18-Oct-16,76.65,DANWOOD GROUP LTD,SP0002739
WANDSWORTH COUNCIL,NGF CS,,Revenue,COMMUNICATIONS & COMP,I.T. EQUIPMENT & MAINTENANCE,1073092,126936210,21-Oct-16,153.75,DANWOOD GROUP LTD,SP0002739
WANDSWORTH COUNCIL,NGF CS,,Revenue,COMMUNICATIONS & COMP,I.T. EQUIPMENT & MAINTENANCE,1073092,126936210,21-Oct-16,72.45,DANWOOD GROUP LTD,SP0002739
WANDSWORTH COUNCIL,NGF CS,,Revenue,COMMUNICATIONS & COMP,I.T. EQUIPMENT & MAINTENANCE,1073092,126936210,21-Oct-16,153.75,DANWOOD GROUP LTD,SP0002739
WANDSWORTH COUNCIL,NGF CS,,Revenue,COMMUNICATIONS & COMP,I.T. EQUIPMENT & MAINTENANCE,1073092,126936210,21-Oct-16,153.75,DANWOOD GROUP LTD,SP0002739
WANDSWORTH COUNCIL,NGF CS,,Revenue,COMMUNICATIONS & COMP,I.T. EQUIPMENT & MAINTENANCE,1073097,126936210,24-Oct-16,153.75,DANWOOD GROUP LTD,SP0002739
WANDSWORTH COUNCIL,NGF CS,,Revenue,COMMUNICATIONS & COMP,I.T. EQUIPMENT & MAINTENANCE,1073097,126936210,24-Oct-16,153.75,DANWOOD GROUP LTD,SP0002739
WANDSWORTH COUNCIL,NGF CS,,Revenue,COMMUNICATIONS & COMP,I.T. EQUIPMENT & MAINTENANCE,1073097,126936210,24-Oct-16,144.90,DANWOOD GROUP LTD,SP0002739
WANDSWORTH COUNCIL,NGF CS,,Revenue,COMMUNICATIONS & COMP,I.T. EQUIPMENT & MAINTENANCE,1073097,126936210,24-Oct-16,153.75,DANWOOD GROUP LTD,SP0002739
WANDSWORTH COUNCIL,NGF CS,,Revenue,COMMUNICATIONS & COMP,I.T. EQUIPMENT & MAINTENANCE,1073102,126936210,21-Oct-16,366.84,DANWOOD GROUP LTD,SP0002739
WANDSWORTH COUNCIL,NGF CS,,Revenue,COMMUNICATIONS & COMP,I.T. EQUIPMENT & MAINTENANCE,1073102,126936210,21-Oct-16,366.84,DANWOOD GROUP LTD,SP0002739
WANDSWORTH COUNCIL,NGF CS,,Revenue,COMMUNICATIONS & COMP,I.T. EQUIPMENT & MAINTENANCE,1073102,126936210,21-Oct-16,145.40,DANWOOD GROUP LTD,SP0002739
WANDSWORTH COUNCIL,NGF CS,,Revenue,COMMUNICATIONS & COMP,I.T. EQUIPMENT & MAINTENANCE,1073103,126936210,21-Oct-16,145.40,DANWOOD GROUP LTD,SP0002739
WANDSWORTH COUNCIL,NGF CS,,Revenue,COMMUNICATIONS & COMP,I.T. EQUIPMENT & MAINTENANCE,1073103,126936210,21-Oct-16,290.48,DANWOOD GROUP LTD,SP0002739
WANDSWORTH COUNCIL,NGF CS,,Revenue,COMMUNICATIONS & COMP,I.T. EQUIPMENT & MAINTENANCE,1073103,126936210,21-Oct-16,290.48,DANWOOD GROUP LTD,SP0002739
WANDSWORTH COUNCIL,NGF CS,,Revenue,COMMUNICATIONS & COMP,I.T. EQUIPMENT & MAINTENANCE,1073103,126936210,21-Oct-16,290.48,DANWOOD GROUP LTD,SP0002739
WANDSWORTH COUNCIL,NGF CS,,Revenue,COMMUNICATIONS & COMP,I.T. EQUIPMENT & MAINTENANCE,1073107,126936210,21-Oct-16,615.00,DANWOOD GROUP LTD,SP0002739
WANDSWORTH COUNCIL,NGF CS,,Revenue,COMMUNICATIONS & COMP,I.T. EQUIPMENT & MAINTENANCE,1073107,126936210,21-Oct-16,615.00,DANWOOD GROUP LTD,SP0002739
WANDSWORTH COUNCIL,NGF CS,,Revenue,COMMUNICATIONS & COMP,I.T. EQUIPMENT & MAINTENANCE,1073107,126936210,21-Oct-16,615.00,DANWOOD GROUP LTD,SP0002739
WANDSWORTH COUNCIL,NGF CS,,Revenue,COMMUNICATIONS & COMP,I.T. EQUIPMENT & MAINTENANCE,1073788,126936210,26-Oct-16,62.14,DANWOOD GROUP LTD,SP0002739
WANDSWORTH COUNCIL,NGF CS,,Revenue,COMMUNICATIONS & COMP,I.T. EQUIPMENT & MAINTENANCE,1073788,126936210,26-Oct-16,124.28,DANWOOD GROUP LTD,SP0002739
WANDSWORTH COUNCIL,NGF CS,,Revenue,COMMUNICATIONS & COMP,I.T. EQUIPMENT & MAINTENANCE,1073788,126936210,26-Oct-16,124.28,DANWOOD GROUP LTD,SP0002739
WANDSWORTH COUNCIL,NGF CS,,Revenue,COMMUNICATIONS & COMP,I.T. EQUIPMENT & MAINTENANCE,1073788,126936210,26-Oct-16,124.28,DANWOOD GROUP LTD,SP0002739
WANDSWORTH COUNCIL,CS,,Revenue,DIRECT2,AGENCY STAFF,1061389,128000510,10-Oct-16,"30,567.20",MATRIX SCM LIMITED,SP0004572
WANDSWORTH COUNCIL,CS,,Revenue,DIRECT2,AGENCY STAFF,1064233,128000510,13-Oct-16,"20,854.14",MATRIX SCM LIMITED,SP0004572
WANDSWORTH COUNCIL,CS,,Revenue,DIRECT2,AGENCY STAFF,1074605,128000510,27-Oct-16,"13,176.81",MATRIX SCM LIMITED,SP0004572
WANDSWORTH COUNCIL,CS,,Revenue,DIRECT2,AGENCY STAFF,1077112,128000510,27-Oct-16,"21,918.94",MATRIX SCM LIMITED,SP0004572
WANDSWORTH COUNCIL,CS,,Revenue,INDIRECT,STAFF ADVERTISING - VACANCIES,1061679,128000960,10-Oct-16,484.54,PENNA PLC,SP0006290
WANDSWORTH COUNCIL,CS,,Revenue,INDIRECT,STAFF ADVERTISING - VACANCIES,1063841,128000960,12-Oct-16,"1,052.25",PENNA PLC,SP0006290
WANDSWORTH COUNCIL,CS,,Revenue,INDIRECT,STAFF ADVERTISING - VACANCIES,1078968,128000960,31-Oct-16,507.50,PENNA PLC,SP0006290
WANDSWORTH COUNCIL,ASC,SOCIAL SERVICES,Revenue,VOL ASS,SUPPORTED HOUSING PROGRAMME,1064696,130048030,14-Oct-16,198.72,THE BRANDON TRUST,SP0005337
WANDSWORTH COUNCIL,ASC,SOCIAL SERVICES,Revenue,VOL ASS,SUPPORTED HOUSING PROGRAMME,1064703,130048030,14-Oct-16,66.24,THE BRANDON TRUST,SP0005337
WANDSWORTH COUNCIL,ASC,SOCIAL SERVICES,Revenue,CUSTOMER & CLIENT RECPTS - EXT,CL CONT EXTERNAL RESIDENTIAL,1072020,130080720,20-Oct-16,(578.81),BIRCC,SP0000584
WANDSWORTH COUNCIL,ASC,SOCIAL SERVICES,Revenue,HIRE,HIRE - TRANSPORT,1060695,130220410,06-Oct-16,614.60,HEALTHCARE & TRANSPORT SERVICES (HATS),SP0000012
WANDSWORTH COUNCIL,ASC,SOCIAL SERVICES,Revenue,HIRE,HIRE - TRANSPORT,1065676,130220410,17-Oct-16,614.60,HEALTHCARE & TRANSPORT SERVICES (HATS),SP0000012
WANDSWORTH COUNCIL,ASC,SOCIAL SERVICES,Revenue,HIRE,HIRE - TRANSPORT,1069890,130220410,19-Oct-16,614.60,HEALTHCARE & TRANSPORT SERVICES (HATS),SP0000012
WANDSWORTH COUNCIL,ASC,SOCIAL SERVICES,Revenue,HIRE,HIRE - TRANSPORT,1076225,130220410,26-Oct-16,614.60,HEALTHCARE & TRANSPORT SERVICES (HATS),SP0000012
WANDSWORTH COUNCIL,ASC,SOCIAL SERVICES,Revenue,HIRE,HIRE - TRANSPORT,1079515,130220410,31-Oct-16,614.60,HEALTHCARE & TRANSPORT SERVICES (HATS),SP0000012
WANDSWORTH COUNCIL,ASC,SOCIAL SERVICES,Revenue,HIRE,HIRE - TRANSPORT,1073200,130220410,21-Oct-16,705.60,BECKETT CORPORATION LTD T/A TINAS CARS,SP0000729
WANDSWORTH COUNCIL,ASC,SOCIAL SERVICES,Revenue,HIRE,HIRE - TRANSPORT,1073202,130220410,21-Oct-16,461.16,BECKETT CORPORATION LTD T/A TINAS CARS,SP0000729
WANDSWORTH COUNCIL,ASC,SOCIAL SERVICES,Revenue,HIRE,HIRE - TRANSPORT,1073204,130220410,21-Oct-16,725.42,BECKETT CORPORATION LTD T/A TINAS CARS,SP0000729
WANDSWORTH COUNCIL,ASC,SOCIAL SERVICES,Revenue,HIRE,HIRE - TRANSPORT,1073205,130220410,21-Oct-16,"1,879.20",BECKETT CORPORATION LTD T/A TINAS CARS,SP0000729
WANDSWORTH COUNCIL,ASC,SOCIAL SERVICES,Revenue,HIRE,HIRE - TRANSPORT,1073208,130220410,21-Oct-16,467.82,BECKETT CORPORATION LTD T/A TINAS CARS,SP0000729
WANDSWORTH COUNCIL,ASC,SOCIAL SERVICES,Revenue,HIRE,HIRE - TRANSPORT,1073209,130220410,21-Oct-16,677.20,BECKETT CORPORATION LTD T/A TINAS CARS,SP0000729
WANDSWORTH COUNCIL,ASC,SOCIAL SERVICES,Revenue,HIRE,HIRE - TRANSPORT,1073210,130220410,21-Oct-16,449.16,BECKETT CORPORATION LTD T/A TINAS CARS,SP0000729
WANDSWORTH COUNCIL,ASC,SOCIAL SERVICES,Revenue,HIRE,HIRE - TRANSPORT,1073211,130220410,21-Oct-16,643.40,BECKETT CORPORATION LTD T/A TINAS CARS,SP0000729
WANDSWORTH COUNCIL,ASC,SOCIAL SERVICES,Revenue,HIRE,HIRE - TRANSPORT,1073212,130220410,21-Oct-16,828.00,BECKETT CORPORATION LTD T/A TINAS CARS,SP0000729
WANDSWORTH COUNCIL,ASC,SOCIAL SERVICES,Revenue,HIRE,HIRE - TRANSPORT,1073216,130220410,21-Oct-16,600.00,BECKETT CORPORATION LTD T/A TINAS CARS,SP0000729
WANDSWORTH COUNCIL,ASC,SOCIAL SERVICES,Revenue,HIRE,HIRE - TRANSPORT,1077891,130220410,28-Oct-16,699.81,BECKETT CORPORATION LTD T/A TINAS CARS,SP0000729
WANDSWORTH COUNCIL,ASC,SOCIAL SERVICES,Revenue,HIRE,HIRE - TRANSPORT,1077892,130220410,28-Oct-16,607.26,BECKETT CORPORATION LTD T/A TINAS CARS,SP0000729
WANDSWORTH COUNCIL,ASC,SOCIAL SERVICES,Revenue,HIRE,HIRE - TRANSPORT,1077893,130220410,28-Oct-16,702.81,BECKETT CORPORATION LTD T/A TINAS CARS,SP0000729
WANDSWORTH COUNCIL,ASC,SOCIAL SERVICES,Revenue,HIRE,HIRE - TRANSPORT,1077894,130220410,28-Oct-16,"1,720.00",BECKETT CORPORATION LTD T/A TINAS CARS,SP0000729
WANDSWORTH COUNCIL,ASC,SOCIAL SERVICES,Revenue,HIRE,HIRE - TRANSPORT,1077895,130220410,28-Oct-16,936.00,BECKETT CORPORATION LTD T/A TINAS CARS,SP0000729
WANDSWORTH COUNCIL,ASC,SOCIAL SERVICES,Revenue,HIRE,HIRE - TRANSPORT,1077897,130220410,28-Oct-16,"1,440.00",BECKETT CORPORATION LTD T/A TINAS CARS,SP0000729
WANDSWORTH COUNCIL,ASC,SOCIAL SERVICES,Revenue,HIRE,HIRE - TRANSPORT,1077898,130220410,28-Oct-16,"1,760.00",BECKETT CORPORATION LTD T/A TINAS CARS,SP0000729
WANDSWORTH COUNCIL,ASC,SOCIAL SERVICES,Revenue,HIRE,HIRE - TRANSPORT,1077899,130220410,28-Oct-16,"1,105.00",BECKETT CORPORATION LTD T/A TINAS CARS,SP0000729
WANDSWORTH COUNCIL,ASC,SOCIAL SERVICES,Revenue,HIRE,HIRE - TRANSPORT,1077902,130220410,28-Oct-16,450.00,BECKETT CORPORATION LTD T/A TINAS CARS,SP0000729
WANDSWORTH COUNCIL,ASC,SOCIAL SERVICES,Revenue,HIRE,HIRE - TRANSPORT,1065681,130220410,17-Oct-16,570.00,A STAR TRANSPORT LTD,SP0000866
WANDSWORTH COUNCIL,ASC,SOCIAL SERVICES,Revenue,HIRE,HIRE - TRANSPORT,1065684,130220410,17-Oct-16,"1,033.33",A STAR TRANSPORT LTD,SP0000866
WANDSWORTH COUNCIL,ASC,SOCIAL SERVICES,Revenue,HIRE,HIRE - TRANSPORT,1065685,130220410,17-Oct-16,"1,453.33",A STAR TRANSPORT LTD,SP0000866
WANDSWORTH COUNCIL,ASC,SOCIAL SERVICES,Revenue,HIRE,HIRE - TRANSPORT,1065687,130220410,17-Oct-16,"1,566.00",A STAR TRANSPORT LTD,SP0000866
WANDSWORTH COUNCIL,ASC,SOCIAL SERVICES,Revenue,HIRE,HIRE - TRANSPORT,1065688,130220410,17-Oct-16,"1,368.00",A STAR TRANSPORT LTD,SP0000866
WANDSWORTH COUNCIL,ASC,SOCIAL SERVICES,Revenue,HIRE,HIRE - TRANSPORT,1065689,130220410,17-Oct-16,683.28,A STAR TRANSPORT LTD,SP0000866
WANDSWORTH COUNCIL,ASC,SOCIAL SERVICES,Revenue,HIRE,HIRE - TRANSPORT,1065690,130220410,17-Oct-16,"1,400.00",A STAR TRANSPORT LTD,SP0000866
WANDSWORTH COUNCIL,ASC,SOCIAL SERVICES,Revenue,HIRE,HIRE - TRANSPORT,1065691,130220410,17-Oct-16,984.00,A STAR TRANSPORT LTD,SP0000866
WANDSWORTH COUNCIL,ASC,SOCIAL SERVICES,Revenue,HIRE,HIRE - TRANSPORT,1065692,130220410,17-Oct-16,"1,620.00",A STAR TRANSPORT LTD,SP0000866
WANDSWORTH COUNCIL,ASC,SOCIAL SERVICES,Revenue,HIRE,HIRE - TRANSPORT,1065693,130220410,17-Oct-16,616.32,A STAR TRANSPORT LTD,SP0000866
WANDSWORTH COUNCIL,ASC,SOCIAL SERVICES,Revenue,HIRE,HIRE - TRANSPORT,1065696,130220410,17-Oct-16,704.00,A STAR TRANSPORT LTD,SP0000866
WANDSWORTH COUNCIL,ASC,SOCIAL SERVICES,Revenue,HIRE,HIRE - TRANSPORT,1065697,130220410,17-Oct-16,432.00,A STAR TRANSPORT LTD,SP0000866
WANDSWORTH COUNCIL,ASC,SOCIAL SERVICES,Revenue,HIRE,HIRE - TRANSPORT,1065699,130220410,17-Oct-16,"2,080.00",A STAR TRANSPORT LTD,SP0000866
WANDSWORTH COUNCIL,ASC,SOCIAL SERVICES,Revenue,HIRE,HIRE - TRANSPORT,1065701,130220410,17-Oct-16,"1,349.00",A STAR TRANSPORT LTD,SP0000866
WANDSWORTH COUNCIL,ASC,SOCIAL SERVICES,Revenue,HIRE,HIRE - TRANSPORT,1065702,130220410,17-Oct-16,756.00,A STAR TRANSPORT LTD,SP0000866
WANDSWORTH COUNCIL,ASC,SOCIAL SERVICES,Revenue,HIRE,HIRE - TRANSPORT,1065703,130220410,17-Oct-16,756.00,A STAR TRANSPORT LTD,SP0000866
WANDSWORTH COUNCIL,ASC,SOCIAL SERVICES,Revenue,HIRE,HIRE - TRANSPORT,1065704,130220410,17-Oct-16,"1,199.00",A STAR TRANSPORT LTD,SP0000866
WANDSWORTH COUNCIL,ASC,SOCIAL SERVICES,Revenue,HIRE,HIRE - TRANSPORT,1065707,130220410,17-Oct-16,575.60,A STAR TRANSPORT LTD,SP0000866
WANDSWORTH COUNCIL,ASC,SOCIAL SERVICES,Revenue,HIRE,HIRE - TRANSPORT,1065716,130220410,17-Oct-16,504.00,A STAR TRANSPORT LTD,SP0000866
WANDSWORTH COUNCIL,ASC,SOCIAL SERVICES,Revenue,HIRE,HIRE - TRANSPORT,1065717,130220410,17-Oct-16,576.00,A STAR TRANSPORT LTD,SP0000866
WANDSWORTH COUNCIL,ASC,SOCIAL SERVICES,Revenue,HIRE,HIRE - TRANSPORT,1065720,130220410,17-Oct-16,564.00,A STAR TRANSPORT LTD,SP0000866
WANDSWORTH COUNCIL,ASC,SOCIAL SERVICES,Revenue,HIRE,HIRE - TRANSPORT,1065721,130220410,17-Oct-16,858.00,A STAR TRANSPORT LTD,SP0000866
WANDSWORTH COUNCIL,ASC,SOCIAL SERVICES,Revenue,HIRE,HIRE - TRANSPORT,1065722,130220410,17-Oct-16,"1,252.00",A STAR TRANSPORT LTD,SP0000866
WANDSWORTH COUNCIL,ASC,SOCIAL SERVICES,Revenue,HIRE,HIRE - TRANSPORT,1065723,130220410,17-Oct-16,"1,280.00",A STAR TRANSPORT LTD,SP0000866
WANDSWORTH COUNCIL,ASC,SOCIAL SERVICES,Revenue,HIRE,HIRE - TRANSPORT,1065725,130220410,17-Oct-16,"1,000.00",A STAR TRANSPORT LTD,SP0000866
WANDSWORTH COUNCIL,ASC,SOCIAL SERVICES,Revenue,HIRE,HIRE - TRANSPORT,1065726,130220410,17-Oct-16,"1,000.00",A STAR TRANSPORT LTD,SP0000866
WANDSWORTH COUNCIL,ASC,SOCIAL SERVICES,Revenue,HIRE,HIRE - TRANSPORT,1065727,130220410,17-Oct-16,512.00,A STAR TRANSPORT LTD,SP0000866
WANDSWORTH COUNCIL,ASC,SOCIAL SERVICES,Revenue,HIRE,HIRE - TRANSPORT,1065728,130220410,17-Oct-16,596.00,A STAR TRANSPORT LTD,SP0000866
WANDSWORTH COUNCIL,ASC,SOCIAL SERVICES,Revenue,HIRE,HIRE - TRANSPORT,1067245,130220410,17-Oct-16,"1,157.00",A STAR TRANSPORT LTD,SP0000866
WANDSWORTH COUNCIL,ASC,SOCIAL SERVICES,Revenue,HIRE,HIRE - TRANSPORT,1067246,130220410,17-Oct-16,833.00,A STAR TRANSPORT LTD,SP0000866
WANDSWORTH COUNCIL,ASC,SOCIAL SERVICES,Revenue,HIRE,HIRE - TRANSPORT,1067247,130220410,17-Oct-16,440.00,A STAR TRANSPORT LTD,SP0000866
WANDSWORTH COUNCIL,ASC,SOCIAL SERVICES,Revenue,HIRE,HIRE - TRANSPORT,1067248,130220410,17-Oct-16,800.00,A STAR TRANSPORT LTD,SP0000866
WANDSWORTH COUNCIL,ASC,SOCIAL SERVICES,Revenue,HIRE,HIRE - TRANSPORT,1063276,130220410,10-Oct-16,935.50,PARKER CARS LIMITED,SP0005826
WANDSWORTH COUNCIL,ASC,SOCIAL SERVICES,Revenue,HIRE,HIRE - TRANSPORT,1063278,130220410,10-Oct-16,500.40,PARKER CARS LIMITED,SP0005826
WANDSWORTH COUNCIL,ASC,SOCIAL SERVICES,Revenue,HIRE,HIRE - TRANSPORT,1063279,130220410,10-Oct-16,648.00,PARKER CARS LIMITED,SP0005826
WANDSWORTH COUNCIL,ASC,SOCIAL SERVICES,Revenue,HIRE,HIRE - TRANSPORT,1064761,130220410,14-Oct-16,508.20,ROTHERHAM COMMUNITY TRANSPORT,SP0008046
WANDSWORTH COUNCIL,ASC,SOCIAL SERVICES,Revenue,HIRE,HIRE - TRANSPORT,1060704,130220410,06-Oct-16,462.00,247 TRANSPORT SOLUTIONS LTD,SP0010959
WANDSWORTH COUNCIL,ASC,SOCIAL SERVICES,Revenue,HIRE,NEW TRANSPORT CONTRACT,1073206,130220430,21-Oct-16,"1,879.20",BECKETT CORPORATION LTD T/A TINAS CARS,SP0000729
WANDSWORTH COUNCIL,ASC,SOCIAL SERVICES,Revenue,HIRE,NEW TRANSPORT CONTRACT,1073209,130220430,21-Oct-16,(77.94),BECKETT CORPORATION LTD T/A TINAS CARS,SP0000729
WANDSWORTH COUNCIL,ASC,SOCIAL SERVICES,Revenue,SERVICES,TRAVEL BUDDY SCHEME,1067915,130234970,17-Oct-16,585.00,LIVE TOO LIMITED,SP0010112
WANDSWORTH COUNCIL,ASC,SOCIAL SERVICES,Revenue,HEALTH,EXT RES S28A 100% OLD LONGSTAY,1079448,130241010,31-Oct-16,"6,372.67",VOYAGE CARE LTD,SP0000366
WANDSWORTH COUNCIL,ASC,SOCIAL SERVICES,Revenue,HEALTH,EXT RES S28A 100% OLD LONGSTAY,1079454,130241010,31-Oct-16,"9,358.32",VOYAGE CARE LTD,SP0000366
WANDSWORTH COUNCIL,ASC,SOCIAL SERVICES,Revenue,HEALTH,EXTERNAL RESIDENTIAL CARE S28A,1073398,130241080,21-Oct-16,"7,266.40",PROGRESS HOUSING LULWORTH,SP0000921
WANDSWORTH COUNCIL,ASC,SOCIAL SERVICES,Revenue,HEALTH,EXT RES CARE S28A 100%,1079437,130241090,31-Oct-16,"4,026.40",CMG HOMES LTD,SP0000075
WANDSWORTH COUNCIL,ASC,SOCIAL SERVICES,Revenue,HEALTH,EXT RES CARE S28A 100%,1064805,130241090,14-Oct-16,"6,556.97",HOME FROM HOME CARE LIMITED,SP0001373
WANDSWORTH COUNCIL,ASC,SOCIAL SERVICES,Revenue,HEALTH,EXT RES CARE S28A 100%,1073429,130241090,21-Oct-16,"6,775.54",HOME FROM HOME CARE LIMITED,SP0001373
WANDSWORTH COUNCIL,ASC,SOCIAL SERVICES,Revenue,HEALTH,EXT RES S28A OLD LONG STAY,1064820,130241110,14-Oct-16,"2,975.96",ELEANOR NURSING & SOCIAL CARE,SP0000110
WANDSWORTH COUNCIL,ASC,SOCIAL SERVICES,Revenue,HEALTH,EXT RES S28A OLD LONG STAY,1073895,130241110,24-Oct-16,"4,851.76",THE COMMUNITY CARE COMPANY UK LTD,SP0000576
WANDSWORTH COUNCIL,ASC,SOCIAL SERVICES,Revenue,HEALTH,EXT RES S28A OLD LONG STAY,1057846,130241110,03-Oct-16,"4,756.88",METROPOLITAN HOUSING TRUST,SP0000626
WANDSWORTH COUNCIL,ASC,SOCIAL SERVICES,Revenue,HEALTH,EXT RES S28A OLD LONG STAY,1064803,130241110,14-Oct-16,"4,756.88",METROPOLITAN HOUSING TRUST,SP0000626
WANDSWORTH COUNCIL,ASC,SOCIAL SERVICES,Revenue,HEALTH,EXT RES S28A OLD LONG STAY,1065455,130241110,17-Oct-16,"2,709.00",ASHTON CARE,SP0000695
WANDSWORTH COUNCIL,ASC,SOCIAL SERVICES,Revenue,HEALTH,EXT RES S28A OLD LONG STAY,1064823,130241110,14-Oct-16,"4,382.20",ANTHONY TOBY HOMES TRUST,SP0000755
WANDSWORTH COUNCIL,ASC,SOCIAL SERVICES,Revenue,OTHER AGENCIES,ENABLERS/EDUCATION FEES,1061416,130243280,07-Oct-16,"56,126.00",THE MOUNT CAMPHILL COMMUNITY,SP0001422
WANDSWORTH COUNCIL,ASC,SOCIAL SERVICES,Revenue,OTHER AGENCIES,EXTERNAL OUTREACH,1061604,130243330,07-Oct-16,486.80,RAINBOW MEDICAL SERVICES,SP0000037
WANDSWORTH COUNCIL,ASC,SOCIAL SERVICES,Revenue,OTHER AGENCIES,EXTERNAL OUTREACH,1061607,130243330,07-Oct-16,456.32,RAINBOW MEDICAL SERVICES,SP0000037
WANDSWORTH COUNCIL,ASC,SOCIAL SERVICES,Revenue,OTHER AGENCIES,EXTERNAL OUTREACH,1061609,130243330,07-Oct-16,"2,022.10",RAINBOW MEDICAL SERVICES,SP0000037
WANDSWORTH COUNCIL,ASC,SOCIAL SERVICES,Revenue,OTHER AGENCIES,EXTERNAL OUTREACH,1060698,130243330,06-Oct-16,950.00,PROTOCOL EDUCATION  LTD,SP0000171
WANDSWORTH COUNCIL,ASC,SOCIAL SERVICES,Revenue,OTHER AGENCIES,EXTERNAL OUTREACH,1063292,130243330,10-Oct-16,950.00,PROTOCOL EDUCATION  LTD,SP0000171
WANDSWORTH COUNCIL,ASC,SOCIAL SERVICES,Revenue,OTHER AGENCIES,EXTERNAL OUTREACH,1073219,130243330,21-Oct-16,950.00,PROTOCOL EDUCATION  LTD,SP0000171
WANDSWORTH COUNCIL,ASC,SOCIAL SERVICES,Revenue,OTHER AGENCIES,EXTERNAL OUTREACH,1079520,130243330,31-Oct-16,950.00,PROTOCOL EDUCATION  LTD,SP0000171
WANDSWORTH COUNCIL,ASC,SOCIAL SERVICES,Revenue,OTHER AGENCIES,EXTERNAL OUTREACH,1069896,130243330,19-Oct-16,425.82,REED,SP0000295
WANDSWORTH COUNCIL,ASC,SOCIAL SERVICES,Revenue,OTHER AGENCIES,EXTERNAL OUTREACH,1073447,130243330,21-Oct-16,"2,185.32",C M CARE LTD,SP0000455
WANDSWORTH COUNCIL,ASC,SOCIAL SERVICES,Revenue,OTHER AGENCIES,EXTERNAL OUTREACH,1073449,130243330,21-Oct-16,"1,501.76",C M CARE LTD,SP0000455
WANDSWORTH COUNCIL,ASC,SOCIAL SERVICES,Revenue,OTHER AGENCIES,EXTERNAL OUTREACH,1073451,130243330,21-Oct-16,"1,540.00",C M CARE LTD,SP0000455
WANDSWORTH COUNCIL,ASC,SOCIAL SERVICES,Revenue,OTHER AGENCIES,EXTERNAL OUTREACH,1067850,130243330,17-Oct-16,"1,196.40",GENERATE OPPORTUNITIES LTD,SP0000503
WANDSWORTH COUNCIL,ASC,SOCIAL SERVICES,Revenue,OTHER AGENCIES,EXTERNAL OUTREACH,1067856,130243330,17-Oct-16,797.60,GENERATE OPPORTUNITIES LTD,SP0000503
WANDSWORTH COUNCIL,ASC,SOCIAL SERVICES,Revenue,OTHER AGENCIES,EXTERNAL OUTREACH,1067858,130243330,17-Oct-16,"1,495.50",GENERATE OPPORTUNITIES LTD,SP0000503
WANDSWORTH COUNCIL,ASC,SOCIAL SERVICES,Revenue,OTHER AGENCIES,EXTERNAL OUTREACH,1067860,130243330,17-Oct-16,500.00,GENERATE OPPORTUNITIES LTD,SP0000503
WANDSWORTH COUNCIL,ASC,SOCIAL SERVICES,Revenue,OTHER AGENCIES,EXTERNAL OUTREACH,1067863,130243330,17-Oct-16,"2,485.52",GENERATE OPPORTUNITIES LTD,SP0000503
WANDSWORTH COUNCIL,ASC,SOCIAL SERVICES,Revenue,OTHER AGENCIES,EXTERNAL OUTREACH,1073183,130243330,21-Oct-16,997.00,GENERATE OPPORTUNITIES LTD,SP0000503
WANDSWORTH COUNCIL,ASC,SOCIAL SERVICES,Revenue,OTHER AGENCIES,EXTERNAL OUTREACH,1064765,130243330,14-Oct-16,"1,080.00",METROPOLITAN HOUSING TRUST,SP0000626
WANDSWORTH COUNCIL,ASC,SOCIAL SERVICES,Revenue,OTHER AGENCIES,EXTERNAL OUTREACH,1064766,130243330,14-Oct-16,810.00,METROPOLITAN HOUSING TRUST,SP0000626
WANDSWORTH COUNCIL,ASC,SOCIAL SERVICES,Revenue,OTHER AGENCIES,EXTERNAL OUTREACH,1071227,130243330,19-Oct-16,"1,080.00",ROYAL ASSOCIATION FOR DEAF PEOPLE,SP0001251
WANDSWORTH COUNCIL,ASC,SOCIAL SERVICES,Revenue,OTHER AGENCIES,EXTERNAL OUTREACH,1064638,130243330,14-Oct-16,591.04,THE BRANDON TRUST,SP0005337
WANDSWORTH COUNCIL,ASC,SOCIAL SERVICES,Revenue,OTHER AGENCIES,EXTERNAL OUTREACH,1064639,130243330,14-Oct-16,947.40,THE BRANDON TRUST,SP0005337
WANDSWORTH COUNCIL,ASC,SOCIAL SERVICES,Revenue,OTHER AGENCIES,EXTERNAL OUTREACH,1064640,130243330,14-Oct-16,"1,170.80",THE BRANDON TRUST,SP0005337
WANDSWORTH COUNCIL,ASC,SOCIAL SERVICES,Revenue,OTHER AGENCIES,EXTERNAL OUTREACH,1064656,130243330,14-Oct-16,189.48,THE BRANDON TRUST,SP0005337
WANDSWORTH COUNCIL,ASC,SOCIAL SERVICES,Revenue,OTHER AGENCIES,EXTERNAL OUTREACH,1064668,130243330,14-Oct-16,694.76,THE BRANDON TRUST,SP0005337
WANDSWORTH COUNCIL,ASC,SOCIAL SERVICES,Revenue,OTHER AGENCIES,EXTERNAL OUTREACH,1064681,130243330,14-Oct-16,"1,199.52",THE BRANDON TRUST,SP0005337
WANDSWORTH COUNCIL,ASC,SOCIAL SERVICES,Revenue,OTHER AGENCIES,EXTERNAL OUTREACH,1064682,130243330,14-Oct-16,599.76,THE BRANDON TRUST,SP0005337
WANDSWORTH COUNCIL,ASC,SOCIAL SERVICES,Revenue,OTHER AGENCIES,EXTERNAL OUTREACH,1064684,130243330,14-Oct-16,533.12,THE BRANDON TRUST,SP0005337
WANDSWORTH COUNCIL,ASC,SOCIAL SERVICES,Revenue,OTHER AGENCIES,EXTERNAL OUTREACH,1064689,130243330,14-Oct-16,999.60,THE BRANDON TRUST,SP0005337
WANDSWORTH COUNCIL,ASC,SOCIAL SERVICES,Revenue,OTHER AGENCIES,EXTERNAL OUTREACH,1064690,130243330,14-Oct-16,"1,332.80",THE BRANDON TRUST,SP0005337
WANDSWORTH COUNCIL,ASC,SOCIAL SERVICES,Revenue,OTHER AGENCIES,EXTERNAL OUTREACH,1064721,130243330,14-Oct-16,631.60,THE BRANDON TRUST,SP0005337
WANDSWORTH COUNCIL,ASC,SOCIAL SERVICES,Revenue,OTHER AGENCIES,EXTERNAL OUTREACH,1064740,130243330,14-Oct-16,757.92,THE BRANDON TRUST,SP0005337
WANDSWORTH COUNCIL,ASC,SOCIAL SERVICES,Revenue,OTHER AGENCIES,EXTERNAL OUTREACH,1064754,130243330,14-Oct-16,568.44,THE BRANDON TRUST,SP0005337
WANDSWORTH COUNCIL,ASC,SOCIAL SERVICES,Revenue,OTHER AGENCIES,EXTERNAL OUTREACH,1065049,130243330,14-Oct-16,"1,332.80",THE BRANDON TRUST,SP0005337
WANDSWORTH COUNCIL,ASC,SOCIAL SERVICES,Revenue,OTHER AGENCIES,EXTERNAL OUTREACH,1065050,130243330,14-Oct-16,"1,332.80",THE BRANDON TRUST,SP0005337
WANDSWORTH COUNCIL,ASC,SOCIAL SERVICES,Revenue,OTHER AGENCIES,EXTERNAL OUTREACH,1065051,130243330,14-Oct-16,"1,332.80",THE BRANDON TRUST,SP0005337
WANDSWORTH COUNCIL,ASC,SOCIAL SERVICES,Revenue,OTHER AGENCIES,EXTERNAL OUTREACH,1065052,130243330,14-Oct-16,"1,332.80",THE BRANDON TRUST,SP0005337
WANDSWORTH COUNCIL,ASC,SOCIAL SERVICES,Revenue,OTHER AGENCIES,EXTERNAL OUTREACH,1065053,130243330,14-Oct-16,"1,332.80",THE BRANDON TRUST,SP0005337
WANDSWORTH COUNCIL,ASC,SOCIAL SERVICES,Revenue,OTHER AGENCIES,EXTERNAL OUTREACH,1065054,130243330,14-Oct-16,"1,332.80",THE BRANDON TRUST,SP0005337
WANDSWORTH COUNCIL,ASC,SOCIAL SERVICES,Revenue,OTHER AGENCIES,EXTERNAL OUTREACH,1065055,130243330,14-Oct-16,"1,332.80",THE BRANDON TRUST,SP0005337
WANDSWORTH COUNCIL,ASC,SOCIAL SERVICES,Revenue,OTHER AGENCIES,EXTERNAL OUTREACH,1064763,130243330,14-Oct-16,"2,640.00",RELIABLE PERSONNEL LTD,SP0005657
WANDSWORTH COUNCIL,ASC,SOCIAL SERVICES,Revenue,OTHER AGENCIES,EXTERNAL OUTREACH,1065057,130243330,14-Oct-16,"1,350.00",LIVE TOO LIMITED,SP0010112
WANDSWORTH COUNCIL,ASC,SOCIAL SERVICES,Revenue,OTHER AGENCIES,EXTERNAL OUTREACH,1065746,130243330,17-Oct-16,720.00,LIVE TOO LIMITED,SP0010112
WANDSWORTH COUNCIL,ASC,SOCIAL SERVICES,Revenue,OTHER AGENCIES,EXTERNAL OUTREACH,1073909,130243330,24-Oct-16,504.00,A NEW LEAF,SP0010298
WANDSWORTH COUNCIL,ASC,,Revenue,OTHER AGENCIES,APS SHARED LIVES SCHEME,1050083,130243820,05-Oct-16,"15,619.00",SOUTHSIDE PARTNERSHIP,SP0000692
WANDSWORTH COUNCIL,ASC,,Revenue,OTHER AGENCIES,APS SHARED LIVES SCHEME,1050084,130243820,05-Oct-16,"39,794.24",SOUTHSIDE PARTNERSHIP,SP0000692
WANDSWORTH COUNCIL,ASC,,Revenue,OTHER AGENCIES,APS SHARED LIVES SCHEME,1050086,130243820,05-Oct-16,"6,260.35",SOUTHSIDE PARTNERSHIP,SP0000692
WANDSWORTH COUNCIL,ASC,SOCIAL SERVICES,Revenue,PRIVATE,EXTERNAL DAYCARE,1064606,130245290,14-Oct-16,"1,999.41",CMG HOMES LTD,SP0000075
WANDSWORTH COUNCIL,ASC,SOCIAL SERVICES,Revenue,PRIVATE,EXTERNAL DAYCARE,1064630,130245290,14-Oct-16,"1,213.76",RESIDENTIAL CARE SERVICES T/A FRANKLYN L,SP0000147
WANDSWORTH COUNCIL,ASC,SOCIAL SERVICES,Revenue,PRIVATE,EXTERNAL DAYCARE,1063268,130245290,10-Oct-16,878.48,ORCHARD VALE TRUST,SP0000214
WANDSWORTH COUNCIL,ASC,SOCIAL SERVICES,Revenue,PRIVATE,EXTERNAL DAYCARE,1072026,130245290,31-Oct-16,503.50,ST MARYS RESIDENTIAL HOME,SP0000215
WANDSWORTH COUNCIL,ASC,SOCIAL SERVICES,Revenue,PRIVATE,EXTERNAL DAYCARE,1072027,130245290,31-Oct-16,"2,186.20",ST MARYS RESIDENTIAL HOME,SP0000215
WANDSWORTH COUNCIL,ASC,SOCIAL SERVICES,Revenue,PRIVATE,EXTERNAL DAYCARE,1072028,130245290,31-Oct-16,500.00,ST MARYS RESIDENTIAL HOME,SP0000215
WANDSWORTH COUNCIL,ASC,SOCIAL SERVICES,Revenue,PRIVATE,EXTERNAL DAYCARE,1072029,130245290,31-Oct-16,891.80,ST MARYS RESIDENTIAL HOME,SP0000215
WANDSWORTH COUNCIL,ASC,SOCIAL SERVICES,Revenue,PRIVATE,EXTERNAL DAYCARE,1072030,130245290,31-Oct-16,520.10,ST MARYS RESIDENTIAL HOME,SP0000215
WANDSWORTH COUNCIL,ASC,SOCIAL SERVICES,Revenue,PRIVATE,EXTERNAL DAYCARE,1072031,130245290,31-Oct-16,"1,204.20",ST MARYS RESIDENTIAL HOME,SP0000215
WANDSWORTH COUNCIL,ASC,SOCIAL SERVICES,Revenue,PRIVATE,EXTERNAL DAYCARE,1072032,130245290,31-Oct-16,519.70,ST MARYS RESIDENTIAL HOME,SP0000215
WANDSWORTH COUNCIL,ASC,SOCIAL SERVICES,Revenue,PRIVATE,EXTERNAL DAYCARE,1072035,130245290,31-Oct-16,672.50,ST MARYS RESIDENTIAL HOME,SP0000215
WANDSWORTH COUNCIL,ASC,SOCIAL SERVICES,Revenue,PRIVATE,EXTERNAL DAYCARE,1060433,130245290,06-Oct-16,"1,594.76",NAS SERVICES LIMITED,SP0000217
WANDSWORTH COUNCIL,ASC,SOCIAL SERVICES,Revenue,PRIVATE,EXTERNAL DAYCARE,1060434,130245290,06-Oct-16,"3,745.00",NAS SERVICES LIMITED,SP0000217
WANDSWORTH COUNCIL,ASC,SOCIAL SERVICES,Revenue,PRIVATE,EXTERNAL DAYCARE,1060435,130245290,06-Oct-16,"2,264.08",NAS SERVICES LIMITED,SP0000217
WANDSWORTH COUNCIL,ASC,SOCIAL SERVICES,Revenue,PRIVATE,EXTERNAL DAYCARE,1061579,130245290,07-Oct-16,718.12,SHARE COMMUNITY,SP0000329
WANDSWORTH COUNCIL,ASC,SOCIAL SERVICES,Revenue,PRIVATE,EXTERNAL DAYCARE,1061581,130245290,07-Oct-16,957.52,SHARE COMMUNITY,SP0000329
WANDSWORTH COUNCIL,ASC,SOCIAL SERVICES,Revenue,PRIVATE,EXTERNAL DAYCARE,1061583,130245290,07-Oct-16,718.12,SHARE COMMUNITY,SP0000329
WANDSWORTH COUNCIL,ASC,SOCIAL SERVICES,Revenue,PRIVATE,EXTERNAL DAYCARE,1061585,130245290,07-Oct-16,957.52,SHARE COMMUNITY,SP0000329
WANDSWORTH COUNCIL,ASC,SOCIAL SERVICES,Revenue,PRIVATE,EXTERNAL DAYCARE,1061586,130245290,07-Oct-16,"1,196.88",SHARE COMMUNITY,SP0000329
WANDSWORTH COUNCIL,ASC,SOCIAL SERVICES,Revenue,PRIVATE,EXTERNAL DAYCARE,1061587,130245290,07-Oct-16,718.12,SHARE COMMUNITY,SP0000329
WANDSWORTH COUNCIL,ASC,SOCIAL SERVICES,Revenue,PRIVATE,EXTERNAL DAYCARE,1061588,130245290,07-Oct-16,"1,196.88",SHARE COMMUNITY,SP0000329
WANDSWORTH COUNCIL,ASC,SOCIAL SERVICES,Revenue,PRIVATE,EXTERNAL DAYCARE,1061589,130245290,07-Oct-16,957.52,SHARE COMMUNITY,SP0000329
WANDSWORTH COUNCIL,ASC,SOCIAL SERVICES,Revenue,PRIVATE,EXTERNAL DAYCARE,1061591,130245290,07-Oct-16,718.12,SHARE COMMUNITY,SP0000329
WANDSWORTH COUNCIL,ASC,SOCIAL SERVICES,Revenue,PRIVATE,EXTERNAL DAYCARE,1061593,130245290,07-Oct-16,598.44,SHARE COMMUNITY,SP0000329
WANDSWORTH COUNCIL,ASC,SOCIAL SERVICES,Revenue,PRIVATE,EXTERNAL DAYCARE,1061594,130245290,07-Oct-16,718.12,SHARE COMMUNITY,SP0000329
WANDSWORTH COUNCIL,ASC,SOCIAL SERVICES,Revenue,PRIVATE,EXTERNAL DAYCARE,1061597,130245290,07-Oct-16,718.12,SHARE COMMUNITY,SP0000329
WANDSWORTH COUNCIL,ASC,SOCIAL SERVICES,Revenue,PRIVATE,EXTERNAL DAYCARE,1061598,130245290,07-Oct-16,"1,196.88",SHARE COMMUNITY,SP0000329
WANDSWORTH COUNCIL,ASC,SOCIAL SERVICES,Revenue,PRIVATE,EXTERNAL DAYCARE,1064611,130245290,14-Oct-16,718.12,SHARE COMMUNITY,SP0000329
WANDSWORTH COUNCIL,ASC,SOCIAL SERVICES,Revenue,PRIVATE,EXTERNAL DAYCARE,1064612,130245290,14-Oct-16,957.52,SHARE COMMUNITY,SP0000329
WANDSWORTH COUNCIL,ASC,SOCIAL SERVICES,Revenue,PRIVATE,EXTERNAL DAYCARE,1064613,130245290,14-Oct-16,718.12,SHARE COMMUNITY,SP0000329
WANDSWORTH COUNCIL,ASC,SOCIAL SERVICES,Revenue,PRIVATE,EXTERNAL DAYCARE,1064615,130245290,14-Oct-16,718.12,SHARE COMMUNITY,SP0000329
WANDSWORTH COUNCIL,ASC,SOCIAL SERVICES,Revenue,PRIVATE,EXTERNAL DAYCARE,1064616,130245290,14-Oct-16,957.44,SHARE COMMUNITY,SP0000329
WANDSWORTH COUNCIL,ASC,SOCIAL SERVICES,Revenue,PRIVATE,EXTERNAL DAYCARE,1064619,130245290,14-Oct-16,718.12,SHARE COMMUNITY,SP0000329
WANDSWORTH COUNCIL,ASC,SOCIAL SERVICES,Revenue,PRIVATE,EXTERNAL DAYCARE,1064622,130245290,14-Oct-16,718.12,SHARE COMMUNITY,SP0000329
WANDSWORTH COUNCIL,ASC,SOCIAL SERVICES,Revenue,PRIVATE,EXTERNAL DAYCARE,1064623,130245290,14-Oct-16,957.48,SHARE COMMUNITY,SP0000329
WANDSWORTH COUNCIL,ASC,SOCIAL SERVICES,Revenue,PRIVATE,EXTERNAL DAYCARE,1064624,130245290,14-Oct-16,718.12,SHARE COMMUNITY,SP0000329
WANDSWORTH COUNCIL,ASC,SOCIAL SERVICES,Revenue,PRIVATE,EXTERNAL DAYCARE,1064625,130245290,14-Oct-16,718.12,SHARE COMMUNITY,SP0000329
WANDSWORTH COUNCIL,ASC,SOCIAL SERVICES,Revenue,PRIVATE,EXTERNAL DAYCARE,1064626,130245290,14-Oct-16,957.48,SHARE COMMUNITY,SP0000329
WANDSWORTH COUNCIL,ASC,SOCIAL SERVICES,Revenue,PRIVATE,EXTERNAL DAYCARE,1060678,130245290,06-Oct-16,973.60,DOLPHIN HOMES LTD,SP0000331
WANDSWORTH COUNCIL,ASC,SOCIAL SERVICES,Revenue,PRIVATE,EXTERNAL DAYCARE,1074119,130245290,24-Oct-16,"2,070.04",NORWOOD SCHOOLS LTD,SP0000332
WANDSWORTH COUNCIL,ASC,SOCIAL SERVICES,Revenue,PRIVATE,EXTERNAL DAYCARE,1079511,130245290,31-Oct-16,"1,654.08",VOYAGE CARE LTD,SP0000366
WANDSWORTH COUNCIL,ASC,SOCIAL SERVICES,Revenue,PRIVATE,EXTERNAL DAYCARE,1076171,130245290,26-Oct-16,"1,813.14",EAST SUSSEX COUNTY COUNCIL,SP0000427
WANDSWORTH COUNCIL,ASC,SOCIAL SERVICES,Revenue,PRIVATE,EXTERNAL DAYCARE,1060691,130245290,06-Oct-16,525.70,O A ROWE,SP0000431
WANDSWORTH COUNCIL,ASC,SOCIAL SERVICES,Revenue,PRIVATE,EXTERNAL DAYCARE,1065033,130245290,14-Oct-16,525.70,O A ROWE,SP0000431
WANDSWORTH COUNCIL,ASC,SOCIAL SERVICES,Revenue,PRIVATE,EXTERNAL DAYCARE,1060681,130245290,06-Oct-16,803.32,WANDSWORTH BENGALI WELFARE ASSOCIATION,SP0000479
WANDSWORTH COUNCIL,ASC,SOCIAL SERVICES,Revenue,PRIVATE,EXTERNAL DAYCARE,1073196,130245290,21-Oct-16,788.80,SURREY & BORDERS PARTNERSHIP NHS TRUST,SP0000501
WANDSWORTH COUNCIL,ASC,SOCIAL SERVICES,Revenue,PRIVATE,EXTERNAL DAYCARE,1067845,130245290,17-Oct-16,720.00,GENERATE OPPORTUNITIES LTD,SP0000503
WANDSWORTH COUNCIL,ASC,SOCIAL SERVICES,Revenue,PRIVATE,EXTERNAL DAYCARE,1067854,130245290,17-Oct-16,720.00,GENERATE OPPORTUNITIES LTD,SP0000503
WANDSWORTH COUNCIL,ASC,SOCIAL SERVICES,Revenue,PRIVATE,EXTERNAL DAYCARE,1067855,130245290,17-Oct-16,720.00,GENERATE OPPORTUNITIES LTD,SP0000503
WANDSWORTH COUNCIL,ASC,SOCIAL SERVICES,Revenue,PRIVATE,EXTERNAL DAYCARE,1067863,130245290,17-Oct-16,608.23,GENERATE OPPORTUNITIES LTD,SP0000503
WANDSWORTH COUNCIL,ASC,SOCIAL SERVICES,Revenue,PRIVATE,EXTERNAL DAYCARE,1073176,130245290,21-Oct-16,800.00,GENERATE OPPORTUNITIES LTD,SP0000503
WANDSWORTH COUNCIL,ASC,SOCIAL SERVICES,Revenue,PRIVATE,EXTERNAL DAYCARE,1073180,130245290,21-Oct-16,898.80,GENERATE OPPORTUNITIES LTD,SP0000503
WANDSWORTH COUNCIL,ASC,SOCIAL SERVICES,Revenue,PRIVATE,EXTERNAL DAYCARE,1073181,130245290,21-Oct-16,600.00,GENERATE OPPORTUNITIES LTD,SP0000503
WANDSWORTH COUNCIL,ASC,SOCIAL SERVICES,Revenue,PRIVATE,EXTERNAL DAYCARE,1073895,130245290,24-Oct-16,150.98,THE COMMUNITY CARE COMPANY UK LTD,SP0000576
WANDSWORTH COUNCIL,ASC,SOCIAL SERVICES,Revenue,PRIVATE,EXTERNAL DAYCARE,1072036,130245290,20-Oct-16,932.40,ASHFIELD CARE HOMES LTD,SP0000590
WANDSWORTH COUNCIL,ASC,SOCIAL SERVICES,Revenue,PRIVATE,EXTERNAL DAYCARE,1069293,130245290,18-Oct-16,892.50,DORSET SCOPE,SP0000591
WANDSWORTH COUNCIL,ASC,SOCIAL SERVICES,Revenue,PRIVATE,EXTERNAL DAYCARE,1060420,130245290,06-Oct-16,660.00,THRIVE,SP0000601
WANDSWORTH COUNCIL,ASC,SOCIAL SERVICES,Revenue,PRIVATE,EXTERNAL DAYCARE,1076172,130245290,26-Oct-16,602.56,HIGH HURLANDS HOMES,SP0000668
WANDSWORTH COUNCIL,ASC,SOCIAL SERVICES,Revenue,PRIVATE,EXTERNAL DAYCARE,1067842,130245290,17-Oct-16,649.60,CREST COOPERATIVE LTD,SP0000683
WANDSWORTH COUNCIL,ASC,SOCIAL SERVICES,Revenue,PRIVATE,EXTERNAL DAYCARE,1076170,130245290,26-Oct-16,568.40,CREST COOPERATIVE LTD,SP0000683
WANDSWORTH COUNCIL,ASC,SOCIAL SERVICES,Revenue,PRIVATE,EXTERNAL DAYCARE,1064629,130245290,14-Oct-16,"4,534.68",WORCESTERSHIRE COUNTY COUNCIL,SP0000700
WANDSWORTH COUNCIL,ASC,SOCIAL SERVICES,Revenue,PRIVATE,EXTERNAL DAYCARE,1072037,130245290,20-Oct-16,"1,110.06",THE MANOR HOUSE,SP0000728
WANDSWORTH COUNCIL,ASC,SOCIAL SERVICES,Revenue,PRIVATE,EXTERNAL DAYCARE,1077401,130245290,27-Oct-16,531.04,UNITED RESPONSE,SP0000797
WANDSWORTH COUNCIL,ASC,SOCIAL SERVICES,Revenue,PRIVATE,EXTERNAL DAYCARE,1064628,130245290,14-Oct-16,540.00,PROSPECTS,SP0000800
WANDSWORTH COUNCIL,ASC,SOCIAL SERVICES,Revenue,PRIVATE,EXTERNAL DAYCARE,1067243,130245290,17-Oct-16,515.52,MENCAP OPEN DOOR,SP0000832
WANDSWORTH COUNCIL,ASC,SOCIAL SERVICES,Revenue,PRIVATE,EXTERNAL DAYCARE,1067249,130245290,17-Oct-16,644.00,MENCAP OPEN DOOR,SP0000832
WANDSWORTH COUNCIL,ASC,SOCIAL SERVICES,Revenue,PRIVATE,EXTERNAL DAYCARE,1067250,130245290,17-Oct-16,515.20,MENCAP OPEN DOOR,SP0000832
WANDSWORTH COUNCIL,ASC,SOCIAL SERVICES,Revenue,PRIVATE,EXTERNAL DAYCARE,1063264,130245290,10-Oct-16,"1,586.84",STALLCOMBE HOUSE,SP0000843
WANDSWORTH COUNCIL,ASC,SOCIAL SERVICES,Revenue,PRIVATE,EXTERNAL DAYCARE,1069879,130245290,19-Oct-16,"1,597.96",STALLCOMBE HOUSE,SP0000843
WANDSWORTH COUNCIL,ASC,SOCIAL SERVICES,Revenue,PRIVATE,EXTERNAL DAYCARE,1077421,130245290,27-Oct-16,848.00,SCOPE,SP0000852
WANDSWORTH COUNCIL,ASC,SOCIAL SERVICES,Revenue,PRIVATE,EXTERNAL DAYCARE,1064534,130245290,14-Oct-16,557.88,ACT TOO LTD,SP0000855
WANDSWORTH COUNCIL,ASC,SOCIAL SERVICES,Revenue,PRIVATE,EXTERNAL DAYCARE,1064535,130245290,14-Oct-16,743.84,ACT TOO LTD,SP0000855
WANDSWORTH COUNCIL,ASC,SOCIAL SERVICES,Revenue,PRIVATE,EXTERNAL DAYCARE,1064538,130245290,14-Oct-16,557.88,ACT TOO LTD,SP0000855
WANDSWORTH COUNCIL,ASC,SOCIAL SERVICES,Revenue,PRIVATE,EXTERNAL DAYCARE,1064539,130245290,14-Oct-16,743.84,ACT TOO LTD,SP0000855
WANDSWORTH COUNCIL,ASC,SOCIAL SERVICES,Revenue,PRIVATE,EXTERNAL DAYCARE,1064540,130245290,14-Oct-16,"1,115.76",ACT TOO LTD,SP0000855
WANDSWORTH COUNCIL,ASC,SOCIAL SERVICES,Revenue,PRIVATE,EXTERNAL DAYCARE,1064545,130245290,14-Oct-16,929.80,ACT TOO LTD,SP0000855
WANDSWORTH COUNCIL,ASC,SOCIAL SERVICES,Revenue,PRIVATE,EXTERNAL DAYCARE,1064548,130245290,14-Oct-16,743.84,ACT TOO LTD,SP0000855
WANDSWORTH COUNCIL,ASC,SOCIAL SERVICES,Revenue,PRIVATE,EXTERNAL DAYCARE,1064549,130245290,14-Oct-16,743.84,ACT TOO LTD,SP0000855
WANDSWORTH COUNCIL,ASC,SOCIAL SERVICES,Revenue,PRIVATE,EXTERNAL DAYCARE,1064550,130245290,14-Oct-16,743.84,ACT TOO LTD,SP0000855
WANDSWORTH COUNCIL,ASC,SOCIAL SERVICES,Revenue,PRIVATE,EXTERNAL DAYCARE,1064554,130245290,14-Oct-16,557.88,ACT TOO LTD,SP0000855
WANDSWORTH COUNCIL,ASC,SOCIAL SERVICES,Revenue,PRIVATE,EXTERNAL DAYCARE,1064555,130245290,14-Oct-16,557.88,ACT TOO LTD,SP0000855
WANDSWORTH COUNCIL,ASC,SOCIAL SERVICES,Revenue,PRIVATE,EXTERNAL DAYCARE,1064556,130245290,14-Oct-16,557.88,ACT TOO LTD,SP0000855
WANDSWORTH COUNCIL,ASC,SOCIAL SERVICES,Revenue,PRIVATE,EXTERNAL DAYCARE,1064559,130245290,14-Oct-16,557.88,ACT TOO LTD,SP0000855
WANDSWORTH COUNCIL,ASC,SOCIAL SERVICES,Revenue,PRIVATE,EXTERNAL DAYCARE,1064560,130245290,14-Oct-16,557.88,ACT TOO LTD,SP0000855
WANDSWORTH COUNCIL,ASC,SOCIAL SERVICES,Revenue,PRIVATE,EXTERNAL DAYCARE,1064565,130245290,14-Oct-16,557.88,ACT TOO LTD,SP0000855
WANDSWORTH COUNCIL,ASC,SOCIAL SERVICES,Revenue,PRIVATE,EXTERNAL DAYCARE,1064568,130245290,14-Oct-16,557.88,ACT TOO LTD,SP0000855
WANDSWORTH COUNCIL,ASC,SOCIAL SERVICES,Revenue,PRIVATE,EXTERNAL DAYCARE,1064569,130245290,14-Oct-16,557.88,ACT TOO LTD,SP0000855
WANDSWORTH COUNCIL,ASC,SOCIAL SERVICES,Revenue,PRIVATE,EXTERNAL DAYCARE,1064571,130245290,14-Oct-16,557.88,ACT TOO LTD,SP0000855
WANDSWORTH COUNCIL,ASC,SOCIAL SERVICES,Revenue,PRIVATE,EXTERNAL DAYCARE,1064572,130245290,14-Oct-16,557.88,ACT TOO LTD,SP0000855
WANDSWORTH COUNCIL,ASC,SOCIAL SERVICES,Revenue,PRIVATE,EXTERNAL DAYCARE,1064581,130245290,14-Oct-16,929.80,ACT TOO LTD,SP0000855
WANDSWORTH COUNCIL,ASC,SOCIAL SERVICES,Revenue,PRIVATE,EXTERNAL DAYCARE,1064586,130245290,14-Oct-16,929.80,ACT TOO LTD,SP0000855
WANDSWORTH COUNCIL,ASC,SOCIAL SERVICES,Revenue,PRIVATE,EXTERNAL DAYCARE,1064587,130245290,14-Oct-16,"1,115.76",ACT TOO LTD,SP0000855
WANDSWORTH COUNCIL,ASC,SOCIAL SERVICES,Revenue,PRIVATE,EXTERNAL DAYCARE,1064588,130245290,14-Oct-16,743.84,ACT TOO LTD,SP0000855
WANDSWORTH COUNCIL,ASC,SOCIAL SERVICES,Revenue,PRIVATE,EXTERNAL DAYCARE,1064590,130245290,14-Oct-16,557.88,ACT TOO LTD,SP0000855
WANDSWORTH COUNCIL,ASC,SOCIAL SERVICES,Revenue,PRIVATE,EXTERNAL DAYCARE,1064591,130245290,14-Oct-16,557.88,ACT TOO LTD,SP0000855
WANDSWORTH COUNCIL,ASC,SOCIAL SERVICES,Revenue,PRIVATE,EXTERNAL DAYCARE,1064596,130245290,14-Oct-16,557.88,ACT TOO LTD,SP0000855
WANDSWORTH COUNCIL,ASC,SOCIAL SERVICES,Revenue,PRIVATE,EXTERNAL DAYCARE,1064599,130245290,14-Oct-16,557.88,ACT TOO LTD,SP0000855
WANDSWORTH COUNCIL,ASC,SOCIAL SERVICES,Revenue,PRIVATE,EXTERNAL DAYCARE,1064600,130245290,14-Oct-16,929.80,ACT TOO LTD,SP0000855
WANDSWORTH COUNCIL,ASC,SOCIAL SERVICES,Revenue,PRIVATE,EXTERNAL DAYCARE,1064601,130245290,14-Oct-16,557.88,ACT TOO LTD,SP0000855
WANDSWORTH COUNCIL,ASC,SOCIAL SERVICES,Revenue,PRIVATE,EXTERNAL DAYCARE,1069874,130245290,19-Oct-16,743.84,ACT TOO LTD,SP0000855
WANDSWORTH COUNCIL,ASC,SOCIAL SERVICES,Revenue,PRIVATE,EXTERNAL DAYCARE,1076180,130245290,26-Oct-16,557.88,ACT TOO LTD,SP0000855
WANDSWORTH COUNCIL,ASC,SOCIAL SERVICES,Revenue,PRIVATE,EXTERNAL DAYCARE,1076182,130245290,26-Oct-16,557.88,ACT TOO LTD,SP0000855
WANDSWORTH COUNCIL,ASC,SOCIAL SERVICES,Revenue,PRIVATE,EXTERNAL DAYCARE,1076183,130245290,26-Oct-16,557.88,ACT TOO LTD,SP0000855
WANDSWORTH COUNCIL,ASC,SOCIAL SERVICES,Revenue,PRIVATE,EXTERNAL DAYCARE,1076184,130245290,26-Oct-16,557.88,ACT TOO LTD,SP0000855
WANDSWORTH COUNCIL,ASC,SOCIAL SERVICES,Revenue,PRIVATE,EXTERNAL DAYCARE,1076186,130245290,26-Oct-16,557.88,ACT TOO LTD,SP0000855
WANDSWORTH COUNCIL,ASC,SOCIAL SERVICES,Revenue,PRIVATE,EXTERNAL DAYCARE,1076187,130245290,26-Oct-16,929.80,ACT TOO LTD,SP0000855
WANDSWORTH COUNCIL,ASC,SOCIAL SERVICES,Revenue,PRIVATE,EXTERNAL DAYCARE,1076188,130245290,26-Oct-16,557.88,ACT TOO LTD,SP0000855
WANDSWORTH COUNCIL,ASC,SOCIAL SERVICES,Revenue,PRIVATE,EXTERNAL DAYCARE,1076197,130245290,26-Oct-16,929.80,ACT TOO LTD,SP0000855
WANDSWORTH COUNCIL,ASC,SOCIAL SERVICES,Revenue,PRIVATE,EXTERNAL DAYCARE,1076203,130245290,26-Oct-16,929.80,ACT TOO LTD,SP0000855
WANDSWORTH COUNCIL,ASC,SOCIAL SERVICES,Revenue,PRIVATE,EXTERNAL DAYCARE,1076204,130245290,26-Oct-16,557.88,ACT TOO LTD,SP0000855
WANDSWORTH COUNCIL,ASC,SOCIAL SERVICES,Revenue,PRIVATE,EXTERNAL DAYCARE,1076205,130245290,26-Oct-16,"1,115.76",ACT TOO LTD,SP0000855
WANDSWORTH COUNCIL,ASC,SOCIAL SERVICES,Revenue,PRIVATE,EXTERNAL DAYCARE,1076206,130245290,26-Oct-16,743.84,ACT TOO LTD,SP0000855
WANDSWORTH COUNCIL,ASC,SOCIAL SERVICES,Revenue,PRIVATE,EXTERNAL DAYCARE,1076209,130245290,26-Oct-16,557.88,ACT TOO LTD,SP0000855
WANDSWORTH COUNCIL,ASC,SOCIAL SERVICES,Revenue,PRIVATE,EXTERNAL DAYCARE,1076214,130245290,26-Oct-16,557.88,ACT TOO LTD,SP0000855
WANDSWORTH COUNCIL,ASC,SOCIAL SERVICES,Revenue,PRIVATE,EXTERNAL DAYCARE,1076215,130245290,26-Oct-16,557.88,ACT TOO LTD,SP0000855
WANDSWORTH COUNCIL,ASC,SOCIAL SERVICES,Revenue,PRIVATE,EXTERNAL DAYCARE,1076220,130245290,26-Oct-16,557.88,ACT TOO LTD,SP0000855
WANDSWORTH COUNCIL,ASC,SOCIAL SERVICES,Revenue,PRIVATE,EXTERNAL DAYCARE,1063266,130245290,10-Oct-16,"1,416.24",WINSLOW COURT,SP0000886
WANDSWORTH COUNCIL,ASC,SOCIAL SERVICES,Revenue,PRIVATE,EXTERNAL DAYCARE,1063267,130245290,10-Oct-16,"1,416.24",WINSLOW COURT,SP0000886
WANDSWORTH COUNCIL,ASC,SOCIAL SERVICES,Revenue,PRIVATE,EXTERNAL DAYCARE,1060430,130245290,06-Oct-16,844.38,ORIONE CARE,SP0000961
WANDSWORTH COUNCIL,ASC,SOCIAL SERVICES,Revenue,PRIVATE,EXTERNAL DAYCARE,1060432,130245290,06-Oct-16,609.83,ORIONE CARE,SP0000961
WANDSWORTH COUNCIL,ASC,SOCIAL SERVICES,Revenue,PRIVATE,EXTERNAL DAYCARE,1065653,130245290,17-Oct-16,844.38,ORIONE CARE,SP0000961
WANDSWORTH COUNCIL,ASC,SOCIAL SERVICES,Revenue,PRIVATE,EXTERNAL DAYCARE,1065655,130245290,17-Oct-16,609.83,ORIONE CARE,SP0000961
WANDSWORTH COUNCIL,ASC,SOCIAL SERVICES,Revenue,PRIVATE,EXTERNAL DAYCARE,1061058,130245290,06-Oct-16,"1,200.00",RIDGEWOOD CARE SERVICES LTD,SP0000969
WANDSWORTH COUNCIL,ASC,SOCIAL SERVICES,Revenue,PRIVATE,EXTERNAL DAYCARE,1061059,130245290,06-Oct-16,"1,177.40",RIDGEWOOD CARE SERVICES LTD,SP0000969
WANDSWORTH COUNCIL,ASC,SOCIAL SERVICES,Revenue,PRIVATE,EXTERNAL DAYCARE,1071976,130245290,20-Oct-16,"1,200.00",RIDGEWOOD CARE SERVICES LTD,SP0000969
WANDSWORTH COUNCIL,ASC,SOCIAL SERVICES,Revenue,PRIVATE,EXTERNAL DAYCARE,1072039,130245290,20-Oct-16,596.80,SCOPE,SP0000991
WANDSWORTH COUNCIL,ASC,SOCIAL SERVICES,Revenue,PRIVATE,EXTERNAL DAYCARE,1073435,130245290,21-Oct-16,895.20,SCOPE,SP0000991
WANDSWORTH COUNCIL,ASC,SOCIAL SERVICES,Revenue,PRIVATE,EXTERNAL DAYCARE,1060428,130245290,06-Oct-16,880.00,THE HOME FARM TRUST LTD,SP0001048
WANDSWORTH COUNCIL,ASC,SOCIAL SERVICES,Revenue,PRIVATE,EXTERNAL DAYCARE,1060429,130245290,06-Oct-16,990.00,THE HOME FARM TRUST LTD,SP0001048
WANDSWORTH COUNCIL,ASC,SOCIAL SERVICES,Revenue,PRIVATE,EXTERNAL DAYCARE,1073350,130245290,21-Oct-16,"1,708.50",SUSSEX HEALTH CARE,SP0001115
WANDSWORTH COUNCIL,ASC,SOCIAL SERVICES,Revenue,PRIVATE,EXTERNAL DAYCARE,1074120,130245290,24-Oct-16,819.52,HARROW MENCAP,SP0001347
WANDSWORTH COUNCIL,ASC,SOCIAL SERVICES,Revenue,PRIVATE,EXTERNAL DAYCARE,1069880,130245290,19-Oct-16,"1,134.08",WORKSHOP 305,SP0001403
WANDSWORTH COUNCIL,ASC,SOCIAL SERVICES,Revenue,PRIVATE,EXTERNAL DAYCARE,1060689,130245290,06-Oct-16,963.20,INSPIRE CARE OUTREACH LIMITED,SP0010404
WANDSWORTH COUNCIL,ASC,SOCIAL SERVICES,Revenue,PRIVATE,EXTERNAL DAYCARE,1060690,130245290,06-Oct-16,963.20,INSPIRE CARE OUTREACH LIMITED,SP0010404
WANDSWORTH COUNCIL,ASC,SOCIAL SERVICES,Revenue,PRIVATE,EXTERNAL DAYCARE,1076173,130245290,26-Oct-16,963.20,INSPIRE CARE OUTREACH LIMITED,SP0010404
WANDSWORTH COUNCIL,ASC,SOCIAL SERVICES,Revenue,PRIVATE,EXTERNAL DAYCARE,1073194,130245290,21-Oct-16,"3,360.00",SURREY CHOICES,SP0010983
WANDSWORTH COUNCIL,ASC,SOCIAL SERVICES,Revenue,PRIVATE,EXTERNAL DAYCARE,1073195,130245290,21-Oct-16,"8,940.00",SURREY CHOICES,SP0010983
WANDSWORTH COUNCIL,ASC,SOCIAL SERVICES,Revenue,PRIVATE,EXTERNAL HOMECARE,1061562,130245300,07-Oct-16,964.90,RAINBOW MEDICAL SERVICES,SP0000037
WANDSWORTH COUNCIL,ASC,SOCIAL SERVICES,Revenue,PRIVATE,EXTERNAL HOMECARE,1079457,130245300,31-Oct-16,"2,216.74",RAINBOW MEDICAL SERVICES,SP0000037
WANDSWORTH COUNCIL,ASC,SOCIAL SERVICES,Revenue,PRIVATE,EXTERNAL HOMECARE,1079458,130245300,31-Oct-16,540.36,RAINBOW MEDICAL SERVICES,SP0000037
WANDSWORTH COUNCIL,ASC,SOCIAL SERVICES,Revenue,PRIVATE,EXTERNAL HOMECARE,1079459,130245300,31-Oct-16,555.60,RAINBOW MEDICAL SERVICES,SP0000037
WANDSWORTH COUNCIL,ASC,SOCIAL SERVICES,Revenue,PRIVATE,EXTERNAL HOMECARE,1079460,130245300,31-Oct-16,555.60,RAINBOW MEDICAL SERVICES,SP0000037
WANDSWORTH COUNCIL,ASC,SOCIAL SERVICES,Revenue,PRIVATE,EXTERNAL HOMECARE,1079461,130245300,31-Oct-16,534.70,RAINBOW MEDICAL SERVICES,SP0000037
WANDSWORTH COUNCIL,ASC,SOCIAL SERVICES,Revenue,PRIVATE,EXTERNAL HOMECARE,1079462,130245300,31-Oct-16,"2,793.24",RAINBOW MEDICAL SERVICES,SP0000037
WANDSWORTH COUNCIL,ASC,SOCIAL SERVICES,Revenue,PRIVATE,EXTERNAL HOMECARE,1079463,130245300,31-Oct-16,"2,320.37",RAINBOW MEDICAL SERVICES,SP0000037
WANDSWORTH COUNCIL,ASC,SOCIAL SERVICES,Revenue,PRIVATE,EXTERNAL HOMECARE,1064914,130245300,14-Oct-16,644.40,MUSHKIL AASAAN LTD,SP0000978
WANDSWORTH COUNCIL,ASC,SOCIAL SERVICES,Revenue,PRIVATE,EXTERNAL HOMECARE,1071049,130245300,19-Oct-16,814.02,CARE OUTLOOK LTD,SP0001545
WANDSWORTH COUNCIL,ASC,SOCIAL SERVICES,Revenue,PRIVATE,EXTERNAL HOMECARE,1061426,130245300,07-Oct-16,"1,309.52",SUPREME CARE SERVICE LTD,SP0001600
WANDSWORTH COUNCIL,ASC,SOCIAL SERVICES,Revenue,PRIVATE,EXTERNAL HOMECARE,1076088,130245300,26-Oct-16,"1,304.82",SUPREME CARE SERVICE LTD,SP0001600
WANDSWORTH COUNCIL,ASC,SOCIAL SERVICES,Revenue,PRIVATE,EXTERNAL HOMECARE,1067180,130245300,17-Oct-16,"3,232.00",CHRISTIES CARE LTD,SP0005440
WANDSWORTH COUNCIL,ASC,SOCIAL SERVICES,Revenue,PRIVATE,EXTERNAL HOMECARE,1064500,130245300,14-Oct-16,716.40,LONDON HOMECARE LTD,SP0009029
WANDSWORTH COUNCIL,ASC,SOCIAL SERVICES,Revenue,PRIVATE,EXTERNAL HOMECARE,1064502,130245300,14-Oct-16,766.90,LONDON HOMECARE LTD,SP0009029
WANDSWORTH COUNCIL,ASC,SOCIAL SERVICES,Revenue,PRIVATE,EXTERNAL HOMECARE,1065494,130245300,17-Oct-16,665.32,LONDON HOMECARE LTD,SP0009029
WANDSWORTH COUNCIL,ASC,SOCIAL SERVICES,Revenue,PRIVATE,EXTERNAL HOMECARE,1065505,130245300,17-Oct-16,"1,902.96",LONDON HOMECARE LTD,SP0009029
WANDSWORTH COUNCIL,ASC,SOCIAL SERVICES,Revenue,PRIVATE,EXTERNAL HOMECARE,1065555,130245300,17-Oct-16,962.55,LONDON HOMECARE LTD,SP0009029
WANDSWORTH COUNCIL,ASC,SOCIAL SERVICES,Revenue,PRIVATE,EXTERNAL HOMECARE,1065586,130245300,17-Oct-16,662.40,LONDON HOMECARE LTD,SP0009029
WANDSWORTH COUNCIL,ASC,SOCIAL SERVICES,Revenue,PRIVATE,EXTERNAL HOMECARE,1073955,130245300,24-Oct-16,"1,902.96",LONDON HOMECARE LTD,SP0009029
WANDSWORTH COUNCIL,ASC,SOCIAL SERVICES,Revenue,PRIVATE,EXTERNAL HOMECARE,1074002,130245300,24-Oct-16,979.80,LONDON HOMECARE LTD,SP0009029
WANDSWORTH COUNCIL,ASC,SOCIAL SERVICES,Revenue,PRIVATE,EXTERNAL HOMECARE,1074010,130245300,24-Oct-16,666.42,LONDON HOMECARE LTD,SP0009029
WANDSWORTH COUNCIL,ASC,SOCIAL SERVICES,Revenue,PRIVATE,EXTERNAL HOMECARE,1074034,130245300,24-Oct-16,662.40,LONDON HOMECARE LTD,SP0009029
WANDSWORTH COUNCIL,ASC,SOCIAL SERVICES,Revenue,PRIVATE,EXTERNAL HOMECARE,1076166,130245300,26-Oct-16,730.20,LONDON HOMECARE LTD,SP0009029
WANDSWORTH COUNCIL,ASC,SOCIAL SERVICES,Revenue,PRIVATE,EXTERNAL HOMECARE,1061549,130245300,07-Oct-16,"1,117.00",HEALTH CARE SOLUTIONS,SP0010527
WANDSWORTH COUNCIL,ASC,SOCIAL SERVICES,Revenue,PRIVATE,EXTERNAL HOMECARE,1076128,130245300,26-Oct-16,558.50,HEALTH CARE SOLUTIONS,SP0010527
WANDSWORTH COUNCIL,ASC,SOCIAL SERVICES,Revenue,PRIVATE,EXTERNAL HOMECARE,1076129,130245300,26-Oct-16,558.50,HEALTH CARE SOLUTIONS,SP0010527
WANDSWORTH COUNCIL,ASC,SOCIAL SERVICES,Revenue,PRIVATE,EXTERNAL HOMECARE,1076130,130245300,26-Oct-16,558.50,HEALTH CARE SOLUTIONS,SP0010527
WANDSWORTH COUNCIL,ASC,SOCIAL SERVICES,Revenue,PRIVATE,EXTERNAL NURSING CARE,1062301,130245310,07-Oct-16,"3,546.80",ROSEDENE NURSING HOME,SP0000316
WANDSWORTH COUNCIL,ASC,SOCIAL SERVICES,Revenue,PRIVATE,EXTERNAL NURSING CARE,1079629,130245310,31-Oct-16,"3,546.80",ROSEDENE NURSING HOME,SP0000316
WANDSWORTH COUNCIL,ASC,SOCIAL SERVICES,Revenue,PRIVATE,EXTERNAL NURSING CARE,1079447,130245310,31-Oct-16,"4,358.88",VOYAGE CARE LTD,SP0000366
WANDSWORTH COUNCIL,ASC,SOCIAL SERVICES,Revenue,PRIVATE,EXTERNAL NURSING CARE,1079450,130245310,31-Oct-16,"5,502.08",VOYAGE CARE LTD,SP0000366
WANDSWORTH COUNCIL,ASC,SOCIAL SERVICES,Revenue,PRIVATE,EXTERNAL NURSING CARE,1061419,130245310,07-Oct-16,"9,108.12",CHOICE SUPPORT,SP0000398
WANDSWORTH COUNCIL,ASC,SOCIAL SERVICES,Revenue,PRIVATE,EXTERNAL NURSING CARE,1067166,130245310,17-Oct-16,"6,853.64",ACTION ON HEARING LOSS,SP0000563
WANDSWORTH COUNCIL,ASC,SOCIAL SERVICES,Revenue,PRIVATE,EXTERNAL NURSING CARE,1073896,130245310,24-Oct-16,"9,037.65",THE COMMUNITY CARE COMPANY UK LTD,SP0000576
WANDSWORTH COUNCIL,ASC,SOCIAL SERVICES,Revenue,PRIVATE,EXTERNAL NURSING CARE,1062364,130245310,07-Oct-16,"3,256.52",BUPA CARE SERVICES BACS RECEIPTS,SP0000644
WANDSWORTH COUNCIL,ASC,SOCIAL SERVICES,Revenue,PRIVATE,EXTERNAL NURSING CARE,1062385,130245310,07-Oct-16,"3,256.52",BUPA CARE SERVICES BACS RECEIPTS,SP0000644
WANDSWORTH COUNCIL,ASC,SOCIAL SERVICES,Revenue,PRIVATE,EXTERNAL NURSING CARE,1075843,130245310,26-Oct-16,"5,663.36",HIGH HURLANDS HOMES,SP0000668
WANDSWORTH COUNCIL,ASC,SOCIAL SERVICES,Revenue,PRIVATE,EXTERNAL NURSING CARE,1063186,130245310,10-Oct-16,"22,094.57",TREETOPS NURSING HOME,SP0011106
WANDSWORTH COUNCIL,ASC,SOCIAL SERVICES,Revenue,PRIVATE,EXTERNAL RESIDENTIAL CARE,1079432,130245330,31-Oct-16,"5,844.60",CMG HOMES LTD,SP0000075
WANDSWORTH COUNCIL,ASC,SOCIAL SERVICES,Revenue,PRIVATE,EXTERNAL RESIDENTIAL CARE,1079434,130245330,31-Oct-16,"4,059.04",CMG HOMES LTD,SP0000075
WANDSWORTH COUNCIL,ASC,SOCIAL SERVICES,Revenue,PRIVATE,EXTERNAL RESIDENTIAL CARE,1079435,130245330,31-Oct-16,"6,233.72",CMG HOMES LTD,SP0000075
WANDSWORTH COUNCIL,ASC,SOCIAL SERVICES,Revenue,PRIVATE,EXTERNAL RESIDENTIAL CARE,1079436,130245330,31-Oct-16,"5,762.48",CMG HOMES LTD,SP0000075
WANDSWORTH COUNCIL,ASC,SOCIAL SERVICES,Revenue,PRIVATE,EXTERNAL RESIDENTIAL CARE,1079438,130245330,31-Oct-16,"8,365.08",CMG HOMES LTD,SP0000075
WANDSWORTH COUNCIL,ASC,SOCIAL SERVICES,Revenue,PRIVATE,EXTERNAL RESIDENTIAL CARE,1079439,130245330,31-Oct-16,"5,033.92",CMG HOMES LTD,SP0000075
WANDSWORTH COUNCIL,ASC,SOCIAL SERVICES,Revenue,PRIVATE,EXTERNAL RESIDENTIAL CARE,1079440,130245330,31-Oct-16,"4,821.28",CMG HOMES LTD,SP0000075
WANDSWORTH COUNCIL,ASC,SOCIAL SERVICES,Revenue,PRIVATE,EXTERNAL RESIDENTIAL CARE,1079441,130245330,31-Oct-16,"7,403.60",CMG HOMES LTD,SP0000075
WANDSWORTH COUNCIL,ASC,SOCIAL SERVICES,Revenue,PRIVATE,EXTERNAL RESIDENTIAL CARE,1072025,130245330,20-Oct-16,"6,669.65",NATIONAL SOCIETY FOR EPILEPSY,SP0000120
WANDSWORTH COUNCIL,ASC,SOCIAL SERVICES,Revenue,PRIVATE,EXTERNAL RESIDENTIAL CARE,1062213,130245330,07-Oct-16,"2,499.08",SANCTUARY CARE LTD,SP0000121
WANDSWORTH COUNCIL,ASC,SOCIAL SERVICES,Revenue,PRIVATE,EXTERNAL RESIDENTIAL CARE,1079538,130245330,31-Oct-16,"2,499.08",SANCTUARY CARE LTD,SP0000121
WANDSWORTH COUNCIL,ASC,SOCIAL SERVICES,Revenue,PRIVATE,EXTERNAL RESIDENTIAL CARE,1075845,130245330,26-Oct-16,"3,985.19",CENTRUST CARE HOMES LTD,SP0000141
WANDSWORTH COUNCIL,ASC,SOCIAL SERVICES,Revenue,PRIVATE,EXTERNAL RESIDENTIAL CARE,1072022,130245330,20-Oct-16,"4,869.74",FRANCES TAYLOR FOUNDATION,SP0000142
WANDSWORTH COUNCIL,ASC,SOCIAL SERVICES,Revenue,PRIVATE,EXTERNAL RESIDENTIAL CARE,1072023,130245330,20-Oct-16,"4,373.88",FRANCES TAYLOR FOUNDATION,SP0000142
WANDSWORTH COUNCIL,ASC,SOCIAL SERVICES,Revenue,PRIVATE,EXTERNAL RESIDENTIAL CARE,1072024,130245330,20-Oct-16,"4,220.47",FRANCES TAYLOR FOUNDATION,SP0000142
WANDSWORTH COUNCIL,ASC,SOCIAL SERVICES,Revenue,PRIVATE,EXTERNAL RESIDENTIAL CARE,1065434,130245330,17-Oct-16,"4,062.44",RESIDENTIAL CARE SERVICES T/A FRANKLYN L,SP0000147
WANDSWORTH COUNCIL,ASC,SOCIAL SERVICES,Revenue,PRIVATE,EXTERNAL RESIDENTIAL CARE,1065439,130245330,17-Oct-16,"4,062.44",RESIDENTIAL CARE SERVICES T/A FRANKLYN L,SP0000147
WANDSWORTH COUNCIL,ASC,SOCIAL SERVICES,Revenue,PRIVATE,EXTERNAL RESIDENTIAL CARE,1075842,130245330,26-Oct-16,"9,223.48",THE MAPLES,SP0000154
WANDSWORTH COUNCIL,ASC,SOCIAL SERVICES,Revenue,PRIVATE,EXTERNAL RESIDENTIAL CARE,1064210,130245330,13-Oct-16,"5,594.12",THE CHESTNUTS,SP0000182
WANDSWORTH COUNCIL,ASC,SOCIAL SERVICES,Revenue,PRIVATE,EXTERNAL RESIDENTIAL CARE,1063196,130245330,10-Oct-16,"1,662.08",ORCHARD VALE TRUST,SP0000214
WANDSWORTH COUNCIL,ASC,SOCIAL SERVICES,Revenue,PRIVATE,EXTERNAL RESIDENTIAL CARE,1063192,130245330,10-Oct-16,"3,269.48",ST MARYS RESIDENTIAL HOME,SP0000215
WANDSWORTH COUNCIL,ASC,SOCIAL SERVICES,Revenue,PRIVATE,EXTERNAL RESIDENTIAL CARE,1063193,130245330,10-Oct-16,"3,269.48",ST MARYS RESIDENTIAL HOME,SP0000215
WANDSWORTH COUNCIL,ASC,SOCIAL SERVICES,Revenue,PRIVATE,EXTERNAL RESIDENTIAL CARE,1063194,130245330,10-Oct-16,"3,097.12",ST MARYS RESIDENTIAL HOME,SP0000215
WANDSWORTH COUNCIL,ASC,SOCIAL SERVICES,Revenue,PRIVATE,EXTERNAL RESIDENTIAL CARE,1063195,130245330,10-Oct-16,"3,539.72",ST MARYS RESIDENTIAL HOME,SP0000215
WANDSWORTH COUNCIL,ASC,SOCIAL SERVICES,Revenue,PRIVATE,EXTERNAL RESIDENTIAL CARE,1067179,130245330,17-Oct-16,"2,833.53",ST MARYS RESIDENTIAL HOME,SP0000215
WANDSWORTH COUNCIL,ASC,SOCIAL SERVICES,Revenue,PRIVATE,EXTERNAL RESIDENTIAL CARE,1071977,130245330,20-Oct-16,"3,828.05",ST MARYS RESIDENTIAL HOME,SP0000215
WANDSWORTH COUNCIL,ASC,SOCIAL SERVICES,Revenue,PRIVATE,EXTERNAL RESIDENTIAL CARE,1071978,130245330,20-Oct-16,"2,877.96",ST MARYS RESIDENTIAL HOME,SP0000215
WANDSWORTH COUNCIL,ASC,SOCIAL SERVICES,Revenue,PRIVATE,EXTERNAL RESIDENTIAL CARE,1071979,130245330,20-Oct-16,"3,989.52",ST MARYS RESIDENTIAL HOME,SP0000215
WANDSWORTH COUNCIL,ASC,SOCIAL SERVICES,Revenue,PRIVATE,EXTERNAL RESIDENTIAL CARE,1071980,130245330,20-Oct-16,"3,926.02",ST MARYS RESIDENTIAL HOME,SP0000215
WANDSWORTH COUNCIL,ASC,SOCIAL SERVICES,Revenue,PRIVATE,EXTERNAL RESIDENTIAL CARE,1071981,130245330,20-Oct-16,"3,594.80",ST MARYS RESIDENTIAL HOME,SP0000215
WANDSWORTH COUNCIL,ASC,SOCIAL SERVICES,Revenue,PRIVATE,EXTERNAL RESIDENTIAL CARE,1071982,130245330,20-Oct-16,"3,737.58",ST MARYS RESIDENTIAL HOME,SP0000215
WANDSWORTH COUNCIL,ASC,SOCIAL SERVICES,Revenue,PRIVATE,EXTERNAL RESIDENTIAL CARE,1071983,130245330,20-Oct-16,"3,156.11",ST MARYS RESIDENTIAL HOME,SP0000215
WANDSWORTH COUNCIL,ASC,SOCIAL SERVICES,Revenue,PRIVATE,EXTERNAL RESIDENTIAL CARE,1071984,130245330,20-Oct-16,"5,163.36",ST MARYS RESIDENTIAL HOME,SP0000215
WANDSWORTH COUNCIL,ASC,SOCIAL SERVICES,Revenue,PRIVATE,EXTERNAL RESIDENTIAL CARE,1071985,130245330,20-Oct-16,"4,022.91",ST MARYS RESIDENTIAL HOME,SP0000215
WANDSWORTH COUNCIL,ASC,SOCIAL SERVICES,Revenue,PRIVATE,EXTERNAL RESIDENTIAL CARE,1071986,130245330,20-Oct-16,"3,607.78",ST MARYS RESIDENTIAL HOME,SP0000215
WANDSWORTH COUNCIL,ASC,SOCIAL SERVICES,Revenue,PRIVATE,EXTERNAL RESIDENTIAL CARE,1071987,130245330,20-Oct-16,"2,935.49",ST MARYS RESIDENTIAL HOME,SP0000215
WANDSWORTH COUNCIL,ASC,SOCIAL SERVICES,Revenue,PRIVATE,EXTERNAL RESIDENTIAL CARE,1071988,130245330,20-Oct-16,"3,828.05",ST MARYS RESIDENTIAL HOME,SP0000215
WANDSWORTH COUNCIL,ASC,SOCIAL SERVICES,Revenue,PRIVATE,EXTERNAL RESIDENTIAL CARE,1071989,130245330,20-Oct-16,"3,567.65",ST MARYS RESIDENTIAL HOME,SP0000215
WANDSWORTH COUNCIL,ASC,SOCIAL SERVICES,Revenue,PRIVATE,EXTERNAL RESIDENTIAL CARE,1071990,130245330,20-Oct-16,"2,329.65",ST MARYS RESIDENTIAL HOME,SP0000215
WANDSWORTH COUNCIL,ASC,SOCIAL SERVICES,Revenue,PRIVATE,EXTERNAL RESIDENTIAL CARE,1072732,130245330,20-Oct-16,"4,405.25",ST MARYS RESIDENTIAL HOME,SP0000215
WANDSWORTH COUNCIL,ASC,SOCIAL SERVICES,Revenue,PRIVATE,EXTERNAL RESIDENTIAL CARE,1073932,130245330,24-Oct-16,"2,206.11",ST MARYS RESIDENTIAL HOME,SP0000215
WANDSWORTH COUNCIL,ASC,SOCIAL SERVICES,Revenue,PRIVATE,EXTERNAL RESIDENTIAL CARE,1073933,130245330,24-Oct-16,"4,022.91",ST MARYS RESIDENTIAL HOME,SP0000215
WANDSWORTH COUNCIL,ASC,SOCIAL SERVICES,Revenue,PRIVATE,EXTERNAL RESIDENTIAL CARE,1073935,130245330,24-Oct-16,"3,893.14",ST MARYS RESIDENTIAL HOME,SP0000215
WANDSWORTH COUNCIL,ASC,SOCIAL SERVICES,Revenue,PRIVATE,EXTERNAL RESIDENTIAL CARE,1073937,130245330,24-Oct-16,"4,022.91",ST MARYS RESIDENTIAL HOME,SP0000215
WANDSWORTH COUNCIL,ASC,SOCIAL SERVICES,Revenue,PRIVATE,EXTERNAL RESIDENTIAL CARE,1074208,130245330,24-Oct-16,"4,022.91",ST MARYS RESIDENTIAL HOME,SP0000215
WANDSWORTH COUNCIL,ASC,SOCIAL SERVICES,Revenue,PRIVATE,EXTERNAL RESIDENTIAL CARE,1074209,130245330,24-Oct-16,"3,893.14",ST MARYS RESIDENTIAL HOME,SP0000215
WANDSWORTH COUNCIL,ASC,SOCIAL SERVICES,Revenue,PRIVATE,EXTERNAL RESIDENTIAL CARE,1059951,130245330,06-Oct-16,"5,474.96",NAS SERVICES LIMITED,SP0000217
WANDSWORTH COUNCIL,ASC,SOCIAL SERVICES,Revenue,PRIVATE,EXTERNAL RESIDENTIAL CARE,1059952,130245330,06-Oct-16,"6,485.84",NAS SERVICES LIMITED,SP0000217
WANDSWORTH COUNCIL,ASC,SOCIAL SERVICES,Revenue,PRIVATE,EXTERNAL RESIDENTIAL CARE,1067174,130245330,17-Oct-16,"8,868.84",SPRING LAKE,SP0000223
WANDSWORTH COUNCIL,ASC,SOCIAL SERVICES,Revenue,PRIVATE,EXTERNAL RESIDENTIAL CARE,1067175,130245330,17-Oct-16,"7,603.60",SPRING LAKE,SP0000223
WANDSWORTH COUNCIL,ASC,SOCIAL SERVICES,Revenue,PRIVATE,EXTERNAL RESIDENTIAL CARE,1067176,130245330,17-Oct-16,"8,868.84",SPRING LAKE,SP0000223
WANDSWORTH COUNCIL,ASC,SOCIAL SERVICES,Revenue,PRIVATE,EXTERNAL RESIDENTIAL CARE,1067177,130245330,17-Oct-16,"7,603.60",SPRING LAKE,SP0000223
WANDSWORTH COUNCIL,ASC,SOCIAL SERVICES,Revenue,PRIVATE,EXTERNAL RESIDENTIAL CARE,1072019,130245330,20-Oct-16,"7,708.95",THE DISABILITIES TRUST,SP0000239
WANDSWORTH COUNCIL,ASC,SOCIAL SERVICES,Revenue,PRIVATE,EXTERNAL RESIDENTIAL CARE,1064487,130245330,14-Oct-16,"4,739.88",CAMERON LODGE LIMITED,SP0000271
WANDSWORTH COUNCIL,ASC,SOCIAL SERVICES,Revenue,PRIVATE,EXTERNAL RESIDENTIAL CARE,1075853,130245330,26-Oct-16,"4,783.16",CAMERON LODGE LIMITED,SP0000271
WANDSWORTH COUNCIL,ASC,SOCIAL SERVICES,Revenue,PRIVATE,EXTERNAL RESIDENTIAL CARE,1073794,130245330,24-Oct-16,"8,046.54",BROOKDALE CARE,SP0000282
WANDSWORTH COUNCIL,ASC,SOCIAL SERVICES,Revenue,PRIVATE,EXTERNAL RESIDENTIAL CARE,1063162,130245330,10-Oct-16,"8,732.58",RESIDENTIAL COMMUNITY CARE,SP0000315
WANDSWORTH COUNCIL,ASC,SOCIAL SERVICES,Revenue,PRIVATE,EXTERNAL RESIDENTIAL CARE,1073396,130245330,21-Oct-16,"7,835.69",RESIDENTIAL COMMUNITY CARE,SP0000315
WANDSWORTH COUNCIL,ASC,SOCIAL SERVICES,Revenue,PRIVATE,EXTERNAL RESIDENTIAL CARE,1073397,130245330,21-Oct-16,"7,887.02",RESIDENTIAL COMMUNITY CARE,SP0000315
WANDSWORTH COUNCIL,ASC,SOCIAL SERVICES,Revenue,PRIVATE,EXTERNAL RESIDENTIAL CARE,1079686,130245330,31-Oct-16,"4,946.29",DOLPHIN HOMES LTD,SP0000331
WANDSWORTH COUNCIL,ASC,SOCIAL SERVICES,Revenue,PRIVATE,EXTERNAL RESIDENTIAL CARE,1079687,130245330,31-Oct-16,"3,893.95",DOLPHIN HOMES LTD,SP0000331
WANDSWORTH COUNCIL,ASC,SOCIAL SERVICES,Revenue,PRIVATE,EXTERNAL RESIDENTIAL CARE,1073906,130245330,24-Oct-16,"6,197.52",NORWOOD SCHOOLS LTD,SP0000332
WANDSWORTH COUNCIL,ASC,SOCIAL SERVICES,Revenue,PRIVATE,EXTERNAL RESIDENTIAL CARE,1073926,130245330,24-Oct-16,"6,454.68",NORWOOD SCHOOLS LTD,SP0000332
WANDSWORTH COUNCIL,ASC,SOCIAL SERVICES,Revenue,PRIVATE,EXTERNAL RESIDENTIAL CARE,1073927,130245330,24-Oct-16,"6,197.52",NORWOOD SCHOOLS LTD,SP0000332
WANDSWORTH COUNCIL,ASC,SOCIAL SERVICES,Revenue,PRIVATE,EXTERNAL RESIDENTIAL CARE,1073928,130245330,24-Oct-16,"6,454.68",NORWOOD SCHOOLS LTD,SP0000332
WANDSWORTH COUNCIL,ASC,SOCIAL SERVICES,Revenue,PRIVATE,EXTERNAL RESIDENTIAL CARE,1073902,130245330,24-Oct-16,"2,505.82",HEYWOODS GRANGE LTD,SP0000361
WANDSWORTH COUNCIL,ASC,SOCIAL SERVICES,Revenue,PRIVATE,EXTERNAL RESIDENTIAL CARE,1073903,130245330,24-Oct-16,"3,233.21",HEYWOODS GRANGE LTD,SP0000361
WANDSWORTH COUNCIL,ASC,SOCIAL SERVICES,Revenue,PRIVATE,EXTERNAL RESIDENTIAL CARE,1073904,130245330,24-Oct-16,"2,589.34",HEYWOODS GRANGE LTD,SP0000361
WANDSWORTH COUNCIL,ASC,SOCIAL SERVICES,Revenue,PRIVATE,EXTERNAL RESIDENTIAL CARE,1073905,130245330,24-Oct-16,"3,128.70",HEYWOODS GRANGE LTD,SP0000361
WANDSWORTH COUNCIL,ASC,SOCIAL SERVICES,Revenue,PRIVATE,EXTERNAL RESIDENTIAL CARE,1079451,130245330,31-Oct-16,"6,257.08",VOYAGE CARE LTD,SP0000366
WANDSWORTH COUNCIL,ASC,SOCIAL SERVICES,Revenue,PRIVATE,EXTERNAL RESIDENTIAL CARE,1079452,130245330,31-Oct-16,"6,392.03",VOYAGE CARE LTD,SP0000366
WANDSWORTH COUNCIL,ASC,SOCIAL SERVICES,Revenue,PRIVATE,EXTERNAL RESIDENTIAL CARE,1079453,130245330,31-Oct-16,"6,107.88",VOYAGE CARE LTD,SP0000366
WANDSWORTH COUNCIL,ASC,SOCIAL SERVICES,Revenue,PRIVATE,EXTERNAL RESIDENTIAL CARE,1079455,130245330,31-Oct-16,"7,897.14",VOYAGE CARE LTD,SP0000366
WANDSWORTH COUNCIL,ASC,SOCIAL SERVICES,Revenue,PRIVATE,EXTERNAL RESIDENTIAL CARE,1079456,130245330,31-Oct-16,"6,078.32",VOYAGE CARE LTD,SP0000366
WANDSWORTH COUNCIL,ASC,SOCIAL SERVICES,Revenue,PRIVATE,EXTERNAL RESIDENTIAL CARE,1073834,130245330,24-Oct-16,"5,124.76",ESSEX CARE CONSORTIUM,SP0000387
WANDSWORTH COUNCIL,ASC,SOCIAL SERVICES,Revenue,PRIVATE,EXTERNAL RESIDENTIAL CARE,1073929,130245330,24-Oct-16,"4,150.04",KENILWORTH RESIDENTIAL HOME,SP0000432
WANDSWORTH COUNCIL,ASC,SOCIAL SERVICES,Revenue,PRIVATE,EXTERNAL RESIDENTIAL CARE,1073930,130245330,24-Oct-16,"4,055.97",KENILWORTH RESIDENTIAL HOME,SP0000432
WANDSWORTH COUNCIL,ASC,SOCIAL SERVICES,Revenue,PRIVATE,EXTERNAL RESIDENTIAL CARE,1077403,130245330,27-Oct-16,"4,686.80",THE WELL HOUSE,SP0000448
WANDSWORTH COUNCIL,ASC,SOCIAL SERVICES,Revenue,PRIVATE,EXTERNAL RESIDENTIAL CARE,1077404,130245330,27-Oct-16,"4,403.64",THE WELL HOUSE,SP0000448
WANDSWORTH COUNCIL,ASC,SOCIAL SERVICES,Revenue,PRIVATE,EXTERNAL RESIDENTIAL CARE,1061413,130245330,07-Oct-16,"4,955.00",MACINTYRE CARE,SP0000473
WANDSWORTH COUNCIL,ASC,SOCIAL SERVICES,Revenue,PRIVATE,EXTERNAL RESIDENTIAL CARE,1064495,130245330,14-Oct-16,"4,338.96",MACINTYRE CARE,SP0000473
WANDSWORTH COUNCIL,ASC,SOCIAL SERVICES,Revenue,PRIVATE,EXTERNAL RESIDENTIAL CARE,1064496,130245330,14-Oct-16,"4,960.27",MACINTYRE CARE,SP0000473
WANDSWORTH COUNCIL,ASC,SOCIAL SERVICES,Revenue,PRIVATE,EXTERNAL RESIDENTIAL CARE,1067746,130245330,17-Oct-16,"5,262.60",MACINTYRE CARE,SP0000473
WANDSWORTH COUNCIL,ASC,SOCIAL SERVICES,Revenue,PRIVATE,EXTERNAL RESIDENTIAL CARE,1067747,130245330,17-Oct-16,"5,483.96",MACINTYRE CARE,SP0000473
WANDSWORTH COUNCIL,ASC,SOCIAL SERVICES,Revenue,PRIVATE,EXTERNAL RESIDENTIAL CARE,1067749,130245330,17-Oct-16,"3,797.24",MACINTYRE CARE,SP0000473
WANDSWORTH COUNCIL,ASC,SOCIAL SERVICES,Revenue,PRIVATE,EXTERNAL RESIDENTIAL CARE,1067750,130245330,17-Oct-16,"5,244.40",MACINTYRE CARE,SP0000473
WANDSWORTH COUNCIL,ASC,SOCIAL SERVICES,Revenue,PRIVATE,EXTERNAL RESIDENTIAL CARE,1067751,130245330,17-Oct-16,"3,788.24",MACINTYRE CARE,SP0000473
WANDSWORTH COUNCIL,ASC,SOCIAL SERVICES,Revenue,PRIVATE,EXTERNAL RESIDENTIAL CARE,1067752,130245330,17-Oct-16,"3,851.96",MACINTYRE CARE,SP0000473
WANDSWORTH COUNCIL,ASC,SOCIAL SERVICES,Revenue,PRIVATE,EXTERNAL RESIDENTIAL CARE,1067753,130245330,17-Oct-16,"5,048.84",MACINTYRE CARE,SP0000473
WANDSWORTH COUNCIL,ASC,SOCIAL SERVICES,Revenue,PRIVATE,EXTERNAL RESIDENTIAL CARE,1067754,130245330,17-Oct-16,"5,164.16",MACINTYRE CARE,SP0000473
WANDSWORTH COUNCIL,ASC,SOCIAL SERVICES,Revenue,PRIVATE,EXTERNAL RESIDENTIAL CARE,1067755,130245330,17-Oct-16,"2,321.88",MACINTYRE CARE,SP0000473
WANDSWORTH COUNCIL,ASC,SOCIAL SERVICES,Revenue,PRIVATE,EXTERNAL RESIDENTIAL CARE,1067756,130245330,17-Oct-16,"8,135.00",MACINTYRE CARE,SP0000473
WANDSWORTH COUNCIL,ASC,SOCIAL SERVICES,Revenue,PRIVATE,EXTERNAL RESIDENTIAL CARE,1067757,130245330,17-Oct-16,"5,080.88",MACINTYRE CARE,SP0000473
WANDSWORTH COUNCIL,ASC,SOCIAL SERVICES,Revenue,PRIVATE,EXTERNAL RESIDENTIAL CARE,1067758,130245330,17-Oct-16,"5,484.04",MACINTYRE CARE,SP0000473
WANDSWORTH COUNCIL,ASC,SOCIAL SERVICES,Revenue,PRIVATE,EXTERNAL RESIDENTIAL CARE,1067759,130245330,17-Oct-16,"4,956.84",MACINTYRE CARE,SP0000473
WANDSWORTH COUNCIL,ASC,SOCIAL SERVICES,Revenue,PRIVATE,EXTERNAL RESIDENTIAL CARE,1067760,130245330,17-Oct-16,"4,338.96",MACINTYRE CARE,SP0000473
WANDSWORTH COUNCIL,ASC,SOCIAL SERVICES,Revenue,PRIVATE,EXTERNAL RESIDENTIAL CARE,1067761,130245330,17-Oct-16,"4,958.24",MACINTYRE CARE,SP0000473
WANDSWORTH COUNCIL,ASC,SOCIAL SERVICES,Revenue,PRIVATE,EXTERNAL RESIDENTIAL CARE,1067762,130245330,17-Oct-16,"4,958.24",MACINTYRE CARE,SP0000473
WANDSWORTH COUNCIL,ASC,SOCIAL SERVICES,Revenue,PRIVATE,EXTERNAL RESIDENTIAL CARE,1067764,130245330,17-Oct-16,"4,922.17",MACINTYRE CARE,SP0000473
WANDSWORTH COUNCIL,ASC,SOCIAL SERVICES,Revenue,PRIVATE,EXTERNAL RESIDENTIAL CARE,1067765,130245330,17-Oct-16,"4,956.84",MACINTYRE CARE,SP0000473
WANDSWORTH COUNCIL,ASC,SOCIAL SERVICES,Revenue,PRIVATE,EXTERNAL RESIDENTIAL CARE,1067766,130245330,17-Oct-16,"5,080.88",MACINTYRE CARE,SP0000473
WANDSWORTH COUNCIL,ASC,SOCIAL SERVICES,Revenue,PRIVATE,EXTERNAL RESIDENTIAL CARE,1067767,130245330,17-Oct-16,"4,956.84",MACINTYRE CARE,SP0000473
WANDSWORTH COUNCIL,ASC,SOCIAL SERVICES,Revenue,PRIVATE,EXTERNAL RESIDENTIAL CARE,1077378,130245330,27-Oct-16,"5,262.60",MACINTYRE CARE,SP0000473
WANDSWORTH COUNCIL,ASC,SOCIAL SERVICES,Revenue,PRIVATE,EXTERNAL RESIDENTIAL CARE,1077379,130245330,27-Oct-16,"5,483.96",MACINTYRE CARE,SP0000473
WANDSWORTH COUNCIL,ASC,SOCIAL SERVICES,Revenue,PRIVATE,EXTERNAL RESIDENTIAL CARE,1077381,130245330,27-Oct-16,"3,797.24",MACINTYRE CARE,SP0000473
WANDSWORTH COUNCIL,ASC,SOCIAL SERVICES,Revenue,PRIVATE,EXTERNAL RESIDENTIAL CARE,1077382,130245330,27-Oct-16,"5,244.40",MACINTYRE CARE,SP0000473
WANDSWORTH COUNCIL,ASC,SOCIAL SERVICES,Revenue,PRIVATE,EXTERNAL RESIDENTIAL CARE,1077383,130245330,27-Oct-16,"3,788.24",MACINTYRE CARE,SP0000473
WANDSWORTH COUNCIL,ASC,SOCIAL SERVICES,Revenue,PRIVATE,EXTERNAL RESIDENTIAL CARE,1077384,130245330,27-Oct-16,"3,851.96",MACINTYRE CARE,SP0000473
WANDSWORTH COUNCIL,ASC,SOCIAL SERVICES,Revenue,PRIVATE,EXTERNAL RESIDENTIAL CARE,1077385,130245330,27-Oct-16,"5,048.84",MACINTYRE CARE,SP0000473
WANDSWORTH COUNCIL,ASC,SOCIAL SERVICES,Revenue,PRIVATE,EXTERNAL RESIDENTIAL CARE,1077386,130245330,27-Oct-16,"5,164.16",MACINTYRE CARE,SP0000473
WANDSWORTH COUNCIL,ASC,SOCIAL SERVICES,Revenue,PRIVATE,EXTERNAL RESIDENTIAL CARE,1077387,130245330,27-Oct-16,"2,321.88",MACINTYRE CARE,SP0000473
WANDSWORTH COUNCIL,ASC,SOCIAL SERVICES,Revenue,PRIVATE,EXTERNAL RESIDENTIAL CARE,1077388,130245330,27-Oct-16,"8,135.00",MACINTYRE CARE,SP0000473
WANDSWORTH COUNCIL,ASC,SOCIAL SERVICES,Revenue,PRIVATE,EXTERNAL RESIDENTIAL CARE,1077389,130245330,27-Oct-16,"5,080.88",MACINTYRE CARE,SP0000473
WANDSWORTH COUNCIL,ASC,SOCIAL SERVICES,Revenue,PRIVATE,EXTERNAL RESIDENTIAL CARE,1077390,130245330,27-Oct-16,"5,484.04",MACINTYRE CARE,SP0000473
WANDSWORTH COUNCIL,ASC,SOCIAL SERVICES,Revenue,PRIVATE,EXTERNAL RESIDENTIAL CARE,1077391,130245330,27-Oct-16,"4,956.84",MACINTYRE CARE,SP0000473
WANDSWORTH COUNCIL,ASC,SOCIAL SERVICES,Revenue,PRIVATE,EXTERNAL RESIDENTIAL CARE,1077392,130245330,27-Oct-16,"4,338.96",MACINTYRE CARE,SP0000473
WANDSWORTH COUNCIL,ASC,SOCIAL SERVICES,Revenue,PRIVATE,EXTERNAL RESIDENTIAL CARE,1077393,130245330,27-Oct-16,"4,958.24",MACINTYRE CARE,SP0000473
WANDSWORTH COUNCIL,ASC,SOCIAL SERVICES,Revenue,PRIVATE,EXTERNAL RESIDENTIAL CARE,1077394,130245330,27-Oct-16,"4,958.24",MACINTYRE CARE,SP0000473
WANDSWORTH COUNCIL,ASC,SOCIAL SERVICES,Revenue,PRIVATE,EXTERNAL RESIDENTIAL CARE,1077396,130245330,27-Oct-16,"4,956.84",MACINTYRE CARE,SP0000473
WANDSWORTH COUNCIL,ASC,SOCIAL SERVICES,Revenue,PRIVATE,EXTERNAL RESIDENTIAL CARE,1077397,130245330,27-Oct-16,"4,956.84",MACINTYRE CARE,SP0000473
WANDSWORTH COUNCIL,ASC,SOCIAL SERVICES,Revenue,PRIVATE,EXTERNAL RESIDENTIAL CARE,1077398,130245330,27-Oct-16,"5,080.88",MACINTYRE CARE,SP0000473
WANDSWORTH COUNCIL,ASC,SOCIAL SERVICES,Revenue,PRIVATE,EXTERNAL RESIDENTIAL CARE,1077399,130245330,27-Oct-16,"4,956.84",MACINTYRE CARE,SP0000473
WANDSWORTH COUNCIL,ASC,SOCIAL SERVICES,Revenue,PRIVATE,EXTERNAL RESIDENTIAL CARE,1069862,130245330,19-Oct-16,"8,982.39",SURREY & BORDERS PARTNERSHIP NHS TRUST,SP0000501
WANDSWORTH COUNCIL,ASC,SOCIAL SERVICES,Revenue,PRIVATE,EXTERNAL RESIDENTIAL CARE,1069863,130245330,19-Oct-16,"5,605.20",SURREY & BORDERS PARTNERSHIP NHS TRUST,SP0000501
WANDSWORTH COUNCIL,ASC,SOCIAL SERVICES,Revenue,PRIVATE,EXTERNAL RESIDENTIAL CARE,1077402,130245330,27-Oct-16,"13,801.00",SURREY & BORDERS PARTNERSHIP NHS TRUST,SP0000501
WANDSWORTH COUNCIL,ASC,SOCIAL SERVICES,Revenue,PRIVATE,EXTERNAL RESIDENTIAL CARE,1073796,130245330,24-Oct-16,"8,370.84",AIMS CARE PARTNERSHIP,SP0000561
WANDSWORTH COUNCIL,ASC,SOCIAL SERVICES,Revenue,PRIVATE,EXTERNAL RESIDENTIAL CARE,1068647,130245330,18-Oct-16,"8,569.29",SEEABILITY,SP0000572
WANDSWORTH COUNCIL,ASC,SOCIAL SERVICES,Revenue,PRIVATE,EXTERNAL RESIDENTIAL CARE,1075829,130245330,26-Oct-16,"8,569.29",SEEABILITY,SP0000572
WANDSWORTH COUNCIL,ASC,SOCIAL SERVICES,Revenue,PRIVATE,EXTERNAL RESIDENTIAL CARE,1075830,130245330,26-Oct-16,"15,213.58",SEEABILITY,SP0000572
WANDSWORTH COUNCIL,ASC,SOCIAL SERVICES,Revenue,PRIVATE,EXTERNAL RESIDENTIAL CARE,1063180,130245330,10-Oct-16,"31,336.89",THE COMMUNITY CARE COMPANY UK LTD,SP0000576
WANDSWORTH COUNCIL,ASC,SOCIAL SERVICES,Revenue,PRIVATE,EXTERNAL RESIDENTIAL CARE,1072014,130245330,20-Oct-16,"5,842.81",THE COMMUNITY CARE COMPANY UK LTD,SP0000576
WANDSWORTH COUNCIL,ASC,SOCIAL SERVICES,Revenue,PRIVATE,EXTERNAL RESIDENTIAL CARE,1073897,130245330,24-Oct-16,"5,683.81",THE COMMUNITY CARE COMPANY UK LTD,SP0000576
WANDSWORTH COUNCIL,ASC,SOCIAL SERVICES,Revenue,PRIVATE,EXTERNAL RESIDENTIAL CARE,1073898,130245330,24-Oct-16,"7,171.89",THE COMMUNITY CARE COMPANY UK LTD,SP0000576
WANDSWORTH COUNCIL,ASC,SOCIAL SERVICES,Revenue,PRIVATE,EXTERNAL RESIDENTIAL CARE,1073899,130245330,24-Oct-16,"7,253.60",THE COMMUNITY CARE COMPANY UK LTD,SP0000576
WANDSWORTH COUNCIL,ASC,SOCIAL SERVICES,Revenue,PRIVATE,EXTERNAL RESIDENTIAL CARE,1073900,130245330,24-Oct-16,"6,045.84",THE COMMUNITY CARE COMPANY UK LTD,SP0000576
WANDSWORTH COUNCIL,ASC,SOCIAL SERVICES,Revenue,PRIVATE,EXTERNAL RESIDENTIAL CARE,1072020,130245330,20-Oct-16,"6,687.94",BIRCC,SP0000584
WANDSWORTH COUNCIL,ASC,SOCIAL SERVICES,Revenue,PRIVATE,EXTERNAL RESIDENTIAL CARE,1075831,130245330,26-Oct-16,"6,401.96",THE REGARD PARTNERSHIP,SP0000588
WANDSWORTH COUNCIL,ASC,SOCIAL SERVICES,Revenue,PRIVATE,EXTERNAL RESIDENTIAL CARE,1062328,130245330,07-Oct-16,"3,786.08",LAETUS LODGE,SP0000600
WANDSWORTH COUNCIL,ASC,SOCIAL SERVICES,Revenue,PRIVATE,EXTERNAL RESIDENTIAL CARE,1062329,130245330,07-Oct-16,"6,096.44",LAETUS LODGE,SP0000600
WANDSWORTH COUNCIL,ASC,SOCIAL SERVICES,Revenue,PRIVATE,EXTERNAL RESIDENTIAL CARE,1062330,130245330,07-Oct-16,"3,694.80",LAETUS LODGE,SP0000600
WANDSWORTH COUNCIL,ASC,SOCIAL SERVICES,Revenue,PRIVATE,EXTERNAL RESIDENTIAL CARE,1062331,130245330,07-Oct-16,"4,825.76",LAETUS LODGE,SP0000600
WANDSWORTH COUNCIL,ASC,SOCIAL SERVICES,Revenue,PRIVATE,EXTERNAL RESIDENTIAL CARE,1062332,130245330,07-Oct-16,"5,277.24",LAETUS LODGE,SP0000600
WANDSWORTH COUNCIL,ASC,SOCIAL SERVICES,Revenue,PRIVATE,EXTERNAL RESIDENTIAL CARE,1062333,130245330,07-Oct-16,"6,236.68",LAETUS LODGE,SP0000600
WANDSWORTH COUNCIL,ASC,SOCIAL SERVICES,Revenue,PRIVATE,EXTERNAL RESIDENTIAL CARE,1062334,130245330,07-Oct-16,"7,502.16",LAETUS LODGE,SP0000600
WANDSWORTH COUNCIL,ASC,SOCIAL SERVICES,Revenue,PRIVATE,EXTERNAL RESIDENTIAL CARE,1059957,130245330,06-Oct-16,"8,182.20",HEALTHLINC INDIVIDUAL CARE,SP0000617
WANDSWORTH COUNCIL,ASC,SOCIAL SERVICES,Revenue,PRIVATE,EXTERNAL RESIDENTIAL CARE,1075846,130245330,26-Oct-16,"8,454.94",HEALTHLINC INDIVIDUAL CARE,SP0000617
WANDSWORTH COUNCIL,ASC,SOCIAL SERVICES,Revenue,PRIVATE,EXTERNAL RESIDENTIAL CARE,1057834,130245330,03-Oct-16,"3,677.12",METROPOLITAN HOUSING TRUST,SP0000626
WANDSWORTH COUNCIL,ASC,SOCIAL SERVICES,Revenue,PRIVATE,EXTERNAL RESIDENTIAL CARE,1057835,130245330,03-Oct-16,"3,675.52",METROPOLITAN HOUSING TRUST,SP0000626
WANDSWORTH COUNCIL,ASC,SOCIAL SERVICES,Revenue,PRIVATE,EXTERNAL RESIDENTIAL CARE,1057836,130245330,03-Oct-16,"3,659.52",METROPOLITAN HOUSING TRUST,SP0000626
WANDSWORTH COUNCIL,ASC,SOCIAL SERVICES,Revenue,PRIVATE,EXTERNAL RESIDENTIAL CARE,1057837,130245330,03-Oct-16,"3,659.68",METROPOLITAN HOUSING TRUST,SP0000626
WANDSWORTH COUNCIL,ASC,SOCIAL SERVICES,Revenue,PRIVATE,EXTERNAL RESIDENTIAL CARE,1057838,130245330,03-Oct-16,"3,659.52",METROPOLITAN HOUSING TRUST,SP0000626
WANDSWORTH COUNCIL,ASC,SOCIAL SERVICES,Revenue,PRIVATE,EXTERNAL RESIDENTIAL CARE,1057839,130245330,03-Oct-16,"3,659.52",METROPOLITAN HOUSING TRUST,SP0000626
WANDSWORTH COUNCIL,ASC,SOCIAL SERVICES,Revenue,PRIVATE,EXTERNAL RESIDENTIAL CARE,1057840,130245330,03-Oct-16,"3,812.04",METROPOLITAN HOUSING TRUST,SP0000626
WANDSWORTH COUNCIL,ASC,SOCIAL SERVICES,Revenue,PRIVATE,EXTERNAL RESIDENTIAL CARE,1057841,130245330,03-Oct-16,"3,659.52",METROPOLITAN HOUSING TRUST,SP0000626
WANDSWORTH COUNCIL,ASC,SOCIAL SERVICES,Revenue,PRIVATE,EXTERNAL RESIDENTIAL CARE,1057842,130245330,03-Oct-16,"4,772.88",METROPOLITAN HOUSING TRUST,SP0000626
WANDSWORTH COUNCIL,ASC,SOCIAL SERVICES,Revenue,PRIVATE,EXTERNAL RESIDENTIAL CARE,1057843,130245330,03-Oct-16,"4,790.16",METROPOLITAN HOUSING TRUST,SP0000626
WANDSWORTH COUNCIL,ASC,SOCIAL SERVICES,Revenue,PRIVATE,EXTERNAL RESIDENTIAL CARE,1057844,130245330,03-Oct-16,"4,427.04",METROPOLITAN HOUSING TRUST,SP0000626
WANDSWORTH COUNCIL,ASC,SOCIAL SERVICES,Revenue,PRIVATE,EXTERNAL RESIDENTIAL CARE,1057845,130245330,03-Oct-16,"4,756.88",METROPOLITAN HOUSING TRUST,SP0000626
WANDSWORTH COUNCIL,ASC,SOCIAL SERVICES,Revenue,PRIVATE,EXTERNAL RESIDENTIAL CARE,1057847,130245330,03-Oct-16,"4,725.79",METROPOLITAN HOUSING TRUST,SP0000626
WANDSWORTH COUNCIL,ASC,SOCIAL SERVICES,Revenue,PRIVATE,EXTERNAL RESIDENTIAL CARE,1064497,130245330,14-Oct-16,"13,624.78",METROPOLITAN HOUSING TRUST,SP0000626
WANDSWORTH COUNCIL,ASC,SOCIAL SERVICES,Revenue,PRIVATE,EXTERNAL RESIDENTIAL CARE,1064790,130245330,14-Oct-16,"3,659.52",METROPOLITAN HOUSING TRUST,SP0000626
WANDSWORTH COUNCIL,ASC,SOCIAL SERVICES,Revenue,PRIVATE,EXTERNAL RESIDENTIAL CARE,1064791,130245330,14-Oct-16,"3,659.52",METROPOLITAN HOUSING TRUST,SP0000626
WANDSWORTH COUNCIL,ASC,SOCIAL SERVICES,Revenue,PRIVATE,EXTERNAL RESIDENTIAL CARE,1064792,130245330,14-Oct-16,"3,659.52",METROPOLITAN HOUSING TRUST,SP0000626
WANDSWORTH COUNCIL,ASC,SOCIAL SERVICES,Revenue,PRIVATE,EXTERNAL RESIDENTIAL CARE,1064793,130245330,14-Oct-16,"3,659.68",METROPOLITAN HOUSING TRUST,SP0000626
WANDSWORTH COUNCIL,ASC,SOCIAL SERVICES,Revenue,PRIVATE,EXTERNAL RESIDENTIAL CARE,1064794,130245330,14-Oct-16,"3,641.96",METROPOLITAN HOUSING TRUST,SP0000626
WANDSWORTH COUNCIL,ASC,SOCIAL SERVICES,Revenue,PRIVATE,EXTERNAL RESIDENTIAL CARE,1064795,130245330,14-Oct-16,"3,659.52",METROPOLITAN HOUSING TRUST,SP0000626
WANDSWORTH COUNCIL,ASC,SOCIAL SERVICES,Revenue,PRIVATE,EXTERNAL RESIDENTIAL CARE,1064796,130245330,14-Oct-16,"4,772.88",METROPOLITAN HOUSING TRUST,SP0000626
WANDSWORTH COUNCIL,ASC,SOCIAL SERVICES,Revenue,PRIVATE,EXTERNAL RESIDENTIAL CARE,1064797,130245330,14-Oct-16,"4,756.88",METROPOLITAN HOUSING TRUST,SP0000626
WANDSWORTH COUNCIL,ASC,SOCIAL SERVICES,Revenue,PRIVATE,EXTERNAL RESIDENTIAL CARE,1064798,130245330,14-Oct-16,"3,812.04",METROPOLITAN HOUSING TRUST,SP0000626
WANDSWORTH COUNCIL,ASC,SOCIAL SERVICES,Revenue,PRIVATE,EXTERNAL RESIDENTIAL CARE,1064799,130245330,14-Oct-16,"3,659.52",METROPOLITAN HOUSING TRUST,SP0000626
WANDSWORTH COUNCIL,ASC,SOCIAL SERVICES,Revenue,PRIVATE,EXTERNAL RESIDENTIAL CARE,1064800,130245330,14-Oct-16,"4,790.16",METROPOLITAN HOUSING TRUST,SP0000626
WANDSWORTH COUNCIL,ASC,SOCIAL SERVICES,Revenue,PRIVATE,EXTERNAL RESIDENTIAL CARE,1064801,130245330,14-Oct-16,"4,427.04",METROPOLITAN HOUSING TRUST,SP0000626
WANDSWORTH COUNCIL,ASC,SOCIAL SERVICES,Revenue,PRIVATE,EXTERNAL RESIDENTIAL CARE,1064802,130245330,14-Oct-16,"4,756.88",METROPOLITAN HOUSING TRUST,SP0000626
WANDSWORTH COUNCIL,ASC,SOCIAL SERVICES,Revenue,PRIVATE,EXTERNAL RESIDENTIAL CARE,1064804,130245330,14-Oct-16,"4,709.79",METROPOLITAN HOUSING TRUST,SP0000626
WANDSWORTH COUNCIL,ASC,SOCIAL SERVICES,Revenue,PRIVATE,EXTERNAL RESIDENTIAL CARE,1065438,130245330,17-Oct-16,"2,888.18",METROPOLITAN HOUSING TRUST,SP0000626
WANDSWORTH COUNCIL,ASC,SOCIAL SERVICES,Revenue,PRIVATE,EXTERNAL RESIDENTIAL CARE,1059960,130245330,06-Oct-16,"2,395.60",LIVABILITY,SP0000669
WANDSWORTH COUNCIL,ASC,SOCIAL SERVICES,Revenue,PRIVATE,EXTERNAL RESIDENTIAL CARE,1062335,130245330,07-Oct-16,"11,556.16",LOVING CARE LTD,SP0000670
WANDSWORTH COUNCIL,ASC,SOCIAL SERVICES,Revenue,PRIVATE,EXTERNAL RESIDENTIAL CARE,1062336,130245330,07-Oct-16,"11,549.40",LOVING CARE LTD,SP0000670
WANDSWORTH COUNCIL,ASC,SOCIAL SERVICES,Revenue,PRIVATE,EXTERNAL RESIDENTIAL CARE,1062337,130245330,07-Oct-16,"11,237.60",LOVING CARE LTD,SP0000670
WANDSWORTH COUNCIL,ASC,SOCIAL SERVICES,Revenue,PRIVATE,EXTERNAL RESIDENTIAL CARE,1062338,130245330,07-Oct-16,"11,507.76",LOVING CARE LTD,SP0000670
WANDSWORTH COUNCIL,ASC,SOCIAL SERVICES,Revenue,PRIVATE,EXTERNAL RESIDENTIAL CARE,1062339,130245330,07-Oct-16,"11,705.40",LOVING CARE LTD,SP0000670
WANDSWORTH COUNCIL,ASC,SOCIAL SERVICES,Revenue,PRIVATE,EXTERNAL RESIDENTIAL CARE,1062340,130245330,07-Oct-16,"11,705.40",LOVING CARE LTD,SP0000670
WANDSWORTH COUNCIL,ASC,SOCIAL SERVICES,Revenue,PRIVATE,EXTERNAL RESIDENTIAL CARE,1062427,130245330,07-Oct-16,"11,248.32",LOVING CARE LTD,SP0000670
WANDSWORTH COUNCIL,ASC,SOCIAL SERVICES,Revenue,PRIVATE,EXTERNAL RESIDENTIAL CARE,1064489,130245330,14-Oct-16,"5,133.28",WHITMORE VALE HOUSING ASSOCIATION LTD,SP0000694
WANDSWORTH COUNCIL,ASC,SOCIAL SERVICES,Revenue,PRIVATE,EXTERNAL RESIDENTIAL CARE,1072001,130245330,20-Oct-16,"3,033.49",THE MANOR HOUSE,SP0000728
WANDSWORTH COUNCIL,ASC,SOCIAL SERVICES,Revenue,PRIVATE,EXTERNAL RESIDENTIAL CARE,1065448,130245330,17-Oct-16,"5,485.70",RALEIGH HOUSE LTD,SP0000760
WANDSWORTH COUNCIL,ASC,SOCIAL SERVICES,Revenue,PRIVATE,EXTERNAL RESIDENTIAL CARE,1073353,130245330,21-Oct-16,"5,485.70",RALEIGH HOUSE LTD,SP0000760
WANDSWORTH COUNCIL,ASC,SOCIAL SERVICES,Revenue,PRIVATE,EXTERNAL RESIDENTIAL CARE,1073430,130245330,21-Oct-16,"8,596.21",RALEIGH HOUSE LTD,SP0000760
WANDSWORTH COUNCIL,ASC,SOCIAL SERVICES,Revenue,PRIVATE,EXTERNAL RESIDENTIAL CARE,1075840,130245330,26-Oct-16,"2,400.00",RALEIGH HOUSE LTD,SP0000760
WANDSWORTH COUNCIL,ASC,SOCIAL SERVICES,Revenue,PRIVATE,EXTERNAL RESIDENTIAL CARE,1075836,130245330,26-Oct-16,"3,822.64",GLENCARE GROUP,SP0000791
WANDSWORTH COUNCIL,ASC,SOCIAL SERVICES,Revenue,PRIVATE,EXTERNAL RESIDENTIAL CARE,1075837,130245330,26-Oct-16,"6,753.66",GLENCARE GROUP,SP0000791
WANDSWORTH COUNCIL,ASC,SOCIAL SERVICES,Revenue,PRIVATE,EXTERNAL RESIDENTIAL CARE,1075838,130245330,26-Oct-16,"5,723.28",GLENCARE GROUP,SP0000791
WANDSWORTH COUNCIL,ASC,SOCIAL SERVICES,Revenue,PRIVATE,EXTERNAL RESIDENTIAL CARE,1075839,130245330,26-Oct-16,"3,833.57",GLENCARE GROUP,SP0000791
WANDSWORTH COUNCIL,ASC,SOCIAL SERVICES,Revenue,PRIVATE,EXTERNAL RESIDENTIAL CARE,1067739,130245330,17-Oct-16,"1,003.62",FREEWAYS TRUST LTD,SP0000793
WANDSWORTH COUNCIL,ASC,SOCIAL SERVICES,Revenue,PRIVATE,EXTERNAL RESIDENTIAL CARE,1077808,130245330,28-Oct-16,"2,262.71",FREEWAYS TRUST LTD,SP0000793
WANDSWORTH COUNCIL,ASC,SOCIAL SERVICES,Revenue,PRIVATE,EXTERNAL RESIDENTIAL CARE,1077400,130245330,27-Oct-16,"3,162.56",UNITED RESPONSE,SP0000797
WANDSWORTH COUNCIL,ASC,SOCIAL SERVICES,Revenue,PRIVATE,EXTERNAL RESIDENTIAL CARE,1064493,130245330,14-Oct-16,"3,178.72",PROSPECTS,SP0000800
WANDSWORTH COUNCIL,ASC,SOCIAL SERVICES,Revenue,PRIVATE,EXTERNAL RESIDENTIAL CARE,1071032,130245330,19-Oct-16,"3,166.72",PROSPECTS,SP0000800
WANDSWORTH COUNCIL,ASC,SOCIAL SERVICES,Revenue,PRIVATE,EXTERNAL RESIDENTIAL CARE,1079433,130245330,31-Oct-16,"6,356.64",WESSEX AUTISTIC SOCIETY,SP0000805
WANDSWORTH COUNCIL,ASC,SOCIAL SERVICES,Revenue,PRIVATE,EXTERNAL RESIDENTIAL CARE,1063141,130245330,10-Oct-16,"3,497.70",BEECH LODGE,SP0000807
WANDSWORTH COUNCIL,ASC,SOCIAL SERVICES,Revenue,PRIVATE,EXTERNAL RESIDENTIAL CARE,1063142,130245330,10-Oct-16,"3,859.63",BEECH LODGE,SP0000807
WANDSWORTH COUNCIL,ASC,SOCIAL SERVICES,Revenue,PRIVATE,EXTERNAL RESIDENTIAL CARE,1063143,130245330,10-Oct-16,"3,842.48",BEECH LODGE,SP0000807
WANDSWORTH COUNCIL,ASC,SOCIAL SERVICES,Revenue,PRIVATE,EXTERNAL RESIDENTIAL CARE,1072005,130245330,20-Oct-16,"3,614.29",BEECH LODGE,SP0000807
WANDSWORTH COUNCIL,ASC,SOCIAL SERVICES,Revenue,PRIVATE,EXTERNAL RESIDENTIAL CARE,1072006,130245330,20-Oct-16,"3,970.57",BEECH LODGE,SP0000807
WANDSWORTH COUNCIL,ASC,SOCIAL SERVICES,Revenue,PRIVATE,EXTERNAL RESIDENTIAL CARE,1072007,130245330,20-Oct-16,"3,970.57",BEECH LODGE,SP0000807
WANDSWORTH COUNCIL,ASC,SOCIAL SERVICES,Revenue,PRIVATE,EXTERNAL RESIDENTIAL CARE,1073349,130245330,21-Oct-16,"8,051.14",FIRCROFT,SP0000840
WANDSWORTH COUNCIL,ASC,SOCIAL SERVICES,Revenue,PRIVATE,EXTERNAL RESIDENTIAL CARE,1064815,130245330,14-Oct-16,"5,951.04",ROYAL MENCAP SOCIETY,SP0000842
WANDSWORTH COUNCIL,ASC,SOCIAL SERVICES,Revenue,PRIVATE,EXTERNAL RESIDENTIAL CARE,1069264,130245330,18-Oct-16,"4,181.68",ROYAL MENCAP SOCIETY,SP0000842
WANDSWORTH COUNCIL,ASC,SOCIAL SERVICES,Revenue,PRIVATE,EXTERNAL RESIDENTIAL CARE,1069265,130245330,18-Oct-16,"5,962.53",ROYAL MENCAP SOCIETY,SP0000842
WANDSWORTH COUNCIL,ASC,SOCIAL SERVICES,Revenue,PRIVATE,EXTERNAL RESIDENTIAL CARE,1063160,130245330,10-Oct-16,"3,166.19",STALLCOMBE HOUSE,SP0000843
WANDSWORTH COUNCIL,ASC,SOCIAL SERVICES,Revenue,PRIVATE,EXTERNAL RESIDENTIAL CARE,1063161,130245330,10-Oct-16,"5,272.72",STALLCOMBE HOUSE,SP0000843
WANDSWORTH COUNCIL,ASC,SOCIAL SERVICES,Revenue,PRIVATE,EXTERNAL RESIDENTIAL CARE,1072016,130245330,20-Oct-16,"5,730.57",STALLCOMBE HOUSE,SP0000843
WANDSWORTH COUNCIL,ASC,SOCIAL SERVICES,Revenue,PRIVATE,EXTERNAL RESIDENTIAL CARE,1072017,130245330,20-Oct-16,"5,487.22",STALLCOMBE HOUSE,SP0000843
WANDSWORTH COUNCIL,ASC,SOCIAL SERVICES,Revenue,PRIVATE,EXTERNAL RESIDENTIAL CARE,1072018,130245330,20-Oct-16,"3,222.18",STALLCOMBE HOUSE,SP0000843
WANDSWORTH COUNCIL,ASC,SOCIAL SERVICES,Revenue,PRIVATE,EXTERNAL RESIDENTIAL CARE,1072004,130245330,20-Oct-16,"3,010.10",EAST VIEW HOUSING MANAGEMENT LTD,SP0000845
WANDSWORTH COUNCIL,ASC,SOCIAL SERVICES,Revenue,PRIVATE,EXTERNAL RESIDENTIAL CARE,1072009,130245330,20-Oct-16,"2,636.68",SCOPE,SP0000852
WANDSWORTH COUNCIL,ASC,SOCIAL SERVICES,Revenue,PRIVATE,EXTERNAL RESIDENTIAL CARE,1072010,130245330,20-Oct-16,"2,810.68",SCOPE,SP0000852
WANDSWORTH COUNCIL,ASC,SOCIAL SERVICES,Revenue,PRIVATE,EXTERNAL RESIDENTIAL CARE,1073351,130245330,21-Oct-16,"11,390.42",ASHCROFT CARE SERVICES,SP0000872
WANDSWORTH COUNCIL,ASC,SOCIAL SERVICES,Revenue,PRIVATE,EXTERNAL RESIDENTIAL CARE,1060593,130245330,06-Oct-16,"4,359.00",229 MITCHAM LANE LTD,SP0000884
WANDSWORTH COUNCIL,ASC,SOCIAL SERVICES,Revenue,PRIVATE,EXTERNAL RESIDENTIAL CARE,1060594,130245330,06-Oct-16,"5,102.83",229 MITCHAM LANE LTD,SP0000884
WANDSWORTH COUNCIL,ASC,SOCIAL SERVICES,Revenue,PRIVATE,EXTERNAL RESIDENTIAL CARE,1060596,130245330,06-Oct-16,"5,400.08",229 MITCHAM LANE LTD,SP0000884
WANDSWORTH COUNCIL,ASC,SOCIAL SERVICES,Revenue,PRIVATE,EXTERNAL RESIDENTIAL CARE,1060597,130245330,06-Oct-16,"5,102.83",229 MITCHAM LANE LTD,SP0000884
WANDSWORTH COUNCIL,ASC,SOCIAL SERVICES,Revenue,PRIVATE,EXTERNAL RESIDENTIAL CARE,1063190,130245330,10-Oct-16,"5,599.36",WINSLOW COURT,SP0000886
WANDSWORTH COUNCIL,ASC,SOCIAL SERVICES,Revenue,PRIVATE,EXTERNAL RESIDENTIAL CARE,1063191,130245330,10-Oct-16,"5,746.36",WINSLOW COURT,SP0000886
WANDSWORTH COUNCIL,ASC,SOCIAL SERVICES,Revenue,PRIVATE,EXTERNAL RESIDENTIAL CARE,1075852,130245330,26-Oct-16,"3,957.32",THE LEO TRUST,SP0000908
WANDSWORTH COUNCIL,ASC,SOCIAL SERVICES,Revenue,PRIVATE,EXTERNAL RESIDENTIAL CARE,1073348,130245330,21-Oct-16,"5,414.64",TRACS,SP0000914
WANDSWORTH COUNCIL,ASC,SOCIAL SERVICES,Revenue,PRIVATE,EXTERNAL RESIDENTIAL CARE,1064822,130245330,14-Oct-16,"2,473.78",CORICH COMMUNITY CARE LTD,SP0000915
WANDSWORTH COUNCIL,ASC,SOCIAL SERVICES,Revenue,PRIVATE,EXTERNAL RESIDENTIAL CARE,1073399,130245330,21-Oct-16,"8,515.42",PROGRESS HOUSING MARLOW,SP0000952
WANDSWORTH COUNCIL,ASC,SOCIAL SERVICES,Revenue,PRIVATE,EXTERNAL RESIDENTIAL CARE,1075848,130245330,26-Oct-16,"2,930.00",MISSION CARE,SP0000958
WANDSWORTH COUNCIL,ASC,SOCIAL SERVICES,Revenue,PRIVATE,EXTERNAL RESIDENTIAL CARE,1075850,130245330,26-Oct-16,"2,930.00",MISSION CARE,SP0000958
WANDSWORTH COUNCIL,ASC,SOCIAL SERVICES,Revenue,PRIVATE,EXTERNAL RESIDENTIAL CARE,1072015,130245330,20-Oct-16,"4,057.99",DOWNING (CHERTSEY ROAD) LTD,SP0000959
WANDSWORTH COUNCIL,ASC,SOCIAL SERVICES,Revenue,PRIVATE,EXTERNAL RESIDENTIAL CARE,1063144,130245330,10-Oct-16,"3,861.98",CHERRY LODGE,SP0000965
WANDSWORTH COUNCIL,ASC,SOCIAL SERVICES,Revenue,PRIVATE,EXTERNAL RESIDENTIAL CARE,1072008,130245330,20-Oct-16,"3,990.72",CHERRY LODGE,SP0000965
WANDSWORTH COUNCIL,ASC,SOCIAL SERVICES,Revenue,PRIVATE,EXTERNAL RESIDENTIAL CARE,1061055,130245330,06-Oct-16,"3,557.60",RIDGEWOOD CARE SERVICES LTD,SP0000969
WANDSWORTH COUNCIL,ASC,SOCIAL SERVICES,Revenue,PRIVATE,EXTERNAL RESIDENTIAL CARE,1061056,130245330,06-Oct-16,"6,522.60",RIDGEWOOD CARE SERVICES LTD,SP0000969
WANDSWORTH COUNCIL,ASC,SOCIAL SERVICES,Revenue,PRIVATE,EXTERNAL RESIDENTIAL CARE,1061057,130245330,06-Oct-16,"3,766.44",RIDGEWOOD CARE SERVICES LTD,SP0000969
WANDSWORTH COUNCIL,ASC,SOCIAL SERVICES,Revenue,PRIVATE,EXTERNAL RESIDENTIAL CARE,1071974,130245330,20-Oct-16,"3,557.60",RIDGEWOOD CARE SERVICES LTD,SP0000969
WANDSWORTH COUNCIL,ASC,SOCIAL SERVICES,Revenue,PRIVATE,EXTERNAL RESIDENTIAL CARE,1071975,130245330,20-Oct-16,"3,766.44",RIDGEWOOD CARE SERVICES LTD,SP0000969
WANDSWORTH COUNCIL,ASC,SOCIAL SERVICES,Revenue,PRIVATE,EXTERNAL RESIDENTIAL CARE,1059954,130245330,06-Oct-16,"6,239.79",LEONARD CHESHIRE,SP0000976
WANDSWORTH COUNCIL,ASC,SOCIAL SERVICES,Revenue,PRIVATE,EXTERNAL RESIDENTIAL CARE,1059955,130245330,06-Oct-16,"4,236.34",LEONARD CHESHIRE,SP0000976
WANDSWORTH COUNCIL,ASC,SOCIAL SERVICES,Revenue,PRIVATE,EXTERNAL RESIDENTIAL CARE,1059956,130245330,06-Oct-16,"4,550.91",LEONARD CHESHIRE,SP0000976
WANDSWORTH COUNCIL,ASC,SOCIAL SERVICES,Revenue,PRIVATE,EXTERNAL RESIDENTIAL CARE,1071031,130245330,19-Oct-16,"4,645.88",LOTUS CARE HOME LTD,SP0001006
WANDSWORTH COUNCIL,ASC,SOCIAL SERVICES,Revenue,PRIVATE,EXTERNAL RESIDENTIAL CARE,1065454,130245330,17-Oct-16,"6,406.40",LIVING AMBITIONS LIMITED,SP0001039
WANDSWORTH COUNCIL,ASC,SOCIAL SERVICES,Revenue,PRIVATE,EXTERNAL RESIDENTIAL CARE,1065451,130245330,17-Oct-16,"2,763.08",THE HOME FARM TRUST LTD,SP0001048
WANDSWORTH COUNCIL,ASC,SOCIAL SERVICES,Revenue,PRIVATE,EXTERNAL RESIDENTIAL CARE,1065452,130245330,17-Oct-16,"2,491.76",THE HOME FARM TRUST LTD,SP0001048
WANDSWORTH COUNCIL,ASC,SOCIAL SERVICES,Revenue,PRIVATE,EXTERNAL RESIDENTIAL CARE,1060604,130245330,06-Oct-16,"4,723.08",ALLIED CARE (MHS) LTD,SP0001069
WANDSWORTH COUNCIL,ASC,SOCIAL SERVICES,Revenue,PRIVATE,EXTERNAL RESIDENTIAL CARE,1073792,130245330,24-Oct-16,"4,419.27",ALLIED CARE (MHS) LTD,SP0001069
WANDSWORTH COUNCIL,ASC,SOCIAL SERVICES,Revenue,PRIVATE,EXTERNAL RESIDENTIAL CARE,1073795,130245330,24-Oct-16,"7,104.27",ALLIED CARE (MHS) LTD,SP0001069
WANDSWORTH COUNCIL,ASC,SOCIAL SERVICES,Revenue,PRIVATE,EXTERNAL RESIDENTIAL CARE,1073797,130245330,24-Oct-16,"5,100.43",ALLIED CARE (MHS) LTD,SP0001069
WANDSWORTH COUNCIL,ASC,SOCIAL SERVICES,Revenue,PRIVATE,EXTERNAL RESIDENTIAL CARE,1063155,130245330,10-Oct-16,"3,102.98",SAXON COURT,SP0001100
WANDSWORTH COUNCIL,ASC,SOCIAL SERVICES,Revenue,PRIVATE,EXTERNAL RESIDENTIAL CARE,1063156,130245330,10-Oct-16,"4,218.96",SAXON COURT,SP0001100
WANDSWORTH COUNCIL,ASC,SOCIAL SERVICES,Revenue,PRIVATE,EXTERNAL RESIDENTIAL CARE,1073392,130245330,21-Oct-16,"3,206.42",SAXON COURT,SP0001100
WANDSWORTH COUNCIL,ASC,SOCIAL SERVICES,Revenue,PRIVATE,EXTERNAL RESIDENTIAL CARE,1079449,130245330,31-Oct-16,"12,738.34",ILG LTD,SP0001103
WANDSWORTH COUNCIL,ASC,SOCIAL SERVICES,Revenue,PRIVATE,EXTERNAL RESIDENTIAL CARE,1062425,130245330,07-Oct-16,"7,447.56",TOTTERDOWN,SP0001113
WANDSWORTH COUNCIL,ASC,SOCIAL SERVICES,Revenue,PRIVATE,EXTERNAL RESIDENTIAL CARE,1062426,130245330,07-Oct-16,"3,696.92",TOTTERDOWN,SP0001113
WANDSWORTH COUNCIL,ASC,SOCIAL SERVICES,Revenue,PRIVATE,EXTERNAL RESIDENTIAL CARE,1073350,130245330,21-Oct-16,"7,182.20",SUSSEX HEALTH CARE,SP0001115
WANDSWORTH COUNCIL,ASC,SOCIAL SERVICES,Revenue,PRIVATE,EXTERNAL RESIDENTIAL CARE,1060611,130245330,06-Oct-16,"4,400.00",ACTION ON HEARING LOSS,SP0001359
WANDSWORTH COUNCIL,ASC,SOCIAL SERVICES,Revenue,PRIVATE,EXTERNAL RESIDENTIAL CARE,1071030,130245330,19-Oct-16,"4,400.00",ACTION ON HEARING LOSS,SP0001359
WANDSWORTH COUNCIL,ASC,SOCIAL SERVICES,Revenue,PRIVATE,EXTERNAL RESIDENTIAL CARE,1073916,130245330,24-Oct-16,"4,400.00",ACTION ON HEARING LOSS,SP0001359
WANDSWORTH COUNCIL,ASC,SOCIAL SERVICES,Revenue,PRIVATE,EXTERNAL RESIDENTIAL CARE,1060617,130245330,06-Oct-16,"5,002.24",LARKFIELD HALL LTD T/A PEPENBURY,SP0001378
WANDSWORTH COUNCIL,ASC,SOCIAL SERVICES,Revenue,PRIVATE,EXTERNAL RESIDENTIAL CARE,1064485,130245330,14-Oct-16,"5,002.24",LARKFIELD HALL LTD T/A PEPENBURY,SP0001378
WANDSWORTH COUNCIL,ASC,SOCIAL SERVICES,Revenue,PRIVATE,EXTERNAL RESIDENTIAL CARE,1071963,130245330,20-Oct-16,"17,080.26",THE WEST OF ENGLAND SCHOOL & COLLEGE,SP0001486
WANDSWORTH COUNCIL,ASC,SOCIAL SERVICES,Revenue,PRIVATE,EXTERNAL RESIDENTIAL CARE,1071964,130245330,20-Oct-16,"40,376.71",THE WEST OF ENGLAND SCHOOL & COLLEGE,SP0001486
WANDSWORTH COUNCIL,ASC,SOCIAL SERVICES,Revenue,PRIVATE,EXTERNAL RESIDENTIAL CARE,1075826,130245330,26-Oct-16,"7,523.88",MCCH SOCIETY LIMITED,SP0001531
WANDSWORTH COUNCIL,ASC,SOCIAL SERVICES,Revenue,PRIVATE,EXTERNAL RESIDENTIAL CARE,1059958,130245330,06-Oct-16,"4,383.32",NUTLEY HALL LTD,SP0001581
WANDSWORTH COUNCIL,ASC,SOCIAL SERVICES,Revenue,PRIVATE,EXTERNAL RESIDENTIAL CARE,1059959,130245330,06-Oct-16,"4,242.00",NUTLEY HALL LTD,SP0001581
WANDSWORTH COUNCIL,ASC,SOCIAL SERVICES,Revenue,PRIVATE,EXTERNAL RESIDENTIAL CARE,1077406,130245330,27-Oct-16,"3,523.28",CRAEGMOOR OLD RECTORY BREDE PRIORY,SP0001621
WANDSWORTH COUNCIL,ASC,SOCIAL SERVICES,Revenue,PRIVATE,EXTERNAL RESIDENTIAL CARE,1073403,130245330,21-Oct-16,"7,616.83",PATHWAY HEALTHCARE,SP0001779
WANDSWORTH COUNCIL,ASC,SOCIAL SERVICES,Revenue,PRIVATE,EXTERNAL RESIDENTIAL CARE,1073404,130245330,21-Oct-16,"7,184.16",PATHWAY HEALTHCARE,SP0001779
WANDSWORTH COUNCIL,ASC,SOCIAL SERVICES,Revenue,PRIVATE,EXTERNAL RESIDENTIAL CARE,1057833,130245330,03-Oct-16,"11,134.88",KISIMUL GROUP LTD,SP0002487
WANDSWORTH COUNCIL,ASC,SOCIAL SERVICES,Revenue,PRIVATE,EXTERNAL RESIDENTIAL CARE,1064490,130245330,14-Oct-16,"6,408.96",THE BRANDON TRUST,SP0005337
WANDSWORTH COUNCIL,ASC,SOCIAL SERVICES,Revenue,PRIVATE,EXTERNAL RESIDENTIAL CARE,1064821,130245330,14-Oct-16,"3,493.28",CSS LTD T/A  THF CARE ESTATES LTD,SP0005682
WANDSWORTH COUNCIL,ASC,SOCIAL SERVICES,Revenue,PRIVATE,EXTERNAL RESIDENTIAL CARE,1072000,130245330,20-Oct-16,"3,493.28",CSS LTD T/A  THF CARE ESTATES LTD,SP0005682
WANDSWORTH COUNCIL,ASC,SOCIAL SERVICES,Revenue,PRIVATE,EXTERNAL RESIDENTIAL CARE,1065456,130245330,17-Oct-16,"5,980.80",ENHAM,SP0005845
WANDSWORTH COUNCIL,ASC,SOCIAL SERVICES,Revenue,PRIVATE,EXTERNAL RESIDENTIAL CARE,1073394,130245330,21-Oct-16,"10,566.57",SEQUENCE CARE GROUP,SP0009709
WANDSWORTH COUNCIL,ASC,SOCIAL SERVICES,Revenue,PRIVATE,EXTERNAL RESIDENTIAL CARE,1064486,130245330,14-Oct-16,"4,598.80",ALLIED CARE LTD T/A ASHSTEAD HOUSE LTD,SP0009950
WANDSWORTH COUNCIL,ASC,SOCIAL SERVICES,Revenue,PRIVATE,EXTERNAL RESIDENTIAL CARE,1064818,130245330,14-Oct-16,"4,598.80",ALLIED CARE LTD T/A ASHSTEAD HOUSE LTD,SP0009950
WANDSWORTH COUNCIL,ASC,SOCIAL SERVICES,Revenue,PRIVATE,EXTERNAL RESIDENTIAL CARE,1060598,130245330,06-Oct-16,"3,137.36",INSPIRE CARE OUTREACH LIMITED,SP0010404
WANDSWORTH COUNCIL,ASC,SOCIAL SERVICES,Revenue,PRIVATE,EXTERNAL RESIDENTIAL CARE,1060599,130245330,06-Oct-16,"3,137.36",INSPIRE CARE OUTREACH LIMITED,SP0010404
WANDSWORTH COUNCIL,ASC,SOCIAL SERVICES,Revenue,PRIVATE,EXTERNAL RESIDENTIAL CARE,1075844,130245330,26-Oct-16,"3,137.36",INSPIRE CARE OUTREACH LIMITED,SP0010404
WANDSWORTH COUNCIL,ASC,SOCIAL SERVICES,Revenue,PRIVATE,EXTERNAL RESIDENTIAL CARE,1075832,130245330,26-Oct-16,"7,455.92",C.H.O.I.C.E LIMITED,SP0010438
WANDSWORTH COUNCIL,ASC,SOCIAL SERVICES,Revenue,PRIVATE,EXTERNAL RESIDENTIAL CARE,1075833,130245330,26-Oct-16,"7,800.00",C.H.O.I.C.E LIMITED,SP0010438
WANDSWORTH COUNCIL,ASC,SOCIAL SERVICES,Revenue,PRIVATE,EXTERNAL RESIDENTIAL CARE,1075834,130245330,26-Oct-16,"7,455.92",C.H.O.I.C.E LIMITED,SP0010438
WANDSWORTH COUNCIL,ASC,SOCIAL SERVICES,Revenue,PRIVATE,EXTERNAL RESIDENTIAL CARE,1075835,130245330,26-Oct-16,"7,800.00",C.H.O.I.C.E LIMITED,SP0010438
WANDSWORTH COUNCIL,ASC,SOCIAL SERVICES,Revenue,PRIVATE,EXTERNAL RESIDENTIAL CARE,1077405,130245330,27-Oct-16,"9,861.00","CRAEGMOOR, PARKCARE HOMES (NO2) LTD TA W",SP0010529
WANDSWORTH COUNCIL,ASC,SOCIAL SERVICES,Revenue,PRIVATE,EXTERNAL RESI RESPITE CARE,1067178,130245340,17-Oct-16,"2,460.00",ST MARYS RESIDENTIAL HOME,SP0000215
WANDSWORTH COUNCIL,ASC,SOCIAL SERVICES,Revenue,PRIVATE,EXTERNAL RESI RESPITE CARE,1073931,130245340,24-Oct-16,"1,687.02",ST MARYS RESIDENTIAL HOME,SP0000215
WANDSWORTH COUNCIL,ASC,SOCIAL SERVICES,Revenue,PRIVATE,EXTERNAL RESI RESPITE CARE,1073934,130245340,24-Oct-16,"3,763.37",ST MARYS RESIDENTIAL HOME,SP0000215
WANDSWORTH COUNCIL,ASC,SOCIAL SERVICES,Revenue,PRIVATE,EXTERNAL RESI RESPITE CARE,1073936,130245340,24-Oct-16,"4,022.91",ST MARYS RESIDENTIAL HOME,SP0000215
WANDSWORTH COUNCIL,ASC,SOCIAL SERVICES,Revenue,PRIVATE,EXTERNAL RESI RESPITE CARE,1064789,130245340,14-Oct-16,"2,150.00",THE BRANDON TRUST,SP0005337
WANDSWORTH COUNCIL,ASC,SOCIAL SERVICES,Revenue,PRIVATE,EXTERNAL RESI RESPITE CARE,1065435,130245340,17-Oct-16,"4,787.16",SEASHELL TRUST,SP0005836
WANDSWORTH COUNCIL,ASC,SOCIAL SERVICES,Revenue,PRIVATE,ONE TO ONE CARE,1061606,130246220,07-Oct-16,"2,206.75",RAINBOW MEDICAL SERVICES,SP0000037
WANDSWORTH COUNCIL,ASC,SOCIAL SERVICES,Revenue,PRIVATE,ONE TO ONE CARE,1061608,130246220,07-Oct-16,"1,605.85",RAINBOW MEDICAL SERVICES,SP0000037
WANDSWORTH COUNCIL,ASC,SOCIAL SERVICES,Revenue,PRIVATE,ONE TO ONE CARE,1072042,130246220,20-Oct-16,698.12,ST MARYS RESIDENTIAL HOME,SP0000215
WANDSWORTH COUNCIL,ASC,SOCIAL SERVICES,Revenue,PRIVATE,ONE TO ONE CARE,1072043,130246220,20-Oct-16,653.39,ST MARYS RESIDENTIAL HOME,SP0000215
WANDSWORTH COUNCIL,ASC,SOCIAL SERVICES,Revenue,PRIVATE,ONE TO ONE CARE,1072040,130246220,20-Oct-16,"10,065.60",CAMERON LODGE LIMITED,SP0000271
WANDSWORTH COUNCIL,ASC,SOCIAL SERVICES,Revenue,PRIVATE,ONE TO ONE CARE,1076234,130246220,26-Oct-16,"3,131.52",CAMERON LODGE LIMITED,SP0000271
WANDSWORTH COUNCIL,ASC,SOCIAL SERVICES,Revenue,PRIVATE,ONE TO ONE CARE,1074125,130246220,24-Oct-16,547.60,LIFEWAYS COMMUNITY CARE LTD,SP0000364
WANDSWORTH COUNCIL,ASC,SOCIAL SERVICES,Revenue,PRIVATE,ONE TO ONE CARE,1074126,130246220,24-Oct-16,547.60,LIFEWAYS COMMUNITY CARE LTD,SP0000364
WANDSWORTH COUNCIL,ASC,SOCIAL SERVICES,Revenue,PRIVATE,ONE TO ONE CARE,1067864,130246220,17-Oct-16,"1,364.04",MACINTYRE CARE,SP0000473
WANDSWORTH COUNCIL,ASC,SOCIAL SERVICES,Revenue,PRIVATE,ONE TO ONE CARE,1067865,130246220,17-Oct-16,"1,364.04",MACINTYRE CARE,SP0000473
WANDSWORTH COUNCIL,ASC,SOCIAL SERVICES,Revenue,PRIVATE,ONE TO ONE CARE,1067866,130246220,17-Oct-16,"1,928.52",MACINTYRE CARE,SP0000473
WANDSWORTH COUNCIL,ASC,SOCIAL SERVICES,Revenue,PRIVATE,ONE TO ONE CARE,1067867,130246220,17-Oct-16,"1,364.04",MACINTYRE CARE,SP0000473
WANDSWORTH COUNCIL,ASC,SOCIAL SERVICES,Revenue,PRIVATE,ONE TO ONE CARE,1067868,130246220,17-Oct-16,701.52,MACINTYRE CARE,SP0000473
WANDSWORTH COUNCIL,ASC,SOCIAL SERVICES,Revenue,PRIVATE,ONE TO ONE CARE,1077422,130246220,27-Oct-16,"1,364.04",MACINTYRE CARE,SP0000473
WANDSWORTH COUNCIL,ASC,SOCIAL SERVICES,Revenue,PRIVATE,ONE TO ONE CARE,1077423,130246220,27-Oct-16,"1,364.04",MACINTYRE CARE,SP0000473
WANDSWORTH COUNCIL,ASC,SOCIAL SERVICES,Revenue,PRIVATE,ONE TO ONE CARE,1077424,130246220,27-Oct-16,"1,928.52",MACINTYRE CARE,SP0000473
WANDSWORTH COUNCIL,ASC,SOCIAL SERVICES,Revenue,PRIVATE,ONE TO ONE CARE,1077425,130246220,27-Oct-16,"1,364.04",MACINTYRE CARE,SP0000473
WANDSWORTH COUNCIL,ASC,SOCIAL SERVICES,Revenue,PRIVATE,ONE TO ONE CARE,1077426,130246220,27-Oct-16,701.52,MACINTYRE CARE,SP0000473
WANDSWORTH COUNCIL,ASC,SOCIAL SERVICES,Revenue,PRIVATE,ONE TO ONE CARE,1073907,130246220,24-Oct-16,"1,172.55",THE COMMUNITY CARE COMPANY UK LTD,SP0000576
WANDSWORTH COUNCIL,ASC,SOCIAL SERVICES,Revenue,PRIVATE,ONE TO ONE CARE,1076232,130246220,26-Oct-16,"1,337.25",THE COMMUNITY CARE COMPANY UK LTD,SP0000576
WANDSWORTH COUNCIL,ASC,SOCIAL SERVICES,Revenue,PRIVATE,ONE TO ONE CARE,1072053,130246220,20-Oct-16,"2,497.36",STALLCOMBE HOUSE,SP0000843
WANDSWORTH COUNCIL,ASC,SOCIAL SERVICES,Revenue,PRIVATE,ONE TO ONE CARE,1064822,130246220,14-Oct-16,978.50,CORICH COMMUNITY CARE LTD,SP0000915
WANDSWORTH COUNCIL,ASC,SOCIAL SERVICES,Revenue,PRIVATE,ONE TO ONE CARE,1077889,130246220,28-Oct-16,"2,884.77",DOWNING (CHERTSEY ROAD) LTD,SP0000959
WANDSWORTH COUNCIL,ASC,SOCIAL SERVICES,Revenue,PRIVATE,ONE TO ONE CARE,1065656,130246220,17-Oct-16,500.14,FRONTIER SUPPORT SERVICES LTD,SP0001132
WANDSWORTH COUNCIL,ASC,SOCIAL SERVICES,Revenue,PRIVATE,ONE TO ONE CARE,1065658,130246220,17-Oct-16,44.25,FRONTIER SUPPORT SERVICES LTD,SP0001132
WANDSWORTH COUNCIL,ASC,SOCIAL SERVICES,Revenue,PRIVATE,ONE TO ONE CARE,1065661,130246220,17-Oct-16,716.24,FRONTIER SUPPORT SERVICES LTD,SP0001132
WANDSWORTH COUNCIL,ASC,SOCIAL SERVICES,Revenue,PRIVATE,ONE TO ONE CARE,1074207,130246220,24-Oct-16,976.56,HARROW MENCAP,SP0001347
WANDSWORTH COUNCIL,ASC,SOCIAL SERVICES,Revenue,PRIVATE,ONE TO ONE CARE,1060707,130246220,06-Oct-16,807.68,LARKFIELD HALL LTD T/A PEPENBURY,SP0001378
WANDSWORTH COUNCIL,ASC,SOCIAL SERVICES,Revenue,PRIVATE,ONE TO ONE CARE,1064632,130246220,14-Oct-16,807.68,LARKFIELD HALL LTD T/A PEPENBURY,SP0001378
WANDSWORTH COUNCIL,ASC,SOCIAL SERVICES,Revenue,PRIVATE,ONE TO ONE CARE,1077427,130246220,27-Oct-16,"3,000.00",CRAEGMOOR OLD RECTORY BREDE PRIORY,SP0001621
WANDSWORTH COUNCIL,ASC,SOCIAL SERVICES,Revenue,PRIVATE,ONE TO ONE CARE,1064652,130246220,14-Oct-16,600.04,THE BRANDON TRUST,SP0005337
WANDSWORTH COUNCIL,ASC,SOCIAL SERVICES,Revenue,PRIVATE,ONE TO ONE CARE,1064661,130246220,14-Oct-16,331.20,THE BRANDON TRUST,SP0005337
WANDSWORTH COUNCIL,ASC,SOCIAL SERVICES,Revenue,PRIVATE,ONE TO ONE CARE,1064663,130246220,14-Oct-16,331.20,THE BRANDON TRUST,SP0005337
WANDSWORTH COUNCIL,ASC,SOCIAL SERVICES,Revenue,PRIVATE,ONE TO ONE CARE,1064693,130246220,14-Oct-16,"1,987.20",THE BRANDON TRUST,SP0005337
WANDSWORTH COUNCIL,ASC,SOCIAL SERVICES,Revenue,PRIVATE,ONE TO ONE CARE,1064694,130246220,14-Oct-16,"1,312.00",THE BRANDON TRUST,SP0005337
WANDSWORTH COUNCIL,ASC,SOCIAL SERVICES,Revenue,PRIVATE,ONE TO ONE CARE,1064697,130246220,14-Oct-16,"2,450.88",THE BRANDON TRUST,SP0005337
WANDSWORTH COUNCIL,ASC,SOCIAL SERVICES,Revenue,PRIVATE,ONE TO ONE CARE,1064727,130246220,14-Oct-16,324.00,THE BRANDON TRUST,SP0005337
WANDSWORTH COUNCIL,ASC,SOCIAL SERVICES,Revenue,VOL ASS,SUPPORTED HOUSING PROGRAMME,1061605,130248030,07-Oct-16,"11,866.91",RAINBOW MEDICAL SERVICES,SP0000037
WANDSWORTH COUNCIL,ASC,SOCIAL SERVICES,Revenue,VOL ASS,SUPPORTED HOUSING PROGRAMME,1060412,130248030,06-Oct-16,"7,336.00",LIFEWAYS COMMUNITY CARE LTD,SP0000364
WANDSWORTH COUNCIL,ASC,SOCIAL SERVICES,Revenue,VOL ASS,SUPPORTED HOUSING PROGRAMME,1060413,130248030,06-Oct-16,"7,336.00",LIFEWAYS COMMUNITY CARE LTD,SP0000364
WANDSWORTH COUNCIL,ASC,SOCIAL SERVICES,Revenue,VOL ASS,SUPPORTED HOUSING PROGRAMME,1074127,130248030,24-Oct-16,"3,885.44",LIFEWAYS COMMUNITY CARE LTD,SP0000364
WANDSWORTH COUNCIL,ASC,SOCIAL SERVICES,Revenue,VOL ASS,SUPPORTED HOUSING PROGRAMME,1074128,130248030,24-Oct-16,"3,885.44",LIFEWAYS COMMUNITY CARE LTD,SP0000364
WANDSWORTH COUNCIL,ASC,SOCIAL SERVICES,Revenue,VOL ASS,SUPPORTED HOUSING PROGRAMME,1074129,130248030,24-Oct-16,"2,596.04",LIFEWAYS COMMUNITY CARE LTD,SP0000364
WANDSWORTH COUNCIL,ASC,SOCIAL SERVICES,Revenue,VOL ASS,SUPPORTED HOUSING PROGRAMME,1074130,130248030,24-Oct-16,"2,596.04",LIFEWAYS COMMUNITY CARE LTD,SP0000364
WANDSWORTH COUNCIL,ASC,SOCIAL SERVICES,Revenue,VOL ASS,SUPPORTED HOUSING PROGRAMME,1074131,130248030,24-Oct-16,"2,166.24",LIFEWAYS COMMUNITY CARE LTD,SP0000364
WANDSWORTH COUNCIL,ASC,SOCIAL SERVICES,Revenue,VOL ASS,SUPPORTED HOUSING PROGRAMME,1074132,130248030,24-Oct-16,"2,166.24",LIFEWAYS COMMUNITY CARE LTD,SP0000364
WANDSWORTH COUNCIL,ASC,SOCIAL SERVICES,Revenue,VOL ASS,SUPPORTED HOUSING PROGRAMME,1074133,130248030,24-Oct-16,"2,227.64",LIFEWAYS COMMUNITY CARE LTD,SP0000364
WANDSWORTH COUNCIL,ASC,SOCIAL SERVICES,Revenue,VOL ASS,SUPPORTED HOUSING PROGRAMME,1074134,130248030,24-Oct-16,"2,227.64",LIFEWAYS COMMUNITY CARE LTD,SP0000364
WANDSWORTH COUNCIL,ASC,SOCIAL SERVICES,Revenue,VOL ASS,SUPPORTED HOUSING PROGRAMME,1074135,130248030,24-Oct-16,"1,982.04",LIFEWAYS COMMUNITY CARE LTD,SP0000364
WANDSWORTH COUNCIL,ASC,SOCIAL SERVICES,Revenue,VOL ASS,SUPPORTED HOUSING PROGRAMME,1074136,130248030,24-Oct-16,"1,982.04",LIFEWAYS COMMUNITY CARE LTD,SP0000364
WANDSWORTH COUNCIL,ASC,SOCIAL SERVICES,Revenue,VOL ASS,SUPPORTED HOUSING PROGRAMME,1074139,130248030,24-Oct-16,"2,289.04",LIFEWAYS COMMUNITY CARE LTD,SP0000364
WANDSWORTH COUNCIL,ASC,SOCIAL SERVICES,Revenue,VOL ASS,SUPPORTED HOUSING PROGRAMME,1074140,130248030,24-Oct-16,"2,289.04",LIFEWAYS COMMUNITY CARE LTD,SP0000364
WANDSWORTH COUNCIL,ASC,SOCIAL SERVICES,Revenue,VOL ASS,SUPPORTED HOUSING PROGRAMME,1074141,130248030,24-Oct-16,"1,982.04",LIFEWAYS COMMUNITY CARE LTD,SP0000364
WANDSWORTH COUNCIL,ASC,SOCIAL SERVICES,Revenue,VOL ASS,SUPPORTED HOUSING PROGRAMME,1074142,130248030,24-Oct-16,"1,982.04",LIFEWAYS COMMUNITY CARE LTD,SP0000364
WANDSWORTH COUNCIL,ASC,SOCIAL SERVICES,Revenue,VOL ASS,SUPPORTED HOUSING PROGRAMME,1074143,130248030,24-Oct-16,"3,885.44",LIFEWAYS COMMUNITY CARE LTD,SP0000364
WANDSWORTH COUNCIL,ASC,SOCIAL SERVICES,Revenue,VOL ASS,SUPPORTED HOUSING PROGRAMME,1074144,130248030,24-Oct-16,"3,885.44",LIFEWAYS COMMUNITY CARE LTD,SP0000364
WANDSWORTH COUNCIL,ASC,SOCIAL SERVICES,Revenue,VOL ASS,SUPPORTED HOUSING PROGRAMME,1074145,130248030,24-Oct-16,"2,411.84",LIFEWAYS COMMUNITY CARE LTD,SP0000364
WANDSWORTH COUNCIL,ASC,SOCIAL SERVICES,Revenue,VOL ASS,SUPPORTED HOUSING PROGRAMME,1074146,130248030,24-Oct-16,"2,411.84",LIFEWAYS COMMUNITY CARE LTD,SP0000364
WANDSWORTH COUNCIL,ASC,SOCIAL SERVICES,Revenue,VOL ASS,SUPPORTED HOUSING PROGRAMME,1074147,130248030,24-Oct-16,"1,736.44",LIFEWAYS COMMUNITY CARE LTD,SP0000364
WANDSWORTH COUNCIL,ASC,SOCIAL SERVICES,Revenue,VOL ASS,SUPPORTED HOUSING PROGRAMME,1074148,130248030,24-Oct-16,"1,736.44",LIFEWAYS COMMUNITY CARE LTD,SP0000364
WANDSWORTH COUNCIL,ASC,SOCIAL SERVICES,Revenue,VOL ASS,SUPPORTED HOUSING PROGRAMME,1074149,130248030,24-Oct-16,"1,920.64",LIFEWAYS COMMUNITY CARE LTD,SP0000364
WANDSWORTH COUNCIL,ASC,SOCIAL SERVICES,Revenue,VOL ASS,SUPPORTED HOUSING PROGRAMME,1074150,130248030,24-Oct-16,"1,920.64",LIFEWAYS COMMUNITY CARE LTD,SP0000364
WANDSWORTH COUNCIL,ASC,SOCIAL SERVICES,Revenue,VOL ASS,SUPPORTED HOUSING PROGRAMME,1074151,130248030,24-Oct-16,"2,749.54",LIFEWAYS COMMUNITY CARE LTD,SP0000364
WANDSWORTH COUNCIL,ASC,SOCIAL SERVICES,Revenue,VOL ASS,SUPPORTED HOUSING PROGRAMME,1074152,130248030,24-Oct-16,"3,210.04",LIFEWAYS COMMUNITY CARE LTD,SP0000364
WANDSWORTH COUNCIL,ASC,SOCIAL SERVICES,Revenue,VOL ASS,SUPPORTED HOUSING PROGRAMME,1074157,130248030,24-Oct-16,"2,394.20",LIFEWAYS COMMUNITY CARE LTD,SP0000364
WANDSWORTH COUNCIL,ASC,SOCIAL SERVICES,Revenue,VOL ASS,SUPPORTED HOUSING PROGRAMME,1074158,130248030,24-Oct-16,"2,394.20",LIFEWAYS COMMUNITY CARE LTD,SP0000364
WANDSWORTH COUNCIL,ASC,SOCIAL SERVICES,Revenue,VOL ASS,SUPPORTED HOUSING PROGRAMME,1074159,130248030,24-Oct-16,"2,551.16",LIFEWAYS COMMUNITY CARE LTD,SP0000364
WANDSWORTH COUNCIL,ASC,SOCIAL SERVICES,Revenue,VOL ASS,SUPPORTED HOUSING PROGRAMME,1074160,130248030,24-Oct-16,"2,551.16",LIFEWAYS COMMUNITY CARE LTD,SP0000364
WANDSWORTH COUNCIL,ASC,SOCIAL SERVICES,Revenue,VOL ASS,SUPPORTED HOUSING PROGRAMME,1074161,130248030,24-Oct-16,"3,335.96",LIFEWAYS COMMUNITY CARE LTD,SP0000364
WANDSWORTH COUNCIL,ASC,SOCIAL SERVICES,Revenue,VOL ASS,SUPPORTED HOUSING PROGRAMME,1074162,130248030,24-Oct-16,"3,335.96",LIFEWAYS COMMUNITY CARE LTD,SP0000364
WANDSWORTH COUNCIL,ASC,SOCIAL SERVICES,Revenue,VOL ASS,SUPPORTED HOUSING PROGRAMME,1074163,130248030,24-Oct-16,"2,603.48",LIFEWAYS COMMUNITY CARE LTD,SP0000364
WANDSWORTH COUNCIL,ASC,SOCIAL SERVICES,Revenue,VOL ASS,SUPPORTED HOUSING PROGRAMME,1074164,130248030,24-Oct-16,"2,603.48",LIFEWAYS COMMUNITY CARE LTD,SP0000364
WANDSWORTH COUNCIL,ASC,SOCIAL SERVICES,Revenue,VOL ASS,SUPPORTED HOUSING PROGRAMME,1074165,130248030,24-Oct-16,"2,969.72",LIFEWAYS COMMUNITY CARE LTD,SP0000364
WANDSWORTH COUNCIL,ASC,SOCIAL SERVICES,Revenue,VOL ASS,SUPPORTED HOUSING PROGRAMME,1074166,130248030,24-Oct-16,"2,969.72",LIFEWAYS COMMUNITY CARE LTD,SP0000364
WANDSWORTH COUNCIL,ASC,SOCIAL SERVICES,Revenue,VOL ASS,SUPPORTED HOUSING PROGRAMME,1074167,130248030,24-Oct-16,"2,341.88",LIFEWAYS COMMUNITY CARE LTD,SP0000364
WANDSWORTH COUNCIL,ASC,SOCIAL SERVICES,Revenue,VOL ASS,SUPPORTED HOUSING PROGRAMME,1074168,130248030,24-Oct-16,"2,341.88",LIFEWAYS COMMUNITY CARE LTD,SP0000364
WANDSWORTH COUNCIL,ASC,SOCIAL SERVICES,Revenue,VOL ASS,SUPPORTED HOUSING PROGRAMME,1074169,130248030,24-Oct-16,"2,551.16",LIFEWAYS COMMUNITY CARE LTD,SP0000364
WANDSWORTH COUNCIL,ASC,SOCIAL SERVICES,Revenue,VOL ASS,SUPPORTED HOUSING PROGRAMME,1074170,130248030,24-Oct-16,"2,551.16",LIFEWAYS COMMUNITY CARE LTD,SP0000364
WANDSWORTH COUNCIL,ASC,SOCIAL SERVICES,Revenue,VOL ASS,SUPPORTED HOUSING PROGRAMME,1074171,130248030,24-Oct-16,"1,444.56",LIFEWAYS COMMUNITY CARE LTD,SP0000364
WANDSWORTH COUNCIL,ASC,SOCIAL SERVICES,Revenue,VOL ASS,SUPPORTED HOUSING PROGRAMME,1074172,130248030,24-Oct-16,"1,444.56",LIFEWAYS COMMUNITY CARE LTD,SP0000364
WANDSWORTH COUNCIL,ASC,SOCIAL SERVICES,Revenue,VOL ASS,SUPPORTED HOUSING PROGRAMME,1074173,130248030,24-Oct-16,"2,025.24",LIFEWAYS COMMUNITY CARE LTD,SP0000364
WANDSWORTH COUNCIL,ASC,SOCIAL SERVICES,Revenue,VOL ASS,SUPPORTED HOUSING PROGRAMME,1074174,130248030,24-Oct-16,"2,025.24",LIFEWAYS COMMUNITY CARE LTD,SP0000364
WANDSWORTH COUNCIL,ASC,SOCIAL SERVICES,Revenue,VOL ASS,SUPPORTED HOUSING PROGRAMME,1074175,130248030,24-Oct-16,"2,025.24",LIFEWAYS COMMUNITY CARE LTD,SP0000364
WANDSWORTH COUNCIL,ASC,SOCIAL SERVICES,Revenue,VOL ASS,SUPPORTED HOUSING PROGRAMME,1074176,130248030,24-Oct-16,"2,025.24",LIFEWAYS COMMUNITY CARE LTD,SP0000364
WANDSWORTH COUNCIL,ASC,SOCIAL SERVICES,Revenue,VOL ASS,SUPPORTED HOUSING PROGRAMME,1074177,130248030,24-Oct-16,"2,025.24",LIFEWAYS COMMUNITY CARE LTD,SP0000364
WANDSWORTH COUNCIL,ASC,SOCIAL SERVICES,Revenue,VOL ASS,SUPPORTED HOUSING PROGRAMME,1074178,130248030,24-Oct-16,"2,025.24",LIFEWAYS COMMUNITY CARE LTD,SP0000364
WANDSWORTH COUNCIL,ASC,SOCIAL SERVICES,Revenue,VOL ASS,SUPPORTED HOUSING PROGRAMME,1074179,130248030,24-Oct-16,"2,244.28",LIFEWAYS COMMUNITY CARE LTD,SP0000364
WANDSWORTH COUNCIL,ASC,SOCIAL SERVICES,Revenue,VOL ASS,SUPPORTED HOUSING PROGRAMME,1074180,130248030,24-Oct-16,"2,244.28",LIFEWAYS COMMUNITY CARE LTD,SP0000364
WANDSWORTH COUNCIL,ASC,SOCIAL SERVICES,Revenue,VOL ASS,SUPPORTED HOUSING PROGRAMME,1074181,130248030,24-Oct-16,"2,518.08",LIFEWAYS COMMUNITY CARE LTD,SP0000364
WANDSWORTH COUNCIL,ASC,SOCIAL SERVICES,Revenue,VOL ASS,SUPPORTED HOUSING PROGRAMME,1074182,130248030,24-Oct-16,"2,518.08",LIFEWAYS COMMUNITY CARE LTD,SP0000364
WANDSWORTH COUNCIL,ASC,SOCIAL SERVICES,Revenue,VOL ASS,SUPPORTED HOUSING PROGRAMME,1074183,130248030,24-Oct-16,"2,025.24",LIFEWAYS COMMUNITY CARE LTD,SP0000364
WANDSWORTH COUNCIL,ASC,SOCIAL SERVICES,Revenue,VOL ASS,SUPPORTED HOUSING PROGRAMME,1074184,130248030,24-Oct-16,"2,025.24",LIFEWAYS COMMUNITY CARE LTD,SP0000364
WANDSWORTH COUNCIL,ASC,SOCIAL SERVICES,Revenue,VOL ASS,SUPPORTED HOUSING PROGRAMME,1074185,130248030,24-Oct-16,"2,244.28",LIFEWAYS COMMUNITY CARE LTD,SP0000364
WANDSWORTH COUNCIL,ASC,SOCIAL SERVICES,Revenue,VOL ASS,SUPPORTED HOUSING PROGRAMME,1074186,130248030,24-Oct-16,"2,244.28",LIFEWAYS COMMUNITY CARE LTD,SP0000364
WANDSWORTH COUNCIL,ASC,SOCIAL SERVICES,Revenue,VOL ASS,SUPPORTED HOUSING PROGRAMME,1074187,130248030,24-Oct-16,"1,860.96",LIFEWAYS COMMUNITY CARE LTD,SP0000364
WANDSWORTH COUNCIL,ASC,SOCIAL SERVICES,Revenue,VOL ASS,SUPPORTED HOUSING PROGRAMME,1074188,130248030,24-Oct-16,"2,345.32",LIFEWAYS COMMUNITY CARE LTD,SP0000364
WANDSWORTH COUNCIL,ASC,SOCIAL SERVICES,Revenue,VOL ASS,SUPPORTED HOUSING PROGRAMME,1074189,130248030,24-Oct-16,"2,345.32",LIFEWAYS COMMUNITY CARE LTD,SP0000364
WANDSWORTH COUNCIL,ASC,SOCIAL SERVICES,Revenue,VOL ASS,SUPPORTED HOUSING PROGRAMME,1074190,130248030,24-Oct-16,"2,867.20",LIFEWAYS COMMUNITY CARE LTD,SP0000364
WANDSWORTH COUNCIL,ASC,SOCIAL SERVICES,Revenue,VOL ASS,SUPPORTED HOUSING PROGRAMME,1074196,130248030,24-Oct-16,"2,341.88",LIFEWAYS COMMUNITY CARE LTD,SP0000364
WANDSWORTH COUNCIL,ASC,SOCIAL SERVICES,Revenue,VOL ASS,SUPPORTED HOUSING PROGRAMME,1074197,130248030,24-Oct-16,"2,341.88",LIFEWAYS COMMUNITY CARE LTD,SP0000364
WANDSWORTH COUNCIL,ASC,SOCIAL SERVICES,Revenue,VOL ASS,SUPPORTED HOUSING PROGRAMME,1074198,130248030,24-Oct-16,"3,100.52",LIFEWAYS COMMUNITY CARE LTD,SP0000364
WANDSWORTH COUNCIL,ASC,SOCIAL SERVICES,Revenue,VOL ASS,SUPPORTED HOUSING PROGRAMME,1074199,130248030,24-Oct-16,"3,100.52",LIFEWAYS COMMUNITY CARE LTD,SP0000364
WANDSWORTH COUNCIL,ASC,SOCIAL SERVICES,Revenue,VOL ASS,SUPPORTED HOUSING PROGRAMME,1074200,130248030,24-Oct-16,"1,860.96",LIFEWAYS COMMUNITY CARE LTD,SP0000364
WANDSWORTH COUNCIL,ASC,SOCIAL SERVICES,Revenue,VOL ASS,SUPPORTED HOUSING PROGRAMME,1069273,130248030,18-Oct-16,"7,972.24",CHOICE SUPPORT,SP0000398
WANDSWORTH COUNCIL,ASC,SOCIAL SERVICES,Revenue,VOL ASS,SUPPORTED HOUSING PROGRAMME,1069274,130248030,18-Oct-16,"7,972.24",CHOICE SUPPORT,SP0000398
WANDSWORTH COUNCIL,ASC,SOCIAL SERVICES,Revenue,VOL ASS,SUPPORTED HOUSING PROGRAMME,1073450,130248030,21-Oct-16,"1,687.76",C M CARE LTD,SP0000455
WANDSWORTH COUNCIL,ASC,SOCIAL SERVICES,Revenue,VOL ASS,SUPPORTED HOUSING PROGRAMME,1069296,130248030,18-Oct-16,"4,930.59",CAREOLINE,SP0000483
WANDSWORTH COUNCIL,ASC,SOCIAL SERVICES,Revenue,VOL ASS,SUPPORTED HOUSING PROGRAMME,1069297,130248030,18-Oct-16,"2,817.48",CAREOLINE,SP0000483
WANDSWORTH COUNCIL,ASC,SOCIAL SERVICES,Revenue,VOL ASS,SUPPORTED HOUSING PROGRAMME,1063285,130248030,10-Oct-16,"3,338.80",ROYAL MENCAP SOCIETY,SP0000842
WANDSWORTH COUNCIL,ASC,SOCIAL SERVICES,Revenue,VOL ASS,SUPPORTED HOUSING PROGRAMME,1063286,130248030,10-Oct-16,"7,211.20",ROYAL MENCAP SOCIETY,SP0000842
WANDSWORTH COUNCIL,ASC,SOCIAL SERVICES,Revenue,VOL ASS,SUPPORTED HOUSING PROGRAMME,1063287,130248030,10-Oct-16,"5,308.36",ROYAL MENCAP SOCIETY,SP0000842
WANDSWORTH COUNCIL,ASC,SOCIAL SERVICES,Revenue,VOL ASS,SUPPORTED HOUSING PROGRAMME,1063288,130248030,10-Oct-16,"2,490.04",ROYAL MENCAP SOCIETY,SP0000842
WANDSWORTH COUNCIL,ASC,SOCIAL SERVICES,Revenue,VOL ASS,SUPPORTED HOUSING PROGRAMME,1064769,130248030,14-Oct-16,"2,541.12",ROYAL MENCAP SOCIETY,SP0000842
WANDSWORTH COUNCIL,ASC,SOCIAL SERVICES,Revenue,VOL ASS,SUPPORTED HOUSING PROGRAMME,1064770,130248030,14-Oct-16,"2,296.56",ROYAL MENCAP SOCIETY,SP0000842
WANDSWORTH COUNCIL,ASC,SOCIAL SERVICES,Revenue,VOL ASS,SUPPORTED HOUSING PROGRAMME,1064771,130248030,14-Oct-16,"3,338.80",ROYAL MENCAP SOCIETY,SP0000842
WANDSWORTH COUNCIL,ASC,SOCIAL SERVICES,Revenue,VOL ASS,SUPPORTED HOUSING PROGRAMME,1064772,130248030,14-Oct-16,"7,211.20",ROYAL MENCAP SOCIETY,SP0000842
WANDSWORTH COUNCIL,ASC,SOCIAL SERVICES,Revenue,VOL ASS,SUPPORTED HOUSING PROGRAMME,1064773,130248030,14-Oct-16,"5,308.36",ROYAL MENCAP SOCIETY,SP0000842
WANDSWORTH COUNCIL,ASC,SOCIAL SERVICES,Revenue,VOL ASS,SUPPORTED HOUSING PROGRAMME,1064774,130248030,14-Oct-16,"2,490.04",ROYAL MENCAP SOCIETY,SP0000842
WANDSWORTH COUNCIL,ASC,SOCIAL SERVICES,Revenue,VOL ASS,SUPPORTED HOUSING PROGRAMME,1064776,130248030,14-Oct-16,"2,541.12",ROYAL MENCAP SOCIETY,SP0000842
WANDSWORTH COUNCIL,ASC,SOCIAL SERVICES,Revenue,VOL ASS,SUPPORTED HOUSING PROGRAMME,1064777,130248030,14-Oct-16,"2,296.56",ROYAL MENCAP SOCIETY,SP0000842
WANDSWORTH COUNCIL,ASC,SOCIAL SERVICES,Revenue,VOL ASS,SUPPORTED HOUSING PROGRAMME,1064778,130248030,14-Oct-16,"3,338.80",ROYAL MENCAP SOCIETY,SP0000842
WANDSWORTH COUNCIL,ASC,SOCIAL SERVICES,Revenue,VOL ASS,SUPPORTED HOUSING PROGRAMME,1064779,130248030,14-Oct-16,915.28,ROYAL MENCAP SOCIETY,SP0000842
WANDSWORTH COUNCIL,ASC,SOCIAL SERVICES,Revenue,VOL ASS,SUPPORTED HOUSING PROGRAMME,1064780,130248030,14-Oct-16,"3,311.32",ROYAL MENCAP SOCIETY,SP0000842
WANDSWORTH COUNCIL,ASC,SOCIAL SERVICES,Revenue,VOL ASS,SUPPORTED HOUSING PROGRAMME,1067256,130248030,17-Oct-16,"2,296.56",ROYAL MENCAP SOCIETY,SP0000842
WANDSWORTH COUNCIL,ASC,SOCIAL SERVICES,Revenue,VOL ASS,SUPPORTED HOUSING PROGRAMME,1067257,130248030,17-Oct-16,"3,338.80",ROYAL MENCAP SOCIETY,SP0000842
WANDSWORTH COUNCIL,ASC,SOCIAL SERVICES,Revenue,VOL ASS,SUPPORTED HOUSING PROGRAMME,1067258,130248030,17-Oct-16,"7,211.20",ROYAL MENCAP SOCIETY,SP0000842
WANDSWORTH COUNCIL,ASC,SOCIAL SERVICES,Revenue,VOL ASS,SUPPORTED HOUSING PROGRAMME,1067259,130248030,17-Oct-16,"5,308.36",ROYAL MENCAP SOCIETY,SP0000842
WANDSWORTH COUNCIL,ASC,SOCIAL SERVICES,Revenue,VOL ASS,SUPPORTED HOUSING PROGRAMME,1067260,130248030,17-Oct-16,"2,490.04",ROYAL MENCAP SOCIETY,SP0000842
WANDSWORTH COUNCIL,ASC,SOCIAL SERVICES,Revenue,VOL ASS,SUPPORTED HOUSING PROGRAMME,1069304,130248030,18-Oct-16,"1,783.00",ROYAL MENCAP SOCIETY,SP0000842
WANDSWORTH COUNCIL,ASC,SOCIAL SERVICES,Revenue,VOL ASS,SUPPORTED HOUSING PROGRAMME,1069305,130248030,18-Oct-16,"1,783.00",ROYAL MENCAP SOCIETY,SP0000842
WANDSWORTH COUNCIL,ASC,SOCIAL SERVICES,Revenue,VOL ASS,SUPPORTED HOUSING PROGRAMME,1069306,130248030,18-Oct-16,"1,783.00",ROYAL MENCAP SOCIETY,SP0000842
WANDSWORTH COUNCIL,ASC,SOCIAL SERVICES,Revenue,VOL ASS,SUPPORTED HOUSING PROGRAMME,1069307,130248030,18-Oct-16,"1,783.00",ROYAL MENCAP SOCIETY,SP0000842
WANDSWORTH COUNCIL,ASC,SOCIAL SERVICES,Revenue,VOL ASS,SUPPORTED HOUSING PROGRAMME,1072046,130248030,20-Oct-16,"2,541.12",ROYAL MENCAP SOCIETY,SP0000842
WANDSWORTH COUNCIL,ASC,SOCIAL SERVICES,Revenue,VOL ASS,SUPPORTED HOUSING PROGRAMME,1072047,130248030,20-Oct-16,"2,296.56",ROYAL MENCAP SOCIETY,SP0000842
WANDSWORTH COUNCIL,ASC,SOCIAL SERVICES,Revenue,VOL ASS,SUPPORTED HOUSING PROGRAMME,1073445,130248030,21-Oct-16,"5,310.92",ST ELIZABETHS CENTRE,SP0001019
WANDSWORTH COUNCIL,ASC,SOCIAL SERVICES,Revenue,VOL ASS,SUPPORTED HOUSING PROGRAMME,1065658,130248030,17-Oct-16,"1,513.63",FRONTIER SUPPORT SERVICES LTD,SP0001132
WANDSWORTH COUNCIL,ASC,SOCIAL SERVICES,Revenue,VOL ASS,SUPPORTED HOUSING PROGRAMME,1065659,130248030,17-Oct-16,"1,259.88",FRONTIER SUPPORT SERVICES LTD,SP0001132
WANDSWORTH COUNCIL,ASC,SOCIAL SERVICES,Revenue,VOL ASS,SUPPORTED HOUSING PROGRAMME,1065661,130248030,17-Oct-16,"1,019.20",FRONTIER SUPPORT SERVICES LTD,SP0001132
WANDSWORTH COUNCIL,ASC,SOCIAL SERVICES,Revenue,VOL ASS,SUPPORTED HOUSING PROGRAMME,1065662,130248030,17-Oct-16,"1,543.72",FRONTIER SUPPORT SERVICES LTD,SP0001132
WANDSWORTH COUNCIL,ASC,SOCIAL SERVICES,Revenue,VOL ASS,SUPPORTED HOUSING PROGRAMME,1065663,130248030,17-Oct-16,"1,877.92",FRONTIER SUPPORT SERVICES LTD,SP0001132
WANDSWORTH COUNCIL,ASC,SOCIAL SERVICES,Revenue,VOL ASS,SUPPORTED HOUSING PROGRAMME,1065664,130248030,17-Oct-16,"1,361.20",FRONTIER SUPPORT SERVICES LTD,SP0001132
WANDSWORTH COUNCIL,ASC,SOCIAL SERVICES,Revenue,VOL ASS,SUPPORTED HOUSING PROGRAMME,1065666,130248030,17-Oct-16,"1,363.36",FRONTIER SUPPORT SERVICES LTD,SP0001132
WANDSWORTH COUNCIL,ASC,SOCIAL SERVICES,Revenue,VOL ASS,SUPPORTED HOUSING PROGRAMME,1065667,130248030,17-Oct-16,"1,105.20",FRONTIER SUPPORT SERVICES LTD,SP0001132
WANDSWORTH COUNCIL,ASC,SOCIAL SERVICES,Revenue,VOL ASS,SUPPORTED HOUSING PROGRAMME,1065670,130248030,17-Oct-16,"1,697.72",FRONTIER SUPPORT SERVICES LTD,SP0001132
WANDSWORTH COUNCIL,ASC,SOCIAL SERVICES,Revenue,VOL ASS,SUPPORTED HOUSING PROGRAMME,1069881,130248030,19-Oct-16,"15,981.92",FRONTIER SUPPORT SERVICES LTD,SP0001132
WANDSWORTH COUNCIL,ASC,SOCIAL SERVICES,Revenue,VOL ASS,SUPPORTED HOUSING PROGRAMME,1073446,130248030,21-Oct-16,"5,710.84",INDEPENDENCE HOMES LTD,SP0004378
WANDSWORTH COUNCIL,ASC,SOCIAL SERVICES,Revenue,VOL ASS,SUPPORTED HOUSING PROGRAMME,1064641,130248030,14-Oct-16,"1,034.48",THE BRANDON TRUST,SP0005337
WANDSWORTH COUNCIL,ASC,SOCIAL SERVICES,Revenue,VOL ASS,SUPPORTED HOUSING PROGRAMME,1064656,130248030,14-Oct-16,"1,625.36",THE BRANDON TRUST,SP0005337
WANDSWORTH COUNCIL,ASC,SOCIAL SERVICES,Revenue,VOL ASS,SUPPORTED HOUSING PROGRAMME,1064657,130248030,14-Oct-16,"1,674.84",THE BRANDON TRUST,SP0005337
WANDSWORTH COUNCIL,ASC,SOCIAL SERVICES,Revenue,VOL ASS,SUPPORTED HOUSING PROGRAMME,1064658,130248030,14-Oct-16,"5,630.08",THE BRANDON TRUST,SP0005337
WANDSWORTH COUNCIL,ASC,SOCIAL SERVICES,Revenue,VOL ASS,SUPPORTED HOUSING PROGRAMME,1064661,130248030,14-Oct-16,"2,459.52",THE BRANDON TRUST,SP0005337
WANDSWORTH COUNCIL,ASC,SOCIAL SERVICES,Revenue,VOL ASS,SUPPORTED HOUSING PROGRAMME,1064662,130248030,14-Oct-16,"3,883.68",THE BRANDON TRUST,SP0005337
WANDSWORTH COUNCIL,ASC,SOCIAL SERVICES,Revenue,VOL ASS,SUPPORTED HOUSING PROGRAMME,1064663,130248030,14-Oct-16,"2,618.48",THE BRANDON TRUST,SP0005337
WANDSWORTH COUNCIL,ASC,SOCIAL SERVICES,Revenue,VOL ASS,SUPPORTED HOUSING PROGRAMME,1064664,130248030,14-Oct-16,"3,585.60",THE BRANDON TRUST,SP0005337
WANDSWORTH COUNCIL,ASC,SOCIAL SERVICES,Revenue,VOL ASS,SUPPORTED HOUSING PROGRAMME,1064672,130248030,14-Oct-16,"1,465.92",THE BRANDON TRUST,SP0005337
WANDSWORTH COUNCIL,ASC,SOCIAL SERVICES,Revenue,VOL ASS,SUPPORTED HOUSING PROGRAMME,1064673,130248030,14-Oct-16,"2,606.80",THE BRANDON TRUST,SP0005337
WANDSWORTH COUNCIL,ASC,SOCIAL SERVICES,Revenue,VOL ASS,SUPPORTED HOUSING PROGRAMME,1064675,130248030,14-Oct-16,"2,631.48",THE BRANDON TRUST,SP0005337
WANDSWORTH COUNCIL,ASC,SOCIAL SERVICES,Revenue,VOL ASS,SUPPORTED HOUSING PROGRAMME,1064678,130248030,14-Oct-16,"4,177.52",THE BRANDON TRUST,SP0005337
WANDSWORTH COUNCIL,ASC,SOCIAL SERVICES,Revenue,VOL ASS,SUPPORTED HOUSING PROGRAMME,1064679,130248030,14-Oct-16,"1,020.12",THE BRANDON TRUST,SP0005337
WANDSWORTH COUNCIL,ASC,SOCIAL SERVICES,Revenue,VOL ASS,SUPPORTED HOUSING PROGRAMME,1064680,130248030,14-Oct-16,"2,812.76",THE BRANDON TRUST,SP0005337
WANDSWORTH COUNCIL,ASC,SOCIAL SERVICES,Revenue,VOL ASS,SUPPORTED HOUSING PROGRAMME,1064686,130248030,14-Oct-16,"2,112.52",THE BRANDON TRUST,SP0005337
WANDSWORTH COUNCIL,ASC,SOCIAL SERVICES,Revenue,VOL ASS,SUPPORTED HOUSING PROGRAMME,1064687,130248030,14-Oct-16,"2,112.52",THE BRANDON TRUST,SP0005337
WANDSWORTH COUNCIL,ASC,SOCIAL SERVICES,Revenue,VOL ASS,SUPPORTED HOUSING PROGRAMME,1064692,130248030,14-Oct-16,"2,260.80",THE BRANDON TRUST,SP0005337
WANDSWORTH COUNCIL,ASC,SOCIAL SERVICES,Revenue,VOL ASS,SUPPORTED HOUSING PROGRAMME,1064693,130248030,14-Oct-16,"5,688.08",THE BRANDON TRUST,SP0005337
WANDSWORTH COUNCIL,ASC,SOCIAL SERVICES,Revenue,VOL ASS,SUPPORTED HOUSING PROGRAMME,1064694,130248030,14-Oct-16,"5,983.44",THE BRANDON TRUST,SP0005337
WANDSWORTH COUNCIL,ASC,SOCIAL SERVICES,Revenue,VOL ASS,SUPPORTED HOUSING PROGRAMME,1064695,130248030,14-Oct-16,"4,827.60",THE BRANDON TRUST,SP0005337
WANDSWORTH COUNCIL,ASC,SOCIAL SERVICES,Revenue,VOL ASS,SUPPORTED HOUSING PROGRAMME,1064696,130248030,14-Oct-16,"6,146.20",THE BRANDON TRUST,SP0005337
WANDSWORTH COUNCIL,ASC,SOCIAL SERVICES,Revenue,VOL ASS,SUPPORTED HOUSING PROGRAMME,1064697,130248030,14-Oct-16,"3,324.96",THE BRANDON TRUST,SP0005337
WANDSWORTH COUNCIL,ASC,SOCIAL SERVICES,Revenue,VOL ASS,SUPPORTED HOUSING PROGRAMME,1064698,130248030,14-Oct-16,"2,886.04",THE BRANDON TRUST,SP0005337
WANDSWORTH COUNCIL,ASC,SOCIAL SERVICES,Revenue,VOL ASS,SUPPORTED HOUSING PROGRAMME,1064699,130248030,14-Oct-16,"2,856.96",THE BRANDON TRUST,SP0005337
WANDSWORTH COUNCIL,ASC,SOCIAL SERVICES,Revenue,VOL ASS,SUPPORTED HOUSING PROGRAMME,1064700,130248030,14-Oct-16,"2,128.32",THE BRANDON TRUST,SP0005337
WANDSWORTH COUNCIL,ASC,SOCIAL SERVICES,Revenue,VOL ASS,SUPPORTED HOUSING PROGRAMME,1064701,130248030,14-Oct-16,"6,198.76",THE BRANDON TRUST,SP0005337
WANDSWORTH COUNCIL,ASC,SOCIAL SERVICES,Revenue,VOL ASS,SUPPORTED HOUSING PROGRAMME,1064702,130248030,14-Oct-16,"1,465.92",THE BRANDON TRUST,SP0005337
WANDSWORTH COUNCIL,ASC,SOCIAL SERVICES,Revenue,VOL ASS,SUPPORTED HOUSING PROGRAMME,1064703,130248030,14-Oct-16,"1,482.48",THE BRANDON TRUST,SP0005337
WANDSWORTH COUNCIL,ASC,SOCIAL SERVICES,Revenue,VOL ASS,SUPPORTED HOUSING PROGRAMME,1064704,130248030,14-Oct-16,"2,592.60",THE BRANDON TRUST,SP0005337
WANDSWORTH COUNCIL,ASC,SOCIAL SERVICES,Revenue,VOL ASS,SUPPORTED HOUSING PROGRAMME,1064705,130248030,14-Oct-16,"2,724.48",THE BRANDON TRUST,SP0005337
WANDSWORTH COUNCIL,ASC,SOCIAL SERVICES,Revenue,VOL ASS,SUPPORTED HOUSING PROGRAMME,1064706,130248030,14-Oct-16,"3,564.56",THE BRANDON TRUST,SP0005337
WANDSWORTH COUNCIL,ASC,SOCIAL SERVICES,Revenue,VOL ASS,SUPPORTED HOUSING PROGRAMME,1064707,130248030,14-Oct-16,"3,416.80",THE BRANDON TRUST,SP0005337
WANDSWORTH COUNCIL,ASC,SOCIAL SERVICES,Revenue,VOL ASS,SUPPORTED HOUSING PROGRAMME,1064708,130248030,14-Oct-16,"2,848.72",THE BRANDON TRUST,SP0005337
WANDSWORTH COUNCIL,ASC,SOCIAL SERVICES,Revenue,VOL ASS,SUPPORTED HOUSING PROGRAMME,1064709,130248030,14-Oct-16,"2,327.24",THE BRANDON TRUST,SP0005337
WANDSWORTH COUNCIL,ASC,SOCIAL SERVICES,Revenue,VOL ASS,SUPPORTED HOUSING PROGRAMME,1064710,130248030,14-Oct-16,"2,327.24",THE BRANDON TRUST,SP0005337
WANDSWORTH COUNCIL,ASC,SOCIAL SERVICES,Revenue,VOL ASS,SUPPORTED HOUSING PROGRAMME,1064711,130248030,14-Oct-16,"2,065.12",THE BRANDON TRUST,SP0005337
WANDSWORTH COUNCIL,ASC,SOCIAL SERVICES,Revenue,VOL ASS,SUPPORTED HOUSING PROGRAMME,1064724,130248030,14-Oct-16,"1,551.32",THE BRANDON TRUST,SP0005337
WANDSWORTH COUNCIL,ASC,SOCIAL SERVICES,Revenue,VOL ASS,SUPPORTED HOUSING PROGRAMME,1064725,130248030,14-Oct-16,"1,936.52",THE BRANDON TRUST,SP0005337
WANDSWORTH COUNCIL,ASC,SOCIAL SERVICES,Revenue,VOL ASS,SUPPORTED HOUSING PROGRAMME,1064726,130248030,14-Oct-16,"7,764.16",THE BRANDON TRUST,SP0005337
WANDSWORTH COUNCIL,ASC,SOCIAL SERVICES,Revenue,VOL ASS,SUPPORTED HOUSING PROGRAMME,1064727,130248030,14-Oct-16,"2,327.04",THE BRANDON TRUST,SP0005337
WANDSWORTH COUNCIL,ASC,SOCIAL SERVICES,Revenue,VOL ASS,SUPPORTED HOUSING PROGRAMME,1064728,130248030,14-Oct-16,"2,979.92",THE BRANDON TRUST,SP0005337
WANDSWORTH COUNCIL,ASC,SOCIAL SERVICES,Revenue,VOL ASS,SUPPORTED HOUSING PROGRAMME,1064729,130248030,14-Oct-16,"2,140.32",THE BRANDON TRUST,SP0005337
WANDSWORTH COUNCIL,ASC,SOCIAL SERVICES,Revenue,VOL ASS,SUPPORTED HOUSING PROGRAMME,1064730,130248030,14-Oct-16,"12,037.37",THE BRANDON TRUST,SP0005337
WANDSWORTH COUNCIL,ASC,SOCIAL SERVICES,Revenue,VOL ASS,SUPPORTED HOUSING PROGRAMME,1064731,130248030,14-Oct-16,"1,125.08",THE BRANDON TRUST,SP0005337
WANDSWORTH COUNCIL,ASC,SOCIAL SERVICES,Revenue,VOL ASS,SUPPORTED HOUSING PROGRAMME,1064732,130248030,14-Oct-16,"1,155.88",THE BRANDON TRUST,SP0005337
WANDSWORTH COUNCIL,ASC,SOCIAL SERVICES,Revenue,VOL ASS,SUPPORTED HOUSING PROGRAMME,1064733,130248030,14-Oct-16,"1,854.72",THE BRANDON TRUST,SP0005337
WANDSWORTH COUNCIL,ASC,SOCIAL SERVICES,Revenue,VOL ASS,SUPPORTED HOUSING PROGRAMME,1064734,130248030,14-Oct-16,"1,380.64",THE BRANDON TRUST,SP0005337
WANDSWORTH COUNCIL,ASC,SOCIAL SERVICES,Revenue,VOL ASS,SUPPORTED HOUSING PROGRAMME,1064735,130248030,14-Oct-16,"1,466.16",THE BRANDON TRUST,SP0005337
WANDSWORTH COUNCIL,ASC,SOCIAL SERVICES,Revenue,VOL ASS,SUPPORTED HOUSING PROGRAMME,1064736,130248030,14-Oct-16,"1,513.68",THE BRANDON TRUST,SP0005337
WANDSWORTH COUNCIL,ASC,SOCIAL SERVICES,Revenue,VOL ASS,SUPPORTED HOUSING PROGRAMME,1064737,130248030,14-Oct-16,"1,513.68",THE BRANDON TRUST,SP0005337
WANDSWORTH COUNCIL,ASC,SOCIAL SERVICES,Revenue,VOL ASS,SUPPORTED HOUSING PROGRAMME,1064738,130248030,14-Oct-16,"2,856.96",THE BRANDON TRUST,SP0005337
WANDSWORTH COUNCIL,ASC,SOCIAL SERVICES,Revenue,VOL ASS,SUPPORTED HOUSING PROGRAMME,1064739,130248030,14-Oct-16,"3,453.12",THE BRANDON TRUST,SP0005337
WANDSWORTH COUNCIL,ASC,SOCIAL SERVICES,Revenue,VOL ASS,SUPPORTED HOUSING PROGRAMME,1064741,130248030,14-Oct-16,"2,096.40",THE BRANDON TRUST,SP0005337
WANDSWORTH COUNCIL,ASC,SOCIAL SERVICES,Revenue,VOL ASS,SUPPORTED HOUSING PROGRAMME,1064742,130248030,14-Oct-16,"1,797.12",THE BRANDON TRUST,SP0005337
WANDSWORTH COUNCIL,ASC,SOCIAL SERVICES,Revenue,VOL ASS,SUPPORTED HOUSING PROGRAMME,1064743,130248030,14-Oct-16,"2,062.08",THE BRANDON TRUST,SP0005337
WANDSWORTH COUNCIL,ASC,SOCIAL SERVICES,Revenue,VOL ASS,SUPPORTED HOUSING PROGRAMME,1064744,130248030,14-Oct-16,"3,718.84",THE BRANDON TRUST,SP0005337
WANDSWORTH COUNCIL,ASC,SOCIAL SERVICES,Revenue,VOL ASS,SUPPORTED HOUSING PROGRAMME,1064745,130248030,14-Oct-16,"2,592.00",THE BRANDON TRUST,SP0005337
WANDSWORTH COUNCIL,ASC,SOCIAL SERVICES,Revenue,VOL ASS,SUPPORTED HOUSING PROGRAMME,1064746,130248030,14-Oct-16,"3,453.12",THE BRANDON TRUST,SP0005337
WANDSWORTH COUNCIL,ASC,SOCIAL SERVICES,Revenue,VOL ASS,SUPPORTED HOUSING PROGRAMME,1064747,130248030,14-Oct-16,"5,197.40",THE BRANDON TRUST,SP0005337
WANDSWORTH COUNCIL,ASC,SOCIAL SERVICES,Revenue,VOL ASS,SUPPORTED HOUSING PROGRAMME,1064748,130248030,14-Oct-16,"2,923.88",THE BRANDON TRUST,SP0005337
WANDSWORTH COUNCIL,ASC,SOCIAL SERVICES,Revenue,VOL ASS,SUPPORTED HOUSING PROGRAMME,1064749,130248030,14-Oct-16,"4,688.56",THE BRANDON TRUST,SP0005337
WANDSWORTH COUNCIL,ASC,SOCIAL SERVICES,Revenue,VOL ASS,SUPPORTED HOUSING PROGRAMME,1064750,130248030,14-Oct-16,"3,320.64",THE BRANDON TRUST,SP0005337
WANDSWORTH COUNCIL,ASC,SOCIAL SERVICES,Revenue,VOL ASS,SUPPORTED HOUSING PROGRAMME,1064751,130248030,14-Oct-16,"3,702.20",THE BRANDON TRUST,SP0005337
WANDSWORTH COUNCIL,ASC,SOCIAL SERVICES,Revenue,VOL ASS,SUPPORTED HOUSING PROGRAMME,1064752,130248030,14-Oct-16,"2,790.72",THE BRANDON TRUST,SP0005337
WANDSWORTH COUNCIL,ASC,SOCIAL SERVICES,Revenue,VOL ASS,SUPPORTED HOUSING PROGRAMME,1064753,130248030,14-Oct-16,"3,472.96",THE BRANDON TRUST,SP0005337
WANDSWORTH COUNCIL,ASC,SOCIAL SERVICES,Revenue,VOL ASS,SUPPORTED HOUSING PROGRAMME,1064757,130248030,14-Oct-16,932.96,THE BRANDON TRUST,SP0005337
WANDSWORTH COUNCIL,ASC,SOCIAL SERVICES,Revenue,VOL ASS,SUPPORTED HOUSING PROGRAMME,1064758,130248030,14-Oct-16,932.96,THE BRANDON TRUST,SP0005337
WANDSWORTH COUNCIL,ASC,SOCIAL SERVICES,Revenue,VOL ASS,SUPPORTED HOUSING PROGRAMME,1065039,130248030,14-Oct-16,775.11,THE BRANDON TRUST,SP0005337
WANDSWORTH COUNCIL,ASC,SOCIAL SERVICES,Revenue,VOL ASS,SUPPORTED HOUSING PROGRAMME,1065040,130248030,14-Oct-16,"2,980.80",THE BRANDON TRUST,SP0005337
WANDSWORTH COUNCIL,ASC,SOCIAL SERVICES,Revenue,VOL ASS,SUPPORTED HOUSING PROGRAMME,1064762,130248030,14-Oct-16,"6,120.00",RELIABLE PERSONNEL LTD,SP0005657
WANDSWORTH COUNCIL,ASC,SOCIAL SERVICES,Revenue,VOL ASS,SUPPORTED HOUSING PROGRAMME,1069301,130248030,18-Oct-16,636.61,MCCALLUM CARE LTD CAREMARK (WANDSWORTH),SP0006036
WANDSWORTH COUNCIL,ASC,SOCIAL SERVICES,Revenue,VOL ASS,SUPPORTED HOUSING PROGRAMME,1065773,130248030,17-Oct-16,"4,400.00",MORTON GARDENS,SP0008639
WANDSWORTH COUNCIL,ASC,SOCIAL SERVICES,Revenue,VOL ASS,SUPPORTED HOUSING PROGRAMME,1065743,130248030,17-Oct-16,"4,230.00",LIVE TOO LIMITED,SP0010112
WANDSWORTH COUNCIL,ASC,SOCIAL SERVICES,Revenue,VOL ASS,SUPPORTED HOUSING PROGRAMME,1065744,130248030,17-Oct-16,"1,200.00",LIVE TOO LIMITED,SP0010112
WANDSWORTH COUNCIL,ASC,SOCIAL SERVICES,Revenue,VOL ASS,SUPPORTED HOUSING PROGRAMME,1065745,130248030,17-Oct-16,"11,760.00",LIVE TOO LIMITED,SP0010112
WANDSWORTH COUNCIL,ASC,SOCIAL SERVICES,Revenue,VOL ASS,SUPPORTED HOUSING PROGRAMME,1065747,130248030,17-Oct-16,"1,260.00",LIVE TOO LIMITED,SP0010112
WANDSWORTH COUNCIL,ASC,SOCIAL SERVICES,Revenue,VOL ASS,SUPPORTED HOUSING PROGRAMME,1065748,130248030,17-Oct-16,930.00,LIVE TOO LIMITED,SP0010112
WANDSWORTH COUNCIL,ASC,SOCIAL SERVICES,Revenue,VOL ASS,SUPPORTED HOUSING PROGRAMME,1065749,130248030,17-Oct-16,"1,440.00",LIVE TOO LIMITED,SP0010112
WANDSWORTH COUNCIL,ASC,SOCIAL SERVICES,Revenue,VOL ASS,SUPPORTED HOUSING PROGRAMME,1065750,130248030,17-Oct-16,"1,500.00",LIVE TOO LIMITED,SP0010112
WANDSWORTH COUNCIL,ASC,SOCIAL SERVICES,Revenue,VOL ASS,SUPPORTED HOUSING PROGRAMME,1065752,130248030,17-Oct-16,720.00,LIVE TOO LIMITED,SP0010112
WANDSWORTH COUNCIL,ASC,SOCIAL SERVICES,Revenue,VOL ASS,SUPPORTED HOUSING PROGRAMME,1065753,130248030,17-Oct-16,"1,710.00",LIVE TOO LIMITED,SP0010112
WANDSWORTH COUNCIL,ASC,SOCIAL SERVICES,Revenue,VOL ASS,SUPPORTED HOUSING PROGRAMME,1065756,130248030,17-Oct-16,"1,350.00",LIVE TOO LIMITED,SP0010112
WANDSWORTH COUNCIL,ASC,SOCIAL SERVICES,Revenue,VOL ASS,SUPPORTED HOUSING PROGRAMME,1065757,130248030,17-Oct-16,"2,040.00",LIVE TOO LIMITED,SP0010112
WANDSWORTH COUNCIL,ASC,SOCIAL SERVICES,Revenue,VOL ASS,SUPPORTED HOUSING PROGRAMME,1065760,130248030,17-Oct-16,700.00,LIVE TOO LIMITED,SP0010112
WANDSWORTH COUNCIL,ASC,SOCIAL SERVICES,Revenue,VOL ASS,SUPPORTED HOUSING PROGRAMME,1065761,130248030,17-Oct-16,"1,568.00",LIVE TOO LIMITED,SP0010112
WANDSWORTH COUNCIL,ASC,SOCIAL SERVICES,Revenue,VOL ASS,SUPPORTED HOUSING PROGRAMME,1065769,130248030,17-Oct-16,784.00,LIVE TOO LIMITED,SP0010112
WANDSWORTH COUNCIL,ASC,SOCIAL SERVICES,Revenue,VOL ASS,SUPPORTED HOUSING PROGRAMME,1065770,130248030,17-Oct-16,663.80,LIVE TOO LIMITED,SP0010112
WANDSWORTH COUNCIL,ASC,SOCIAL SERVICES,Revenue,VOL ASS,SUPPORTED HOUSING PROGRAMME,1065772,130248030,17-Oct-16,"1,690.64",LIVE TOO LIMITED,SP0010112
WANDSWORTH COUNCIL,ASC,SOCIAL SERVICES,Revenue,VOL ASS,SUPPORTED HOUSING PROGRAMME,1062323,130248030,07-Oct-16,"7,876.84",CURANS CARE LTD,SP0010190
WANDSWORTH COUNCIL,ASC,SOCIAL SERVICES,Revenue,VOL ASS,SUPPORTED HOUSING PROGRAMME,1062324,130248030,07-Oct-16,"3,740.12",CURANS CARE LTD,SP0010190
WANDSWORTH COUNCIL,ASC,SOCIAL SERVICES,Revenue,VOL ASS,SUPPORTED HOUSING PROGRAMME,1062325,130248030,07-Oct-16,"7,882.08",CURANS CARE LTD,SP0010190
WANDSWORTH COUNCIL,ASC,SOCIAL SERVICES,Revenue,VOL ASS,SUPPORTED HOUSING PROGRAMME,1062326,130248030,07-Oct-16,"6,793.36",CURANS CARE LTD,SP0010190
WANDSWORTH COUNCIL,ASC,SOCIAL SERVICES,Revenue,VOL ASS,SUPPORTED HOUSING PROGRAMME,1063282,130248030,10-Oct-16,"7,263.85",STEP 4 YOU,SP0010196
WANDSWORTH COUNCIL,ASC,SOCIAL SERVICES,Revenue,VOL ASS,SUPPORTED HOUSING PROGRAMME,1063283,130248030,10-Oct-16,"9,012.00",STEP 4 YOU,SP0010196
WANDSWORTH COUNCIL,ASC,SOCIAL SERVICES,Revenue,VOL ASS,SUPPORTED HOUSING PROGRAMME,1063284,130248030,10-Oct-16,"5,793.42",STEP 4 YOU,SP0010196
WANDSWORTH COUNCIL,ASC,SOCIAL SERVICES,Revenue,VOL ASS,SUPPORTED HOUSING PROGRAMME,1069897,130248030,19-Oct-16,"11,960.00",STEP 4 YOU,SP0010196
WANDSWORTH COUNCIL,ASC,SOCIAL SERVICES,Revenue,VOL ASS,SUPPORTED HOUSING PROGRAMME,1072052,130248030,20-Oct-16,"4,400.00",STEP 4 YOU,SP0010196
WANDSWORTH COUNCIL,ASC,SOCIAL SERVICES,Revenue,VOL ASS,SUPPORTED HOUSING PROGRAMME,1073232,130248030,21-Oct-16,"4,000.00",STEP 4 YOU,SP0010196
WANDSWORTH COUNCIL,ASC,SOCIAL SERVICES,Revenue,VOL ASS,SUPPORTED HOUSING PROGRAMME,1073233,130248030,21-Oct-16,"4,000.00",STEP 4 YOU,SP0010196
WANDSWORTH COUNCIL,ASC,SOCIAL SERVICES,Revenue,VOL ASS,SUPPORTED HOUSING PROGRAMME,1076231,130248030,26-Oct-16,"3,940.00",STEP 4 YOU,SP0010196
WANDSWORTH COUNCIL,ASC,SOCIAL SERVICES,Revenue,VOL ASS,SUPPORTED HOUSING PROGRAMME,1074206,130248030,24-Oct-16,"11,030.00",A NEW LEAF,SP0010298
WANDSWORTH COUNCIL,ASC,SOCIAL SERVICES,Revenue,VOL ASS,SUPPORTED HOUSING PROGRAMME,1065056,130248030,14-Oct-16,"1,131.69",MS J DAVIES-BENNETTS T/A HANDSON HORSES,SP0010539
WANDSWORTH COUNCIL,ASC,SOCIAL SERVICES,Revenue,VOL ASS,SUPPORTED HOUSING PROGRAMME,1073911,130248030,24-Oct-16,"1,169.41",MS J DAVIES-BENNETTS T/A HANDSON HORSES,SP0010539
WANDSWORTH COUNCIL,ASC,SOCIAL SERVICES,Revenue,DIRECT,DIRECT PAYMENTS,1061795,130250380,07-Oct-16,"1,876.72",HESTIA HOUSING & SUPPORT,SP0000258
WANDSWORTH COUNCIL,ASC,SOCIAL SERVICES,Revenue,DIRECT,DIRECT PAYMENTS,1061797,130250380,07-Oct-16,732.84,HESTIA HOUSING & SUPPORT,SP0000258
WANDSWORTH COUNCIL,ASC,SOCIAL SERVICES,Revenue,DIRECT,DIRECT PAYMENTS,1061800,130250380,07-Oct-16,"2,248.36",HESTIA HOUSING & SUPPORT,SP0000258
WANDSWORTH COUNCIL,ASC,SOCIAL SERVICES,Revenue,DIRECT,DIRECT PAYMENTS,1061801,130250380,07-Oct-16,"1,020.80",HESTIA HOUSING & SUPPORT,SP0000258
WANDSWORTH COUNCIL,ASC,SOCIAL SERVICES,Revenue,DIRECT,DIRECT PAYMENTS,1062076,130250380,07-Oct-16,838.12,VIBRANCE,SP0005489
WANDSWORTH COUNCIL,ASC,SOCIAL SERVICES,Revenue,DIRECT,DIRECT PAYMENTS,1062082,130250380,07-Oct-16,760.24,VIBRANCE,SP0005489
WANDSWORTH COUNCIL,ASC,SOCIAL SERVICES,Revenue,DIRECT,DIRECT PAYMENTS,1062085,130250380,07-Oct-16,"1,065.52",VIBRANCE,SP0005489
WANDSWORTH COUNCIL,ASC,SOCIAL SERVICES,Revenue,DIRECT,DIRECT PAYMENTS,1062092,130250380,07-Oct-16,"2,703.44",VIBRANCE,SP0005489
WANDSWORTH COUNCIL,ASC,SOCIAL SERVICES,Revenue,DIRECT,DIRECT PAYMENTS,1062095,130250380,07-Oct-16,769.76,VIBRANCE,SP0005489
WANDSWORTH COUNCIL,ASC,SOCIAL SERVICES,Revenue,DIRECT,DIRECT PAYMENTS,1062096,130250380,07-Oct-16,783.68,VIBRANCE,SP0005489
WANDSWORTH COUNCIL,ASC,SOCIAL SERVICES,Revenue,DIRECT,DIRECT PAYMENTS,1062097,130250380,07-Oct-16,606.56,VIBRANCE,SP0005489
WANDSWORTH COUNCIL,ASC,SOCIAL SERVICES,Revenue,DIRECT,DIRECT PAYMENTS,1062102,130250380,07-Oct-16,608.72,VIBRANCE,SP0005489
WANDSWORTH COUNCIL,ASC,SOCIAL SERVICES,Revenue,DIRECT,DIRECT PAYMENTS,1062106,130250380,07-Oct-16,"3,704.84",VIBRANCE,SP0005489
WANDSWORTH COUNCIL,ASC,SOCIAL SERVICES,Revenue,DIRECT,DIRECT PAYMENTS,1062108,130250380,07-Oct-16,714.00,VIBRANCE,SP0005489
WANDSWORTH COUNCIL,ASC,SOCIAL SERVICES,Revenue,DIRECT,DIRECT PAYMENTS,1062111,130250380,07-Oct-16,719.16,VIBRANCE,SP0005489
WANDSWORTH COUNCIL,ASC,SOCIAL SERVICES,Revenue,DIRECT,DIRECT PAYMENTS,1062117,130250380,07-Oct-16,"1,856.16",VIBRANCE,SP0005489
WANDSWORTH COUNCIL,ASC,SOCIAL SERVICES,Revenue,DIRECT,DIRECT PAYMENTS,1062118,130250380,07-Oct-16,930.56,VIBRANCE,SP0005489
WANDSWORTH COUNCIL,ASC,SOCIAL SERVICES,Revenue,DIRECT,DIRECT PAYMENTS,1062125,130250380,07-Oct-16,720.96,VIBRANCE,SP0005489
WANDSWORTH COUNCIL,ASC,SOCIAL SERVICES,Revenue,DIRECT,DIRECT PAYMENTS,1062162,130250380,07-Oct-16,895.36,VIBRANCE,SP0005489
WANDSWORTH COUNCIL,ASC,SOCIAL SERVICES,Revenue,DIRECT,DIRECT PAYMENTS,1062175,130250380,07-Oct-16,720.96,VIBRANCE,SP0005489
WANDSWORTH COUNCIL,ASC,SOCIAL SERVICES,Revenue,DIRECT,DIRECT PAYMENTS,1062176,130250380,07-Oct-16,855.52,VIBRANCE,SP0005489
WANDSWORTH COUNCIL,ASC,SOCIAL SERVICES,Revenue,DIRECT,DIRECT PAYMENTS,1062183,130250380,07-Oct-16,595.52,VIBRANCE,SP0005489
WANDSWORTH COUNCIL,ASC,SOCIAL SERVICES,Revenue,DIRECT,DIRECT PAYMENTS,1062200,130250380,07-Oct-16,"3,773.74",VIBRANCE,SP0005489
WANDSWORTH COUNCIL,ASC,SOCIAL SERVICES,Revenue,DIRECT,DIRECT PAYMENTS,1061760,130250380,07-Oct-16,"2,218.20",EPAYROLLUK LTD,SP0009092
WANDSWORTH COUNCIL,ASC,SOCIAL SERVICES,Revenue,CUSTOMER & CLIENT RECPTS - EXT,CL CONT EXT RESIDEN S28A 100%,1064820,130280680,14-Oct-16,(505.20),ELEANOR NURSING & SOCIAL CARE,SP0000110
WANDSWORTH COUNCIL,ASC,SOCIAL SERVICES,Revenue,CUSTOMER & CLIENT RECPTS - EXT,CL CONT EXT RESIDEN S28A 100%,1079448,130280680,31-Oct-16,(546.04),VOYAGE CARE LTD,SP0000366
WANDSWORTH COUNCIL,ASC,SOCIAL SERVICES,Revenue,CUSTOMER & CLIENT RECPTS - EXT,CL CONT EXT RESIDEN S28A 100%,1079454,130280680,31-Oct-16,(443.52),VOYAGE CARE LTD,SP0000366
WANDSWORTH COUNCIL,ASC,SOCIAL SERVICES,Revenue,CUSTOMER & CLIENT RECPTS - EXT,CL CONT EXTERNAL RESIDENT S28A,1071989,130280710,20-Oct-16,(578.81),ST MARYS RESIDENTIAL HOME,SP0000215
WANDSWORTH COUNCIL,ASC,SOCIAL SERVICES,Revenue,CUSTOMER & CLIENT RECPTS - EXT,CL CONT EXTERNAL RESIDENT S28A,1073895,130280710,24-Oct-16,(578.81),THE COMMUNITY CARE COMPANY UK LTD,SP0000576
WANDSWORTH COUNCIL,ASC,SOCIAL SERVICES,Revenue,CUSTOMER & CLIENT RECPTS - EXT,CL CONT EXTERNAL RESIDENT S28A,1057838,130280710,03-Oct-16,(510.64),METROPOLITAN HOUSING TRUST,SP0000626
WANDSWORTH COUNCIL,ASC,SOCIAL SERVICES,Revenue,CUSTOMER & CLIENT RECPTS - EXT,CL CONT EXTERNAL RESIDENT S28A,1057846,130280710,03-Oct-16,(321.80),METROPOLITAN HOUSING TRUST,SP0000626
WANDSWORTH COUNCIL,ASC,SOCIAL SERVICES,Revenue,CUSTOMER & CLIENT RECPTS - EXT,CL CONT EXTERNAL RESIDENT S28A,1064794,130280710,14-Oct-16,(510.64),METROPOLITAN HOUSING TRUST,SP0000626
WANDSWORTH COUNCIL,ASC,SOCIAL SERVICES,Revenue,CUSTOMER & CLIENT RECPTS - EXT,CL CONT EXTERNAL RESIDENT S28A,1064803,130280710,14-Oct-16,(321.80),METROPOLITAN HOUSING TRUST,SP0000626
WANDSWORTH COUNCIL,ASC,SOCIAL SERVICES,Revenue,CUSTOMER & CLIENT RECPTS - EXT,CL CONT EXTERNAL RESIDENT S28A,1065455,130280710,17-Oct-16,(522.80),ASHTON CARE,SP0000695
WANDSWORTH COUNCIL,ASC,SOCIAL SERVICES,Revenue,CUSTOMER & CLIENT RECPTS - EXT,CL CONT EXTERNAL RESIDENTIAL,1079432,130280720,31-Oct-16,(400.60),CMG HOMES LTD,SP0000075
WANDSWORTH COUNCIL,ASC,SOCIAL SERVICES,Revenue,CUSTOMER & CLIENT RECPTS - EXT,CL CONT EXTERNAL RESIDENTIAL,1079434,130280720,31-Oct-16,(343.80),CMG HOMES LTD,SP0000075
WANDSWORTH COUNCIL,ASC,SOCIAL SERVICES,Revenue,CUSTOMER & CLIENT RECPTS - EXT,CL CONT EXTERNAL RESIDENTIAL,1079436,130280720,31-Oct-16,(400.60),CMG HOMES LTD,SP0000075
WANDSWORTH COUNCIL,ASC,SOCIAL SERVICES,Revenue,CUSTOMER & CLIENT RECPTS - EXT,CL CONT EXTERNAL RESIDENTIAL,1079437,130280720,31-Oct-16,(400.60),CMG HOMES LTD,SP0000075
WANDSWORTH COUNCIL,ASC,SOCIAL SERVICES,Revenue,CUSTOMER & CLIENT RECPTS - EXT,CL CONT EXTERNAL RESIDENTIAL,1079438,130280720,31-Oct-16,(400.60),CMG HOMES LTD,SP0000075
WANDSWORTH COUNCIL,ASC,SOCIAL SERVICES,Revenue,CUSTOMER & CLIENT RECPTS - EXT,CL CONT EXTERNAL RESIDENTIAL,1079439,130280720,31-Oct-16,(321.80),CMG HOMES LTD,SP0000075
WANDSWORTH COUNCIL,ASC,SOCIAL SERVICES,Revenue,CUSTOMER & CLIENT RECPTS - EXT,CL CONT EXTERNAL RESIDENTIAL,1079440,130280720,31-Oct-16,(522.80),CMG HOMES LTD,SP0000075
WANDSWORTH COUNCIL,ASC,SOCIAL SERVICES,Revenue,CUSTOMER & CLIENT RECPTS - EXT,CL CONT EXTERNAL RESIDENTIAL,1079441,130280720,31-Oct-16,(359.80),CMG HOMES LTD,SP0000075
WANDSWORTH COUNCIL,ASC,SOCIAL SERVICES,Revenue,CUSTOMER & CLIENT RECPTS - EXT,CL CONT EXTERNAL RESIDENTIAL,1072025,130280720,20-Oct-16,(385.95),NATIONAL SOCIETY FOR EPILEPSY,SP0000120
WANDSWORTH COUNCIL,ASC,SOCIAL SERVICES,Revenue,CUSTOMER & CLIENT RECPTS - EXT,CL CONT EXTERNAL RESIDENTIAL,1062213,130280720,07-Oct-16,(337.80),SANCTUARY CARE LTD,SP0000121
WANDSWORTH COUNCIL,ASC,SOCIAL SERVICES,Revenue,CUSTOMER & CLIENT RECPTS - EXT,CL CONT EXTERNAL RESIDENTIAL,1079538,130280720,31-Oct-16,(213.80),SANCTUARY CARE LTD,SP0000121
WANDSWORTH COUNCIL,ASC,SOCIAL SERVICES,Revenue,CUSTOMER & CLIENT RECPTS - EXT,CL CONT EXTERNAL RESIDENTIAL,1075845,130280720,26-Oct-16,(356.28),CENTRUST CARE HOMES LTD,SP0000141
WANDSWORTH COUNCIL,ASC,SOCIAL SERVICES,Revenue,CUSTOMER & CLIENT RECPTS - EXT,CL CONT EXTERNAL RESIDENTIAL,1072022,130280720,20-Oct-16,(373.77),FRANCES TAYLOR FOUNDATION,SP0000142
WANDSWORTH COUNCIL,ASC,SOCIAL SERVICES,Revenue,CUSTOMER & CLIENT RECPTS - EXT,CL CONT EXTERNAL RESIDENTIAL,1072023,130280720,20-Oct-16,(356.28),FRANCES TAYLOR FOUNDATION,SP0000142
WANDSWORTH COUNCIL,ASC,SOCIAL SERVICES,Revenue,CUSTOMER & CLIENT RECPTS - EXT,CL CONT EXTERNAL RESIDENTIAL,1072024,130280720,20-Oct-16,(443.52),FRANCES TAYLOR FOUNDATION,SP0000142
WANDSWORTH COUNCIL,ASC,SOCIAL SERVICES,Revenue,CUSTOMER & CLIENT RECPTS - EXT,CL CONT EXTERNAL RESIDENTIAL,1065434,130280720,17-Oct-16,(321.80),RESIDENTIAL CARE SERVICES T/A FRANKLYN L,SP0000147
WANDSWORTH COUNCIL,ASC,SOCIAL SERVICES,Revenue,CUSTOMER & CLIENT RECPTS - EXT,CL CONT EXTERNAL RESIDENTIAL,1065439,130280720,17-Oct-16,(321.80),RESIDENTIAL CARE SERVICES T/A FRANKLYN L,SP0000147
WANDSWORTH COUNCIL,ASC,SOCIAL SERVICES,Revenue,CUSTOMER & CLIENT RECPTS - EXT,CL CONT EXTERNAL RESIDENTIAL,1063196,130280720,10-Oct-16,(337.80),ORCHARD VALE TRUST,SP0000214
WANDSWORTH COUNCIL,ASC,SOCIAL SERVICES,Revenue,CUSTOMER & CLIENT RECPTS - EXT,CL CONT EXTERNAL RESIDENTIAL,1063192,130280720,10-Oct-16,(713.72),ST MARYS RESIDENTIAL HOME,SP0000215
WANDSWORTH COUNCIL,ASC,SOCIAL SERVICES,Revenue,CUSTOMER & CLIENT RECPTS - EXT,CL CONT EXTERNAL RESIDENTIAL,1063193,130280720,10-Oct-16,(713.72),ST MARYS RESIDENTIAL HOME,SP0000215
WANDSWORTH COUNCIL,ASC,SOCIAL SERVICES,Revenue,CUSTOMER & CLIENT RECPTS - EXT,CL CONT EXTERNAL RESIDENTIAL,1063194,130280720,10-Oct-16,"(1,348.68)",ST MARYS RESIDENTIAL HOME,SP0000215
WANDSWORTH COUNCIL,ASC,SOCIAL SERVICES,Revenue,CUSTOMER & CLIENT RECPTS - EXT,CL CONT EXTERNAL RESIDENTIAL,1063195,130280720,10-Oct-16,(321.80),ST MARYS RESIDENTIAL HOME,SP0000215
WANDSWORTH COUNCIL,ASC,SOCIAL SERVICES,Revenue,CUSTOMER & CLIENT RECPTS - EXT,CL CONT EXTERNAL RESIDENTIAL,1067179,130280720,17-Oct-16,(254.90),ST MARYS RESIDENTIAL HOME,SP0000215
WANDSWORTH COUNCIL,ASC,SOCIAL SERVICES,Revenue,CUSTOMER & CLIENT RECPTS - EXT,CL CONT EXTERNAL RESIDENTIAL,1071978,130280720,20-Oct-16,"(1,107.84)",ST MARYS RESIDENTIAL HOME,SP0000215
WANDSWORTH COUNCIL,ASC,SOCIAL SERVICES,Revenue,CUSTOMER & CLIENT RECPTS - EXT,CL CONT EXTERNAL RESIDENTIAL,1071979,130280720,20-Oct-16,(275.32),ST MARYS RESIDENTIAL HOME,SP0000215
WANDSWORTH COUNCIL,ASC,SOCIAL SERVICES,Revenue,CUSTOMER & CLIENT RECPTS - EXT,CL CONT EXTERNAL RESIDENTIAL,1071980,130280720,20-Oct-16,(356.28),ST MARYS RESIDENTIAL HOME,SP0000215
WANDSWORTH COUNCIL,ASC,SOCIAL SERVICES,Revenue,CUSTOMER & CLIENT RECPTS - EXT,CL CONT EXTERNAL RESIDENTIAL,1071981,130280720,20-Oct-16,(578.81),ST MARYS RESIDENTIAL HOME,SP0000215
WANDSWORTH COUNCIL,ASC,SOCIAL SERVICES,Revenue,CUSTOMER & CLIENT RECPTS - EXT,CL CONT EXTERNAL RESIDENTIAL,1071982,130280720,20-Oct-16,(373.77),ST MARYS RESIDENTIAL HOME,SP0000215
WANDSWORTH COUNCIL,ASC,SOCIAL SERVICES,Revenue,CUSTOMER & CLIENT RECPTS - EXT,CL CONT EXTERNAL RESIDENTIAL,1071983,130280720,20-Oct-16,(443.52),ST MARYS RESIDENTIAL HOME,SP0000215
WANDSWORTH COUNCIL,ASC,SOCIAL SERVICES,Revenue,CUSTOMER & CLIENT RECPTS - EXT,CL CONT EXTERNAL RESIDENTIAL,1071984,130280720,20-Oct-16,(443.52),ST MARYS RESIDENTIAL HOME,SP0000215
WANDSWORTH COUNCIL,ASC,SOCIAL SERVICES,Revenue,CUSTOMER & CLIENT RECPTS - EXT,CL CONT EXTERNAL RESIDENTIAL,1071987,130280720,20-Oct-16,(356.86),ST MARYS RESIDENTIAL HOME,SP0000215
WANDSWORTH COUNCIL,ASC,SOCIAL SERVICES,Revenue,CUSTOMER & CLIENT RECPTS - EXT,CL CONT EXTERNAL RESIDENTIAL,1071990,130280720,20-Oct-16,(578.81),ST MARYS RESIDENTIAL HOME,SP0000215
WANDSWORTH COUNCIL,ASC,SOCIAL SERVICES,Revenue,CUSTOMER & CLIENT RECPTS - EXT,CL CONT EXTERNAL RESIDENTIAL,1072732,130280720,20-Oct-16,(351.23),ST MARYS RESIDENTIAL HOME,SP0000215
WANDSWORTH COUNCIL,ASC,SOCIAL SERVICES,Revenue,CUSTOMER & CLIENT RECPTS - EXT,CL CONT EXTERNAL RESIDENTIAL,1072732,130280720,20-Oct-16,73.75,ST MARYS RESIDENTIAL HOME,SP0000215
WANDSWORTH COUNCIL,ASC,SOCIAL SERVICES,Revenue,CUSTOMER & CLIENT RECPTS - EXT,CL CONT EXTERNAL RESIDENTIAL,1072732,130280720,20-Oct-16,(901.44),ST MARYS RESIDENTIAL HOME,SP0000215
WANDSWORTH COUNCIL,ASC,SOCIAL SERVICES,Revenue,CUSTOMER & CLIENT RECPTS - EXT,CL CONT EXTERNAL RESIDENTIAL,1059951,130280720,06-Oct-16,(321.80),NAS SERVICES LIMITED,SP0000217
WANDSWORTH COUNCIL,ASC,SOCIAL SERVICES,Revenue,CUSTOMER & CLIENT RECPTS - EXT,CL CONT EXTERNAL RESIDENTIAL,1067174,130280720,17-Oct-16,(321.80),SPRING LAKE,SP0000223
WANDSWORTH COUNCIL,ASC,SOCIAL SERVICES,Revenue,CUSTOMER & CLIENT RECPTS - EXT,CL CONT EXTERNAL RESIDENTIAL,1067175,130280720,17-Oct-16,(366.40),SPRING LAKE,SP0000223
WANDSWORTH COUNCIL,ASC,SOCIAL SERVICES,Revenue,CUSTOMER & CLIENT RECPTS - EXT,CL CONT EXTERNAL RESIDENTIAL,1067176,130280720,17-Oct-16,(321.80),SPRING LAKE,SP0000223
WANDSWORTH COUNCIL,ASC,SOCIAL SERVICES,Revenue,CUSTOMER & CLIENT RECPTS - EXT,CL CONT EXTERNAL RESIDENTIAL,1067177,130280720,17-Oct-16,(366.40),SPRING LAKE,SP0000223
WANDSWORTH COUNCIL,ASC,SOCIAL SERVICES,Revenue,CUSTOMER & CLIENT RECPTS - EXT,CL CONT EXTERNAL RESIDENTIAL,1064487,130280720,14-Oct-16,(638.48),CAMERON LODGE LIMITED,SP0000271
WANDSWORTH COUNCIL,ASC,SOCIAL SERVICES,Revenue,CUSTOMER & CLIENT RECPTS - EXT,CL CONT EXTERNAL RESIDENTIAL,1075853,130280720,26-Oct-16,(620.80),CAMERON LODGE LIMITED,SP0000271
WANDSWORTH COUNCIL,ASC,SOCIAL SERVICES,Revenue,CUSTOMER & CLIENT RECPTS - EXT,CL CONT EXTERNAL RESIDENTIAL,1073794,130280720,24-Oct-16,(405.66),BROOKDALE CARE,SP0000282
WANDSWORTH COUNCIL,ASC,SOCIAL SERVICES,Revenue,CUSTOMER & CLIENT RECPTS - EXT,CL CONT EXTERNAL RESIDENTIAL,1073396,130280720,21-Oct-16,(373.99),RESIDENTIAL COMMUNITY CARE,SP0000315
WANDSWORTH COUNCIL,ASC,SOCIAL SERVICES,Revenue,CUSTOMER & CLIENT RECPTS - EXT,CL CONT EXTERNAL RESIDENTIAL,1079686,130280720,31-Oct-16,(321.80),DOLPHIN HOMES LTD,SP0000331
WANDSWORTH COUNCIL,ASC,SOCIAL SERVICES,Revenue,CUSTOMER & CLIENT RECPTS - EXT,CL CONT EXTERNAL RESIDENTIAL,1079687,130280720,31-Oct-16,(321.80),DOLPHIN HOMES LTD,SP0000331
WANDSWORTH COUNCIL,ASC,SOCIAL SERVICES,Revenue,CUSTOMER & CLIENT RECPTS - EXT,CL CONT EXTERNAL RESIDENTIAL,1073906,130280720,24-Oct-16,(321.80),NORWOOD SCHOOLS LTD,SP0000332
WANDSWORTH COUNCIL,ASC,SOCIAL SERVICES,Revenue,CUSTOMER & CLIENT RECPTS - EXT,CL CONT EXTERNAL RESIDENTIAL,1073926,130280720,24-Oct-16,(400.60),NORWOOD SCHOOLS LTD,SP0000332
WANDSWORTH COUNCIL,ASC,SOCIAL SERVICES,Revenue,CUSTOMER & CLIENT RECPTS - EXT,CL CONT EXTERNAL RESIDENTIAL,1073927,130280720,24-Oct-16,(321.80),NORWOOD SCHOOLS LTD,SP0000332
WANDSWORTH COUNCIL,ASC,SOCIAL SERVICES,Revenue,CUSTOMER & CLIENT RECPTS - EXT,CL CONT EXTERNAL RESIDENTIAL,1073928,130280720,24-Oct-16,(400.60),NORWOOD SCHOOLS LTD,SP0000332
WANDSWORTH COUNCIL,ASC,SOCIAL SERVICES,Revenue,CUSTOMER & CLIENT RECPTS - EXT,CL CONT EXTERNAL RESIDENTIAL,1073902,130280720,24-Oct-16,(560.15),HEYWOODS GRANGE LTD,SP0000361
WANDSWORTH COUNCIL,ASC,SOCIAL SERVICES,Revenue,CUSTOMER & CLIENT RECPTS - EXT,CL CONT EXTERNAL RESIDENTIAL,1073904,130280720,24-Oct-16,(578.81),HEYWOODS GRANGE LTD,SP0000361
WANDSWORTH COUNCIL,ASC,SOCIAL SERVICES,Revenue,CUSTOMER & CLIENT RECPTS - EXT,CL CONT EXTERNAL RESIDENTIAL,1079451,130280720,31-Oct-16,(356.28),VOYAGE CARE LTD,SP0000366
WANDSWORTH COUNCIL,ASC,SOCIAL SERVICES,Revenue,CUSTOMER & CLIENT RECPTS - EXT,CL CONT EXTERNAL RESIDENTIAL,1079452,130280720,31-Oct-16,(579.66),VOYAGE CARE LTD,SP0000366
WANDSWORTH COUNCIL,ASC,SOCIAL SERVICES,Revenue,CUSTOMER & CLIENT RECPTS - EXT,CL CONT EXTERNAL RESIDENTIAL,1079453,130280720,31-Oct-16,163.75,VOYAGE CARE LTD,SP0000366
WANDSWORTH COUNCIL,ASC,SOCIAL SERVICES,Revenue,CUSTOMER & CLIENT RECPTS - EXT,CL CONT EXTERNAL RESIDENTIAL,1079455,130280720,31-Oct-16,(323.70),VOYAGE CARE LTD,SP0000366
WANDSWORTH COUNCIL,ASC,SOCIAL SERVICES,Revenue,CUSTOMER & CLIENT RECPTS - EXT,CL CONT EXTERNAL RESIDENTIAL,1079456,130280720,31-Oct-16,(233.30),VOYAGE CARE LTD,SP0000366
WANDSWORTH COUNCIL,ASC,SOCIAL SERVICES,Revenue,CUSTOMER & CLIENT RECPTS - EXT,CL CONT EXTERNAL RESIDENTIAL,1073834,130280720,24-Oct-16,(811.96),ESSEX CARE CONSORTIUM,SP0000387
WANDSWORTH COUNCIL,ASC,SOCIAL SERVICES,Revenue,CUSTOMER & CLIENT RECPTS - EXT,CL CONT EXTERNAL RESIDENTIAL,1073929,130280720,24-Oct-16,(505.20),KENILWORTH RESIDENTIAL HOME,SP0000432
WANDSWORTH COUNCIL,ASC,SOCIAL SERVICES,Revenue,CUSTOMER & CLIENT RECPTS - EXT,CL CONT EXTERNAL RESIDENTIAL,1073930,130280720,24-Oct-16,(321.80),KENILWORTH RESIDENTIAL HOME,SP0000432
WANDSWORTH COUNCIL,ASC,SOCIAL SERVICES,Revenue,CUSTOMER & CLIENT RECPTS - EXT,CL CONT EXTERNAL RESIDENTIAL,1077403,130280720,27-Oct-16,(366.40),THE WELL HOUSE,SP0000448
WANDSWORTH COUNCIL,ASC,SOCIAL SERVICES,Revenue,CUSTOMER & CLIENT RECPTS - EXT,CL CONT EXTERNAL RESIDENTIAL,1077404,130280720,27-Oct-16,(321.80),THE WELL HOUSE,SP0000448
WANDSWORTH COUNCIL,ASC,SOCIAL SERVICES,Revenue,CUSTOMER & CLIENT RECPTS - EXT,CL CONT EXTERNAL RESIDENTIAL,1061413,130280720,07-Oct-16,(522.80),MACINTYRE CARE,SP0000473
WANDSWORTH COUNCIL,ASC,SOCIAL SERVICES,Revenue,CUSTOMER & CLIENT RECPTS - EXT,CL CONT EXTERNAL RESIDENTIAL,1064495,130280720,14-Oct-16,(522.80),MACINTYRE CARE,SP0000473
WANDSWORTH COUNCIL,ASC,SOCIAL SERVICES,Revenue,CUSTOMER & CLIENT RECPTS - EXT,CL CONT EXTERNAL RESIDENTIAL,1064496,130280720,14-Oct-16,(325.23),MACINTYRE CARE,SP0000473
WANDSWORTH COUNCIL,ASC,SOCIAL SERVICES,Revenue,CUSTOMER & CLIENT RECPTS - EXT,CL CONT EXTERNAL RESIDENTIAL,1067746,130280720,17-Oct-16,(321.80),MACINTYRE CARE,SP0000473
WANDSWORTH COUNCIL,ASC,SOCIAL SERVICES,Revenue,CUSTOMER & CLIENT RECPTS - EXT,CL CONT EXTERNAL RESIDENTIAL,1067747,130280720,17-Oct-16,(505.20),MACINTYRE CARE,SP0000473
WANDSWORTH COUNCIL,ASC,SOCIAL SERVICES,Revenue,CUSTOMER & CLIENT RECPTS - EXT,CL CONT EXTERNAL RESIDENTIAL,1067749,130280720,17-Oct-16,(321.80),MACINTYRE CARE,SP0000473
WANDSWORTH COUNCIL,ASC,SOCIAL SERVICES,Revenue,CUSTOMER & CLIENT RECPTS - EXT,CL CONT EXTERNAL RESIDENTIAL,1067750,130280720,17-Oct-16,(321.80),MACINTYRE CARE,SP0000473
WANDSWORTH COUNCIL,ASC,SOCIAL SERVICES,Revenue,CUSTOMER & CLIENT RECPTS - EXT,CL CONT EXTERNAL RESIDENTIAL,1067751,130280720,17-Oct-16,(366.40),MACINTYRE CARE,SP0000473
WANDSWORTH COUNCIL,ASC,SOCIAL SERVICES,Revenue,CUSTOMER & CLIENT RECPTS - EXT,CL CONT EXTERNAL RESIDENTIAL,1067752,130280720,17-Oct-16,(400.60),MACINTYRE CARE,SP0000473
WANDSWORTH COUNCIL,ASC,SOCIAL SERVICES,Revenue,CUSTOMER & CLIENT RECPTS - EXT,CL CONT EXTERNAL RESIDENTIAL,1067753,130280720,17-Oct-16,(400.60),MACINTYRE CARE,SP0000473
WANDSWORTH COUNCIL,ASC,SOCIAL SERVICES,Revenue,CUSTOMER & CLIENT RECPTS - EXT,CL CONT EXTERNAL RESIDENTIAL,1067755,130280720,17-Oct-16,(319.20),MACINTYRE CARE,SP0000473
WANDSWORTH COUNCIL,ASC,SOCIAL SERVICES,Revenue,CUSTOMER & CLIENT RECPTS - EXT,CL CONT EXTERNAL RESIDENTIAL,1067756,130280720,17-Oct-16,(400.60),MACINTYRE CARE,SP0000473
WANDSWORTH COUNCIL,ASC,SOCIAL SERVICES,Revenue,CUSTOMER & CLIENT RECPTS - EXT,CL CONT EXTERNAL RESIDENTIAL,1067757,130280720,17-Oct-16,(321.80),MACINTYRE CARE,SP0000473
WANDSWORTH COUNCIL,ASC,SOCIAL SERVICES,Revenue,CUSTOMER & CLIENT RECPTS - EXT,CL CONT EXTERNAL RESIDENTIAL,1067758,130280720,17-Oct-16,(522.80),MACINTYRE CARE,SP0000473
WANDSWORTH COUNCIL,ASC,SOCIAL SERVICES,Revenue,CUSTOMER & CLIENT RECPTS - EXT,CL CONT EXTERNAL RESIDENTIAL,1067759,130280720,17-Oct-16,(321.80),MACINTYRE CARE,SP0000473
WANDSWORTH COUNCIL,ASC,SOCIAL SERVICES,Revenue,CUSTOMER & CLIENT RECPTS - EXT,CL CONT EXTERNAL RESIDENTIAL,1067760,130280720,17-Oct-16,(522.80),MACINTYRE CARE,SP0000473
WANDSWORTH COUNCIL,ASC,SOCIAL SERVICES,Revenue,CUSTOMER & CLIENT RECPTS - EXT,CL CONT EXTERNAL RESIDENTIAL,1067761,130280720,17-Oct-16,(522.80),MACINTYRE CARE,SP0000473
WANDSWORTH COUNCIL,ASC,SOCIAL SERVICES,Revenue,CUSTOMER & CLIENT RECPTS - EXT,CL CONT EXTERNAL RESIDENTIAL,1067762,130280720,17-Oct-16,(522.80),MACINTYRE CARE,SP0000473
WANDSWORTH COUNCIL,ASC,SOCIAL SERVICES,Revenue,CUSTOMER & CLIENT RECPTS - EXT,CL CONT EXTERNAL RESIDENTIAL,1067764,130280720,17-Oct-16,(504.13),MACINTYRE CARE,SP0000473
WANDSWORTH COUNCIL,ASC,SOCIAL SERVICES,Revenue,CUSTOMER & CLIENT RECPTS - EXT,CL CONT EXTERNAL RESIDENTIAL,1067765,130280720,17-Oct-16,(321.80),MACINTYRE CARE,SP0000473
WANDSWORTH COUNCIL,ASC,SOCIAL SERVICES,Revenue,CUSTOMER & CLIENT RECPTS - EXT,CL CONT EXTERNAL RESIDENTIAL,1067766,130280720,17-Oct-16,(508.92),MACINTYRE CARE,SP0000473
WANDSWORTH COUNCIL,ASC,SOCIAL SERVICES,Revenue,CUSTOMER & CLIENT RECPTS - EXT,CL CONT EXTERNAL RESIDENTIAL,1067767,130280720,17-Oct-16,(321.80),MACINTYRE CARE,SP0000473
WANDSWORTH COUNCIL,ASC,SOCIAL SERVICES,Revenue,CUSTOMER & CLIENT RECPTS - EXT,CL CONT EXTERNAL RESIDENTIAL,1077378,130280720,27-Oct-16,(321.80),MACINTYRE CARE,SP0000473
WANDSWORTH COUNCIL,ASC,SOCIAL SERVICES,Revenue,CUSTOMER & CLIENT RECPTS - EXT,CL CONT EXTERNAL RESIDENTIAL,1077379,130280720,27-Oct-16,(505.20),MACINTYRE CARE,SP0000473
WANDSWORTH COUNCIL,ASC,SOCIAL SERVICES,Revenue,CUSTOMER & CLIENT RECPTS - EXT,CL CONT EXTERNAL RESIDENTIAL,1077381,130280720,27-Oct-16,(321.80),MACINTYRE CARE,SP0000473
WANDSWORTH COUNCIL,ASC,SOCIAL SERVICES,Revenue,CUSTOMER & CLIENT RECPTS - EXT,CL CONT EXTERNAL RESIDENTIAL,1077382,130280720,27-Oct-16,(321.80),MACINTYRE CARE,SP0000473
WANDSWORTH COUNCIL,ASC,SOCIAL SERVICES,Revenue,CUSTOMER & CLIENT RECPTS - EXT,CL CONT EXTERNAL RESIDENTIAL,1077383,130280720,27-Oct-16,(366.40),MACINTYRE CARE,SP0000473
WANDSWORTH COUNCIL,ASC,SOCIAL SERVICES,Revenue,CUSTOMER & CLIENT RECPTS - EXT,CL CONT EXTERNAL RESIDENTIAL,1077384,130280720,27-Oct-16,(400.60),MACINTYRE CARE,SP0000473
WANDSWORTH COUNCIL,ASC,SOCIAL SERVICES,Revenue,CUSTOMER & CLIENT RECPTS - EXT,CL CONT EXTERNAL RESIDENTIAL,1077385,130280720,27-Oct-16,(400.60),MACINTYRE CARE,SP0000473
WANDSWORTH COUNCIL,ASC,SOCIAL SERVICES,Revenue,CUSTOMER & CLIENT RECPTS - EXT,CL CONT EXTERNAL RESIDENTIAL,1077387,130280720,27-Oct-16,(319.20),MACINTYRE CARE,SP0000473
WANDSWORTH COUNCIL,ASC,SOCIAL SERVICES,Revenue,CUSTOMER & CLIENT RECPTS - EXT,CL CONT EXTERNAL RESIDENTIAL,1077388,130280720,27-Oct-16,(400.60),MACINTYRE CARE,SP0000473
WANDSWORTH COUNCIL,ASC,SOCIAL SERVICES,Revenue,CUSTOMER & CLIENT RECPTS - EXT,CL CONT EXTERNAL RESIDENTIAL,1077389,130280720,27-Oct-16,(321.80),MACINTYRE CARE,SP0000473
WANDSWORTH COUNCIL,ASC,SOCIAL SERVICES,Revenue,CUSTOMER & CLIENT RECPTS - EXT,CL CONT EXTERNAL RESIDENTIAL,1077390,130280720,27-Oct-16,(522.80),MACINTYRE CARE,SP0000473
WANDSWORTH COUNCIL,ASC,SOCIAL SERVICES,Revenue,CUSTOMER & CLIENT RECPTS - EXT,CL CONT EXTERNAL RESIDENTIAL,1077391,130280720,27-Oct-16,(321.80),MACINTYRE CARE,SP0000473
WANDSWORTH COUNCIL,ASC,SOCIAL SERVICES,Revenue,CUSTOMER & CLIENT RECPTS - EXT,CL CONT EXTERNAL RESIDENTIAL,1077392,130280720,27-Oct-16,(522.80),MACINTYRE CARE,SP0000473
WANDSWORTH COUNCIL,ASC,SOCIAL SERVICES,Revenue,CUSTOMER & CLIENT RECPTS - EXT,CL CONT EXTERNAL RESIDENTIAL,1077393,130280720,27-Oct-16,(522.80),MACINTYRE CARE,SP0000473
WANDSWORTH COUNCIL,ASC,SOCIAL SERVICES,Revenue,CUSTOMER & CLIENT RECPTS - EXT,CL CONT EXTERNAL RESIDENTIAL,1077394,130280720,27-Oct-16,(522.80),MACINTYRE CARE,SP0000473
WANDSWORTH COUNCIL,ASC,SOCIAL SERVICES,Revenue,CUSTOMER & CLIENT RECPTS - EXT,CL CONT EXTERNAL RESIDENTIAL,1077396,130280720,27-Oct-16,(522.80),MACINTYRE CARE,SP0000473
WANDSWORTH COUNCIL,ASC,SOCIAL SERVICES,Revenue,CUSTOMER & CLIENT RECPTS - EXT,CL CONT EXTERNAL RESIDENTIAL,1077397,130280720,27-Oct-16,(321.80),MACINTYRE CARE,SP0000473
WANDSWORTH COUNCIL,ASC,SOCIAL SERVICES,Revenue,CUSTOMER & CLIENT RECPTS - EXT,CL CONT EXTERNAL RESIDENTIAL,1077398,130280720,27-Oct-16,(508.92),MACINTYRE CARE,SP0000473
WANDSWORTH COUNCIL,ASC,SOCIAL SERVICES,Revenue,CUSTOMER & CLIENT RECPTS - EXT,CL CONT EXTERNAL RESIDENTIAL,1077399,130280720,27-Oct-16,(321.80),MACINTYRE CARE,SP0000473
WANDSWORTH COUNCIL,ASC,SOCIAL SERVICES,Revenue,CUSTOMER & CLIENT RECPTS - EXT,CL CONT EXTERNAL RESIDENTIAL,1069862,130280720,19-Oct-16,(321.80),SURREY & BORDERS PARTNERSHIP NHS TRUST,SP0000501
WANDSWORTH COUNCIL,ASC,SOCIAL SERVICES,Revenue,CUSTOMER & CLIENT RECPTS - EXT,CL CONT EXTERNAL RESIDENTIAL,1069863,130280720,19-Oct-16,(505.20),SURREY & BORDERS PARTNERSHIP NHS TRUST,SP0000501
WANDSWORTH COUNCIL,ASC,SOCIAL SERVICES,Revenue,CUSTOMER & CLIENT RECPTS - EXT,CL CONT EXTERNAL RESIDENTIAL,1073796,130280720,24-Oct-16,(373.99),AIMS CARE PARTNERSHIP,SP0000561
WANDSWORTH COUNCIL,ASC,SOCIAL SERVICES,Revenue,CUSTOMER & CLIENT RECPTS - EXT,CL CONT EXTERNAL RESIDENTIAL,1075830,130280720,26-Oct-16,(443.52),SEEABILITY,SP0000572
WANDSWORTH COUNCIL,ASC,SOCIAL SERVICES,Revenue,CUSTOMER & CLIENT RECPTS - EXT,CL CONT EXTERNAL RESIDENTIAL,1072014,130280720,20-Oct-16,(443.52),THE COMMUNITY CARE COMPANY UK LTD,SP0000576
WANDSWORTH COUNCIL,ASC,SOCIAL SERVICES,Revenue,CUSTOMER & CLIENT RECPTS - EXT,CL CONT EXTERNAL RESIDENTIAL,1073897,130280720,24-Oct-16,(578.81),THE COMMUNITY CARE COMPANY UK LTD,SP0000576
WANDSWORTH COUNCIL,ASC,SOCIAL SERVICES,Revenue,CUSTOMER & CLIENT RECPTS - EXT,CL CONT EXTERNAL RESIDENTIAL,1073898,130280720,24-Oct-16,(443.52),THE COMMUNITY CARE COMPANY UK LTD,SP0000576
WANDSWORTH COUNCIL,ASC,SOCIAL SERVICES,Revenue,CUSTOMER & CLIENT RECPTS - EXT,CL CONT EXTERNAL RESIDENTIAL,1073899,130280720,24-Oct-16,(373.77),THE COMMUNITY CARE COMPANY UK LTD,SP0000576
WANDSWORTH COUNCIL,ASC,SOCIAL SERVICES,Revenue,CUSTOMER & CLIENT RECPTS - EXT,CL CONT EXTERNAL RESIDENTIAL,1073900,130280720,24-Oct-16,(435.77),THE COMMUNITY CARE COMPANY UK LTD,SP0000576
WANDSWORTH COUNCIL,ASC,SOCIAL SERVICES,Revenue,CUSTOMER & CLIENT RECPTS - EXT,CL CONT EXTERNAL RESIDENTIAL,1075831,130280720,26-Oct-16,(400.60),THE REGARD PARTNERSHIP,SP0000588
WANDSWORTH COUNCIL,ASC,SOCIAL SERVICES,Revenue,CUSTOMER & CLIENT RECPTS - EXT,CL CONT EXTERNAL RESIDENTIAL,1062328,130280720,07-Oct-16,(321.80),LAETUS LODGE,SP0000600
WANDSWORTH COUNCIL,ASC,SOCIAL SERVICES,Revenue,CUSTOMER & CLIENT RECPTS - EXT,CL CONT EXTERNAL RESIDENTIAL,1062329,130280720,07-Oct-16,(321.80),LAETUS LODGE,SP0000600
WANDSWORTH COUNCIL,ASC,SOCIAL SERVICES,Revenue,CUSTOMER & CLIENT RECPTS - EXT,CL CONT EXTERNAL RESIDENTIAL,1062330,130280720,07-Oct-16,(366.40),LAETUS LODGE,SP0000600
WANDSWORTH COUNCIL,ASC,SOCIAL SERVICES,Revenue,CUSTOMER & CLIENT RECPTS - EXT,CL CONT EXTERNAL RESIDENTIAL,1062331,130280720,07-Oct-16,(321.80),LAETUS LODGE,SP0000600
WANDSWORTH COUNCIL,ASC,SOCIAL SERVICES,Revenue,CUSTOMER & CLIENT RECPTS - EXT,CL CONT EXTERNAL RESIDENTIAL,1062332,130280720,07-Oct-16,(321.80),LAETUS LODGE,SP0000600
WANDSWORTH COUNCIL,ASC,SOCIAL SERVICES,Revenue,CUSTOMER & CLIENT RECPTS - EXT,CL CONT EXTERNAL RESIDENTIAL,1057834,130280720,03-Oct-16,(522.80),METROPOLITAN HOUSING TRUST,SP0000626
WANDSWORTH COUNCIL,ASC,SOCIAL SERVICES,Revenue,CUSTOMER & CLIENT RECPTS - EXT,CL CONT EXTERNAL RESIDENTIAL,1057835,130280720,03-Oct-16,(337.80),METROPOLITAN HOUSING TRUST,SP0000626
WANDSWORTH COUNCIL,ASC,SOCIAL SERVICES,Revenue,CUSTOMER & CLIENT RECPTS - EXT,CL CONT EXTERNAL RESIDENTIAL,1057836,130280720,03-Oct-16,(321.80),METROPOLITAN HOUSING TRUST,SP0000626
WANDSWORTH COUNCIL,ASC,SOCIAL SERVICES,Revenue,CUSTOMER & CLIENT RECPTS - EXT,CL CONT EXTERNAL RESIDENTIAL,1057837,130280720,03-Oct-16,(400.60),METROPOLITAN HOUSING TRUST,SP0000626
WANDSWORTH COUNCIL,ASC,SOCIAL SERVICES,Revenue,CUSTOMER & CLIENT RECPTS - EXT,CL CONT EXTERNAL RESIDENTIAL,1057839,130280720,03-Oct-16,(400.60),METROPOLITAN HOUSING TRUST,SP0000626
WANDSWORTH COUNCIL,ASC,SOCIAL SERVICES,Revenue,CUSTOMER & CLIENT RECPTS - EXT,CL CONT EXTERNAL RESIDENTIAL,1057842,130280720,03-Oct-16,(337.80),METROPOLITAN HOUSING TRUST,SP0000626
WANDSWORTH COUNCIL,ASC,SOCIAL SERVICES,Revenue,CUSTOMER & CLIENT RECPTS - EXT,CL CONT EXTERNAL RESIDENTIAL,1057843,130280720,03-Oct-16,(522.80),METROPOLITAN HOUSING TRUST,SP0000626
WANDSWORTH COUNCIL,ASC,SOCIAL SERVICES,Revenue,CUSTOMER & CLIENT RECPTS - EXT,CL CONT EXTERNAL RESIDENTIAL,1057844,130280720,03-Oct-16,(522.80),METROPOLITAN HOUSING TRUST,SP0000626
WANDSWORTH COUNCIL,ASC,SOCIAL SERVICES,Revenue,CUSTOMER & CLIENT RECPTS - EXT,CL CONT EXTERNAL RESIDENTIAL,1057847,130280720,03-Oct-16,(337.80),METROPOLITAN HOUSING TRUST,SP0000626
WANDSWORTH COUNCIL,ASC,SOCIAL SERVICES,Revenue,CUSTOMER & CLIENT RECPTS - EXT,CL CONT EXTERNAL RESIDENTIAL,1064497,130280720,14-Oct-16,"(1,512.39)",METROPOLITAN HOUSING TRUST,SP0000626
WANDSWORTH COUNCIL,ASC,SOCIAL SERVICES,Revenue,CUSTOMER & CLIENT RECPTS - EXT,CL CONT EXTERNAL RESIDENTIAL,1064790,130280720,14-Oct-16,(321.80),METROPOLITAN HOUSING TRUST,SP0000626
WANDSWORTH COUNCIL,ASC,SOCIAL SERVICES,Revenue,CUSTOMER & CLIENT RECPTS - EXT,CL CONT EXTERNAL RESIDENTIAL,1064791,130280720,14-Oct-16,(522.80),METROPOLITAN HOUSING TRUST,SP0000626
WANDSWORTH COUNCIL,ASC,SOCIAL SERVICES,Revenue,CUSTOMER & CLIENT RECPTS - EXT,CL CONT EXTERNAL RESIDENTIAL,1064792,130280720,14-Oct-16,(321.80),METROPOLITAN HOUSING TRUST,SP0000626
WANDSWORTH COUNCIL,ASC,SOCIAL SERVICES,Revenue,CUSTOMER & CLIENT RECPTS - EXT,CL CONT EXTERNAL RESIDENTIAL,1064793,130280720,14-Oct-16,(400.60),METROPOLITAN HOUSING TRUST,SP0000626
WANDSWORTH COUNCIL,ASC,SOCIAL SERVICES,Revenue,CUSTOMER & CLIENT RECPTS - EXT,CL CONT EXTERNAL RESIDENTIAL,1064795,130280720,14-Oct-16,(400.60),METROPOLITAN HOUSING TRUST,SP0000626
